Workbook

Sheet Simulador
R1: . | AO1: -
S2: CALCULO DE LA PORCION A CON BASE EN EL SSV REMANENTE | AE2: CALCULO CRÉDITO COFINAVIT
AI3: =IF(OR(U39=4,U39=5),"SI","") -> 
S4: SSV INFONAVIT | AE4: Valor del inmueble | AF4: =O24 -> 0 | AI4: =IF(OR(U39=4,U39=5),"NO","") -> 
C5: FINANCIAMIENTO RESIDENCIAL SCOTIABANK | S5: Uso de la SSV | V5: Proyección de Anualidades Garantizadas
C6: 7x5 | S6: SSV Total | V6: Tasa SSV Proyectar | W6: 0.05 | AE6: Gastos relacionados | AF6: =O34 -> 0
S7: SSV al frente | V7: Año | W7: 1 | X7: 2 | Y7: 3 | Z7: 4 | AA7: 5
C8: =TODAY() -> 2024-03-22 | S8: SSV Remanente | T8: =D37+D44 ->  | V8: Saldo Inicial | W8: =$T$8 ->  | X8: =W12 ->  | Y8: =X12 ->  | Z8: =Y12 ->  | AA8: =Z12 ->  | AE8: Valor del inmueble al 75% | AF8: =AF4*AF17 -> 0
V9: Tasa Efectiva | W9: =W6 -> 0.05 | X9: =W9 -> 0.05 | Y9: =X9 -> 0.05 | Z9: =Y9 -> 0.05 | AA9: =Z9 -> 0.05
V10: Intereses | W10: =W8*$W$6 ->  | X10: =X8*$W$6 ->  | Y10: =Y8*$W$6 ->  | Z10: =Z8*$W$6 ->  | AA10: =AA8*$W$6 -> 
C11: Nombre del Ejecutivo Especializado | G11: Sucursal | K11: Nombre del Cliente | V11: Anualidad Garantizada | W11: =(W8+W10)/5 ->  | X11: =(X8+X10)/4 ->  | Y11: =(Y8+Y10)/3 ->  | Z11: =(Z8+Z10)/2 ->  | AA11: =(AA8+AA10)/1 ->  | AE11: Crédito Infonavit Neto | AF11: =IFERROR((D38+D45),0) -> 0
V12: Saldo Final | W12: =W8+W10-W11 ->  | X12: =X8+X10-X11 ->  | Y12: =Y8+Y10-Y11 ->  | Z12: =Z8+Z10-Z11 ->  | AA12: =AA8+AA10-AA11 ->  | AE12: SSV al frente | AF12: =D36+D43 -> 0
C13: Teléfonos | K13: Teléfonos | V13: Calculo del Valor Presente de las Anualidades Garantizadas | AE13: Cred. Total Infonavit | AF13: =+AF11+AF12 -> 0
V14: Factor de Descuento | W14: =1/(1+$T$20)^1 -> 0.9070294785 | X14: =1/(1+$T$20)^2 -> 0.8227024748 | Y14: =1/(1+$T$20)^3 -> 0.7462153966 | Z14: =1/(1+$T$20)^4 -> 0.676839362 | AA14: =1/(1+$T$20)^5 -> 0.6139132535
V15: Valor Presente de la Anualidad | W15: =W11*W14 ->  | X15: =X11*X14 ->  | Y15: =Y11*Y14 ->  | Z15: =Z11*Z14 ->  | AA15: =AA11*AA14 -> 
V16: Total | W16: =SUM(W15:AA15) ->  | AE16: %Cred Infonavit | AF16: =IFERROR((AF11+AF12)/AF4,0) -> 0
C17: Escoja la opción de su interés: | G17: Detalle | S17: SCOTIABANK | AE17: %CB | AF17: =X35 -> 0.75
G18: Programa | I18: =VLOOKUP($U$39,$S$33:$T$38,2,0) -> Adquisición Tradicional | S18: Crédito SBI Porción A | V18: Proyección del Pago de la Porción A del Crédito SBI | AE18: Cred. Banco aforo máximo | AF18: =AF17*AF4 -> 0
C19: Como desea hacer su cálculo | G19: Producto | H19: =IFERROR(VLOOKUP(U62,S63:T66,2,0),"") -> 0 | L19: =IF(U39=6,"% de financiamiento CI+CB","% de financiamiento") -> % de financiamiento | V19: Tasa Interés Porción A | W19: =T20 -> 0.1025 | AE19: %ajustes | AF19: =IF(AF17+AF16>100%,AF17+AF16-100%,0%) -> 0
G20: Plazo | H20: =IFERROR(VLOOKUP(U62,S63:U66,3,0),"") -> 20 años | M20: =+IF(O24=0,0,IF(U39=6,AG26,IF(O25="",I25/O24,O25/O24))) -> 0 | N20: =IF(M20>65%,"Aplica solo para IR 1 y 2","") ->  | S20: Tasa Descuento | T20: 0.1025 | V20: Año | W20: 1 | X20: 2 | Y20: 3 | Z20: 4 | AA20: 5 | AE20: Cred. Banco Ajustado | AF20: =AF18-(AF19*AF4) -> 0
C21: =IF(Y41=1,"Valor de la vivienda",IF(Y41=2,"Ingresos Mensuales","Monto de Crédito")) -> Valor de la vivienda | S21: VP Anualidades | T21: =NPV(T20,W11:AA11) ->  | V21: Saldo Inicial | W21: =T21 ->  | X21: =W26 ->  | Y21: =X26 ->  | Z21: =Y26 ->  | AA21: =Z26 -> 
C22: Valor Destructible | V22: Tasa Efectiva | W22: =W19 -> 0.1025 | X22: =W22 -> 0.1025 | Y22: =X22 -> 0.1025 | Z22: =Y22 -> 0.1025 | AA22: =Z22 -> 0.1025
C23: =IF(D21=0,"",IF(AND($Y$41=1,D21<$AB$39),AD41,IF(D21<$Y$39,AD42,""))) ->  | H23: Recursos | L23: Gastos de Originación | T23: =IF(T8=0,0,T21/T8) ->  | V23: Anualidad | W23: =W11 ->  | X23: =X11 ->  | Y23: =Y11 ->  | Z23: =Z11 ->  | AA23: =AA11 ->  | AE23: CALCULO CRÉDITO CI+CB
C24: =IF(OR(U39=2,U39=5),"Sueldo cotización (Apoyo Infonavit)","") ->  | G24: Crédito Máximo posible | I24: =AD39 -> 0 | K24: Valor de vivienda | O24: =AA88 -> 0 | T24: Relación VP vs SSV | V24: Intereses | W24: =W21*W22 ->  | X24: =X21*X22 ->  | Y24: =Y21*Y22 ->  | Z24: =Z21*Z22 ->  | AA24: =AA21*AA22 ->  | AE24: Monto Maximo Autorizado | AF24: =+AF4*$X$38 -> 0
C25: Que plazo desea | G25: Crédito solicitado | I25: =I24 -> 0 | K25: =IF(OR(I28="NO",I29=0),"",IF(AND(I28="SI",OR(U39=4,U39=5)),"Monto Máximo Pago de Pasivo + Gastos Financiados","")) ->  | O25: =IFERROR(IF(I29>0,I25+I29,""),"") ->  | V25: Amortización | W25: =W21-W26 ->  | X25: =X21-X26 ->  | Y25: =Y21-Y26 ->  | Z25: =Z21-Z26 ->  | AA25: =AA21-AA26 ->  | AE25: SSV (-) | AF25: =D36+D39 -> 0
C26: =IF(U62>=2,"Ingrese la TIIE si está en periodo de revisión:","") -> Ingrese la TIIE si está en periodo de revisión: | G26: =IF(I25=0,"",IF(I25>I24,$AD$43,IF(I25<Z39,"Crédito debajo del mínimo",""))) ->  | I26: =IF(I25=0,"",IF($I$25<$Z$39,$Z$39,"")) ->  | K26: =IF(U40=1,"Infonavit gastos de originación","") ->  | N26: =IF(U40=1,3%,"") ->  | O26: =IF(U40=1,I31*$AG$61,"") ->  | V26: Saldo Final | W26: =W21+W24-W23 ->  | X26: =X21+X24-X23 ->  | Y26: =Y21+Y24-Y23 ->  | Z26: =Z21+Z24-Z23 ->  | AA26: =AA21+AA24-AA23 ->  | AE26: Monto de Crédito otorgado | AF26: =IF(AF4>(AF24+AF25),AF24,AF4-AF25) -> 0 | AG26: =+AF26/AF4 -> 
AE27: Crédito Infonavit | AF27: =MIN(AF29,AF26*30%) -> 0 | AG27: <- el Infonavit otorga el 30%
G28: =+IF(OR(U39=4,U39=5),"Gastos Notariales Financiados","") ->  | I28: SI | K28: =IF(U40=1,"Infonavit impuestos y derechos","Impuestos y derechos") -> Impuestos y derechos | N28: =IFERROR(IF(M28="",O28/O$24,""),0) -> 0 | O28: =IFERROR(IF(AND(OR(U40=1),L48>0),L48-O26,IF(M28="",O24*$AG$62,O24*M28)),0) -> 0 | AE28: Crédito Banco | AF28: =+AF26-AF27 -> 0
G29: =+IF(OR(U39=4,U39=5),"Monto Máximo Financiado","") ->  | I29: =+IF(AND(U39<>4,U39<>5),"",IF(I28="NO",0,IF(G26<>"",0,IF(AND(,Y41=1,O24*X39=I25),0,IF(AND(Y41=1,I25*6%+I25>I24),I24-I25,I25*6%))))) ->  | K29: Honorarios notariales | N29: =IFERROR(IF(M29="",O29/O$24,""),0) -> 0 | O29: =IFERROR(IF(M29="",O24*$AG$63,O24*M29),0) -> 0 | T29: Contratación de Seguros | AE29: *** Monto máximo Infonavit | AF29: 885445.6
C30: Tasa de interés acorde al plazo | D30: =+V67 -> 0 | G30: =IF(U40=1,"Subcuenta vivienda","") ->  | I30: =IF(U39=3,D36+D43,IF(U39=6,D36+D39,"")) ->  | T30: SI | U30: 2
C31: Tipo de comisión | G31: =IF(U40=1,"Crédito Infonavit","") ->  | I31: =IF(U39=3,D38+D45,IF(U39=6,D44,"")) ->  | L31: Costo Avalúo | M31: =IF(O24>$T$113,"'Favor de Cotizar'. Val. apróx.","") ->  | O31: =IFERROR(IF(OR(U39=4,U39=5),0,VLOOKUP(O24,$S$93:$U$114,3)),0) -> 0 | T31: NO
G32: =IF(AND(Y41=3,I25<>I24),"El crédito solicitado debe ser igual al máximo","") ->  | L32: Comisión por apertura | O32: =IFERROR(IF(OR($U$62=1,T41=2),0,I25*V39),0) -> 0 | T32: Tipo de Crédito | V32: Com Apert | W32: Coms. prepago | X32: LTV | Y32: Ingresos min. | Z32: Monto min. | AA32: Monto max | AB32: Valor min. viv. | AC32: PTI | AD32: Crédito máximo disponible
C33: El cliente opta por seguros externos | S33: 1 | T33: Adquisición Tradicional | V33: 0.0125 | W33: 0 | X33: 0.75 | Y33: 10000 | Z33: 250000 | AA33: 5000000 | AB33: 400000 | AC33: 0.45 | AD33: =IF(OR($Y$41=1,$Y$41=3),W84,W85) -> 0 | AE33: CREDIRESIDENCIAL
C34: Comisión Manual por Apertura | G34: =IF($U$40=1,"Recursos Totales:","Crédito Banco") -> Crédito Banco | I34: =IF(I25>I24,"Crédito solicitado fuera de rango",IF(OR(U39=3,U39=6),I25+I30+I31,I25)) -> 0 | L34: Gastos de originación | O34: =IFERROR(SUM(O27:O32)-I29,SUM(O27:O32)) -> 0 | S34: 2 | T34: Adquisición con Apoyo Infonavit | V34: 0.0075 | W34: 0 | X34: 0.75 | Y34: 7500 | Z34: 250000 | AA34: 5000000 | AB34: 400000 | AC34: 0.45 | AD34: =IF(OR($Y$41=1,$Y$41=3),W84,W85) -> 0 | AE34: CREDIRESIDENCIAL
C35: =IF(U39=3,"Cofinanciamientos (datos del titular)",IF(U39=6,"Cofinanciamientos CI+CB","")) ->  | G35: =IF($U$40=1,"Crédito SB + Crédito Infonavit + SSV al frente","") ->  | S35: 3 | T35: Cofinavit | V35: 0.0075 | W35: 0 | X35: 0.75 | Y35: 7500 | Z35: 120000 | AA35: 5000000 | AB35: 300000 | AC35: 0.45 | AD35: =AF20 -> 0 | AE35: CREDIRESIDENCIAL
C36: =IF(U39=3,"Subcuenta de vivienda",IF(U39=6,"Subcuenta de vivienda acreditado","")) ->  | S36: 4 | T36: Pasivo Hipotecario | V36: 0.015 | W36: 0 | X36: 0.75 | Y36: 10000 | Z36: 125000 | AA36: 5000000 | AB36: 0 | AC36: 0.45 | AD36: =IF(OR($Y$41=1,$Y$41=3),W84,W85) -> 0 | AE36: CREDIRESIDENCIAL
I37: =IFERROR(IF($U$39=6,"",IF(OR(U39=4,U39=5),"Desembolso",IF(I34-O24>0,"Monto Remanente","Enganche para la compra"))),0) -> Enganche para la compra | L37: =IFERROR(IF(OR(U39=4,U39=5),0,$O$24-$I$34),0) -> 0 | M37: =IF(L37<0,"negativo significa remanente para el cliente","") ->  | S37: 5 | T37: Pasivo Hipotecario con Apoyo Infonavit | V37: 0.015 | W37: 0 | X37: 0.75 | Y37: 10000 | Z37: 125000 | AA37: 5000000 | AB37: 0 | AC37: 0.45 | AD37: =IF(OR($Y$41=1,$Y$41=3),W84,W85) -> 0 | AE37: CREDIRESIDENCIAL
C38: =IF(U39=3,"Crédito a otorgar (sin ecotecnologías)","") ->  | I38: Gastos de originación | L38: =O34 -> 0 | S38: 6 | T38: CI+CB Cofinavit | V38: 0.0125 | W38: 0 | X38: 0.75 | Y38: 10000 | Z38: 120000 | AA38: 5000000 | AB38: 300000 | AC38: 0.45 | AD38: =AF28 -> 0 | AE38: CREDIRESIDENCIAL
C39: =IF(U39=6,"Subcuenta de vivienda conyuge","") ->  | I39: Inversión cliente | L39: =IF($U$39=6,L38,L37+L38) -> 0 | T39: Selección | U39: 1 | V39: =IFERROR(IF($D$34<>"",$D$34,VLOOKUP($U39,$S$33:$AC$38,4,0)),0) -> 0.0125 | W39: =VLOOKUP($U39,$S$33:$AC$38,5,0) -> 0 | X39: =VLOOKUP($U39,$S$33:$AB$38,6,0) -> 0.75 | Y39: =VLOOKUP($U39,$S$33:$AB$38,7,0) -> 10000 | Z39: =VLOOKUP($U39,$S$33:$AB$38,8,0) -> 250000 | AA39: =VLOOKUP($U39,$S$33:$AB$38,9,0) -> 5000000 | AB39: =VLOOKUP($U39,$S$33:$AB$38,10,0) -> 400000 | AC39: =VLOOKUP($U39,$S$33:$AC$38,11,0) -> 0.45 | AD39: =VLOOKUP($U39,$S$33:$AD$38,12,0) -> 0
U40: =IF(OR(U39=3,U39=6),1,0) -> 0 | Y40: 1
G41: CAT | I41: =X63 -> 0 | S41: COMISION | T41: 1 | U41: IVA | W41: CALCULO | Y41: 1 | AD41: Valor de vivienda debajo del mínimo
C42: =IF(U39=3,"Cofinanciamientos (datos del conyuge, si aplica))",IF(U39=6,"Crédito otorgado por el Infonavit CI+CB","")) ->  | G42: Mensualidad | I42: =Y63 -> 0 | N42: Parámetros de crédito | S42: Apertura | W42: Por Valor del Inmueble | Z42: Seguros | AC42: Incremento Anual | AD42: Ingresos menores al mínimo
C43: =IF(U39=3,"Subcuenta de vivienda","") ->  | G43: Tasa | I43: =+V67 -> 0 | N43: Crédito minimo | O43: =$Z$39 -> 250000 | S43: Premium/Bca Privada | U43: 0.0116 | W43: Por Ingresos | Z43: Vida | AA43: 0.0006 | AB43: =AA43 -> 0.0006 | AC43: 0 | AD43: Crédito fuera de rango
C44: =IF(U39=6,"Monto del Crédito*","") ->  | D44: =IF(U39=6,AF27,"") ->  | G44: Pago al millar $ | I44: =+W67 -> 0 | N44: Valor mínimo inmueble | O44: =$AB$39 -> 400000 | W44: Por Importe de Crédito | Z44: Daños | AA44: 0.00031 | AB44: =AA44 -> 0.00031
C45: =IF(U39=3,"Crédito a otorgar (sin ecotecnologías)","") ->  | G45: Ingreso mínimo | I45: =VLOOKUP(U62,S63:Z66,8,0) -> 10000 | N45: Enganche mínimo | O45: =1-$X$39 -> 0.25
C46: =IF(U39=6,"* El monto del crédito aplica para el acreditado y conyuge, en su caso.","") ->  | G46: Incremento anual | I46: =IF(I25=0,0,IFERROR(AC43,0)) -> 0
C50: Observaciones:
C51: =IFERROR("- Los impuestos y derechos están calculados al "&TEXT(($O$28/$O$24),"#,##0.00%")&" del valor del inmueble, pueden cambiar dependiendo de la entidad federativa.","") -> 
C52: =IFERROR("- Los honorarios notariales en los créditos en cofinanciamiento están calculados al "&TEXT(($O$29/$O$24),"#,##0.00%")&" del valor del inmueble, pueden variar dependiendo de la entidad federativa.","") -> 
C53: - El crédito solicitado dependerá de la capacidad de pago de cada cliente
C54: - Esta cotización tiene carácter informativo, Scotiabank se reserva el derecho de solicitar información adicional y/o restringir parámetros de enganche, monto, plazo o tasa en función de las características específicas
C55: del solicitante y del inmueble objeto de la operación.
C56: - En caso de que aplique, la comisión por pagos anticipados causa I.V.A.
C57: - Este documento NO implica que el crédito ha sido autorizado, ni establece obligación alguna para Scotiabank.
C58: =IF($U$62=1,"","'- Apartir del mes número 61 y en caso de que el cliente no se reúna con el Banco para revisar y negociar la nueva Tasa de interés que rejirá el crédito, la Tasa de Interés aplicable será de "&"T.I.I.E. más 4.5 puntos porcentuales, por lo que los valores que se muestran se ajustarán durante la vigencia del crédito en función de la Tasa de Interés variable señalada.") -> '- Apartir del mes número 61 y en caso de que el cliente no se reúna con el Banco para revisar y negociar la nueva Tasa de interés que rejirá el crédito, la Tasa de Interés aplicable será de T.I.I.E. más 4.5 puntos porcentuales, por lo que los valores que se muestran se ajustarán durante la vigencia del crédito en función de la Tasa de Interés variable señalada. | O58: v2024.01
AF60: Monto máximo CI+CB | AG60: 885445.6
T61: Producto | U61: Plazo | V61: Tasas | W61: Pgo x mil | X61: CAT | Y61: Mensualidad | Z61: Créd. Máx | AA61: Cálculo de ingresos mínimpos por plazo | AF61: =IF($U$39=3,"Infonavit gastos de originación","") ->  | AG61: 0.03
S62: Plazo | U62: 4 | V62: 1 | X62: Informativo | AA62: Valora | AB62: 5 años | AC62: 10 años | AF62: =IF($U$39=3,"Infonavit impuestos y derechos","Impuestos y derechos") -> Impuestos y derechos | AG62: 0.03
S63: 1 | T63: 7x5 | U63: 5 años | V63: 0.095 | W63: 21.08 | X63: ='Tabla de amortizacion'!B10 -> 0 | Y63: ='Tabla de amortizacion'!Y15 -> 0 | Z63: =IFERROR(MAX($Y$39,$I$25/1000*$W$63/$AC$39),0) -> 10000 | AA63: Por Crédito solicitado | AB63: =IFERROR($I$25/1000*$W$63/$AC$39,0) -> 0 | AC63: =IFERROR($I$25/1000*$W$64/$AC$39,0) -> 0 | AF63: Honorarios notariales | AG63: 0.02
S64: 2 | T64: 7x5 | U64: 10 años | V64: 0.1 | W64: 13.3 | Z64: =IFERROR(MAX($Y$39,$I$25/1000*$W$64/$AC$39),0) -> 10000 | AA64: Por Ingresos | AB64: =AB63 -> 0 | AC64: =AC63 -> 0 | AF64: CALCULO PARA EL IMPORTE MAXIMO DE APORTACION PATRONAL
S65: 3 | U65: 15 años | V65: 0.1075 | W65: 11.32 | Z65: =IFERROR(MAX($Y$39,$I$25/1000*$W$65/$AC$39),0) -> 10000 | AF65: Salario diario nominal (UMA enero 2023) | AH65: 103.74
S66: 4 | U66: 20 años | V66: 0.1075 | W66: 10.27 | Z66: =IFERROR(MAX($Y$39,$I$25/1000*$W$66/$AC$39),0) -> 10000 | AB66: =MAX($Y$39,AB63) -> 10000 | AC66: =MAX($Y$39,IF($Y$41=1,AC63,AC64)) -> 10000 | AF66: Tope de aportación patronal | AH66: 25
U67: =IF(I25=0,0,VLOOKUP(U62,S63:V66,3,0)) -> 0 | V67: =IF(I25=0,0,VLOOKUP(U62,S63:V66,4,0)) -> 0 | W67: =IF(I25=0,0,VLOOKUP(U62,S63:W66,5,0)) -> 0 | AA67: Pagos Oportunos | AB67: 5 años | AC67: 10 años | AH67: =+AH65*AH66 -> 2593.5
S68: Producto | T68: 2 | AA68: Por Crédito solicitado | AB68: =IFERROR($I$25/1000*$AE$56/$AC$39,0) -> 0 | AC68: =IFERROR($I$25/1000*$AB$56/$AC$39,0) -> 0 | AF68: Aportación Patronal 5% | AH68: =+AH67*AG69 -> 129.675
S69: 1 | T69: 7x5 5 años | AA69: Por Ingresos | AB69: =AB68 -> 0 | AC69: =AC68 -> 0 | AG69: 0.05
S70: 2 | T70: 7x5 10 años | AF70: No. de días del bimestre (promedio 60 días) | AH70: 60.8
S71: 3 | T71: 7x5 15 años | AB71: =MAX($Y$39,IF($Y$41=1,AB68,AB69)) -> 10000 | AC71: =MAX($Y$39,IF($Y$41=1,AC68,AC69)) -> 10000 | AF71: Aportación Patronal bimestral | AH71: =+AH68*AH70 -> 7884.24
S72: 4 | T72: 7x5 20 años | AF72: Incremento Anual Apróximado | AH72: 0.03
U74: Factor p/ TIIE
U75: 0.045
W83: Cred. max | Y83: Erogación | AA83: Valor de vivienda | AC83: Ingresos
V84: Por Valor Inmueble | W84: =IFERROR(IF($Y$41=3,D21,D21*X39),0) -> 0 | Y84: =W84/1000*VLOOKUP(U62,S63:Z66,5,0) -> 0 | AA84: =IFERROR(IF($Y$41=3,D21/X39,D21),0) -> 0 | AC84: =W84/1000*VLOOKUP(U62,S63:Z66,5,0)/$AC$39 -> 0 | AD84: =$Y$39 -> 10000 | AE84: =MAX(AC84:AD84) -> 10000
V85: Por Ingresos | W85: =IFERROR(Y85/(VLOOKUP(U62,S63:Z66,5,0)/1000),0) -> 0 | Y85: =IFERROR(D21*AC39,0) -> 0 | AA85: =W85/$X$39 -> 0 | AC85: =D21 -> 0 | AD85: =$Y$39 -> 10000 | AE85: =MAX(AC85:AD85) -> 10000
V88: Cred. máximo | W88: =IF(OR($Y$41=1,$Y$41=3),W84,W85) -> 0 | AA88: =IF(OR($Y$41=1,$Y$41=3),AA84,AA85) -> 0 | AE88: =IF($Y$41=1,AE84,AE85) -> 10000
S91: AVALUO
S92: Mayor a | T92: Hasta a | U92: Importe | V92: Switch
S93: 0.01 | T93: 500000 | U93: 1900 | V93: 1253
S94: 500001 | T94: 1000000 | U94: 3300 | V94: 1740
S95: 1000001 | T95: 1500000 | U95: 4500 | V95: 2784
S96: 1500001 | T96: 2000000 | U96: 5750 | V96: 2784
S97: 2000001 | T97: 2500000 | U97: 7000 | V97: 4663
S98: 2500001 | T98: 3000000 | U98: 8200 | V98: 4663
S99: 3000001 | T99: 4000000 | U99: 11000 | V99: 5000
S100: 4000001 | T100: 5000000 | U100: 13900 | V100: 5000
S101: 5000001 | T101: 6000000 | U101: 15500 | V101: 5000
S102: 6000001 | T102: 7000000 | U102: 19000 | V102: 5000
S103: 7000001 | T103: 8000000 | U103: 20000 | V103: 5000
S104: 8000001 | T104: 9000000 | U104: 20100 | V104: 5000
S105: 9000001 | T105: 10000000 | U105: 22500 | V105: 5000
S106: 10000001 | T106: 11000000 | U106: 27000 | V106: 5000
S107: 11000001 | T107: 12000000 | U107: 28000 | V107: 5000
S108: 12000001 | T108: 13000000 | U108: 30000 | V108: 5000
S109: 13000001 | T109: 14000000 | U109: 32000 | V109: 5000
S110: 14000001 | T110: 15000000 | U110: 34000 | V110: 5000
S111: 15000001 | T111: 20000000 | U111: 37000 | V111: 5000
S112: 20000001 | T112: 25000000 | U112: 39000 | V112: 5000
S113: 25000001 | T113: 30000000 | U113: 40000 | V113: 5000
S114: 30000001 | T114: 30000000 | U114: 40000 | V114: 5000

Sheet Tabla de amortizacion
A1: Scotiabank Inverlat, S.A., Institución de Banca Múltiple, Grupo Financiero Scotiabank Inverlat | BD1: -
A2: FINANCIAMIENTO RESIDENCIAL SCOTIABANK
A3: TABLA DE AMORTIZACION | AF3: 2
A4: 7x5 | AF4: =IF(Simulador!U62=1,"Disminución de plazo","") -> 
A5: Observaciones | AF5: =IF(Simulador!U62=1,"Disminución de pago","") -> 
A6: - En caso de que aplique la comisión por prepagos causa IVA y en la corrida ya lo incluye
A7: - El escenario de la tabla de amortización es considerando que siempre se paga el crédito de manera puntual . | AD7: Comisión por apertura | AG7: =IFERROR(Simulador!O32*1,0) -> 0
A8: - Esta cotización tiene carácter informativo, Scotiabank se reserva el derecho de cambiar cualquier condición sin previo aviso. | AD8: Avalúo | AG8: =IFERROR(Simulador!O31*1,0) -> 0 | AQ8: =AQ12*12 -> 0
A9: - Este documento NO implica que el crédito ha sido autorizado, ni establece obligación alguna para Scotiabank. | AD9: Total | AG9: =+AG8+AG7 -> 0 | AI9: =AI13*12 -> 0 | AQ9: =((1+AQ12)^12)-1 -> 0
A10: - CAT =. | B10: =AQ9 -> 0 | C10: "Para fines informativos de comparación exclusivamente sin IVA" | U10: El crédito se liquida | Y10: =AG14 -> 0 | Z10: Años | AI10: =((1+AI13)^12)-1 -> 0 | AQ10: Corrida para CAT
A11: =IF(Simulador!$U$62=1,"","- Apartir del mes número 61 y en caso de que el cliente no se reúna con el Banco para revisar y negociar la nueva Tasa de interés que rejirá el crédito, la Tasa de Interés aplicable") -> - Apartir del mes número 61 y en caso de que el cliente no se reúna con el Banco para revisar y negociar la nueva Tasa de interés que rejirá el crédito, la Tasa de Interés aplicable | U11: por pago puntual en: | Y11: =AH14 -> 0 | Z11: Meses | AG11: Techo | AI11: Corrida para CAT | AQ11: TIR
A12: =IF(Simulador!$U$62=1,""," será de T.I.I.E. más 4.5 puntos porcentuales, por lo que los valores que se muestran se ajustarán durante la vigencia del crédito en función de la Tasa de Interés variable señalada.") -> será de T.I.I.E. más 4.5 puntos porcentuales, por lo que los valores que se muestran se ajustarán durante la vigencia del crédito en función de la Tasa de Interés variable señalada. | AG12: 0.15 | AI12: TIR | AQ12: =IFERROR(IRR(AQ13:AQ254,0),0) -> 0
AB13: . | AG13: =Simulador!D26+Simulador!U75 -> 0.045 | AI13: =IFERROR(IRR(AI14:AI254,0),0) -> 0 | AQ13: =AG9-B15 -> 0
A14: Período | B14: Saldo Inicial | D14: Erogación | F14: Interés | H14: Amortización | J14: Prepagos a capital | L14: Comisión por prepagos | N14: Aportación Bimestral (Apoyo Inf) | P14: Tasa aplicada | R14: Saldo Final | T14: Seguro de vida y desempleo | V14: Seguro de daños | Y14: Pago Mensual | AA14: Inc. Pago | AC14: Modificación tasa TIIE | AD14: años | AE14: meses | AF14: =SUM(AF15:AF254) -> 1 | AG14: =SUM(AG15:AG254) -> 0 | AH14: =SUM(AH15:AH254) -> 0 | AI14: =AG9-B15 -> 0 | AJ14: factor de pago Valora | AK14: Saldo Inicial | AL14: Erogación | AM14: Interés | AN14: Amortización | AO14: Saldo Final | AP14: Seguros | AQ14: Pago Mensual | AR14: Tasa aplicada | AS14: Plazo | AT14: Fecha Corte/ Emisión Recibo 1 | AU14: Dias | AW14: Año actual | AX14: Mes actual | AY14: Día actual | AZ14: Dia/corte | BA14: sumar
A15: 1 | B15: =IFERROR(IF(Simulador!O25="",Simulador!I25,Simulador!O25),0) -> 0 | D15: =IFERROR(B15/1000*VLOOKUP(Simulador!U62,Simulador!S63:W66,5,0),0) -> 0 | F15: =IFERROR(IF(B15=0,0,P15/360*AU15*B15),0) -> 0 | H15: =D15-F15 -> 0 | L15: =IF(Simulador!$T$41=1,0,J15*Simulador!$W$39*1.16) -> 0 | P15: =IFERROR(IF(B15=0,0,Simulador!$V$67),0) -> 0 | R15: =IFERROR(B15-H15-J15+L15-N15,0) -> 0 | T15: =IFERROR(IF(Simulador!$U$30=1,0,IF($B15<=0,0,$B15*Simulador!$AA$43)),0) -> 0 | V15: =IFERROR(IF(Simulador!$U$30=1,0,IF($B15<=0,0,IF(Simulador!$D$22>0,Simulador!$D$22,Simulador!$O$24)*Simulador!$AA$44)),0) -> 0 | Y15: =IF(B15<=0,0,D15+J15+T15+V15) -> 0 | AD15: 0 | AE15: =IF(B15=0,0,1) -> 0 | AF15: =IF(R15<=0.01,IF(R14>0.01,A15,0),0) -> 1 | AG15: =IF(AF15>0,AD15,0) -> 0 | AH15: =IF(AF15>0,AE15,0) -> 0 | AI15: =Y15 -> 0 | AJ15: =IFERROR((AL15/AK15),0) -> 0 | AK15: =B15 -> 0 | AL15: =D15 -> 0 | AM15: =IFERROR(IF(AK15=0,0,AR15/360*AU15*AK15),0) -> 0 | AN15: =+AL15-AM15 -> 0 | AO15: =+AK15-AN15 -> 0 | AP15: =IFERROR(IF(Simulador!$U$30=1,0,IF($AK15<=0,0,$AK15*Simulador!$AA$43)),0)+IFERROR(IF(Simulador!$U$30=1,0,IF($AK15<=0,0,IF(Simulador!$D$22>0,Simulador!$D$22,Simulador!$O$24)*Simulador!$AA$44)),0) -> 0 | AQ15: =AL15+AP15 -> 0 | AR15: =IFERROR(IF(AK15=0,0,Simulador!$V$67),0) -> 0 | AS15: =IF(Simulador!U62=1,60,IF(Simulador!U62=2,120,IF(Simulador!U62=3,180,240))) -> 240 | AT15: =IF(AK15=0,"",DATE(AW15,AX15+BA15,AZ15)) ->  | AU15: =IFERROR(DAY(DATE(YEAR(AT15),MONTH(AT15)+1,0)),0) -> 0 | AV15: 1 | AW15: =IFERROR(YEAR(Simulador!C8),YEAR(Simulador!C8)) -> 2024 | AX15: =IFERROR(MONTH(Simulador!C8),MONTH(Simulador!C8)) -> 3 | AY15: =IFERROR(DAY(Simulador!C8),DAY(Simulador!C8)) -> 22 | AZ15: =IF(AND(DAY(TODAY())>=3,DAY(TODAY())<=16),3,17) -> 17 | BA15: =IF(AY15>AZ15,1,0) -> 1
A16: 2 | B16: =IF(R15<=0.01,0,R15) -> 0 | D16: =IF(B16+F16-D15<=0,B16+F16,IF(AND(Simulador!$U$62=1,$AF$3=2),B16*AJ16,D15)) -> 0 | F16: =IFERROR(IF(B16=0,0,P16/360*AU16*B16),0) -> 0 | H16: =D16-F16 -> 0 | L16: =IF(Simulador!$T$41=1,0,J16*Simulador!$W$39*1.16) -> 0 | N16: =IF(AND(Simulador!U39<>2,Simulador!U39<>5),0,IF(Simulador!D24*Simulador!$AG$69*2>Simulador!$AH$71,Simulador!$AH$71,IF(B16=0,0,Simulador!D24*Simulador!$AG$69*2))) -> 0 | P16: =IFERROR(IF(B16=0,0,P15),0) -> 0 | R16: =B16-H16-J16+L16-N16 -> 0 | T16: =IFERROR(IF(Simulador!$U$30=1,0,IF($B16<=0,0,$B16*Simulador!$AA$43)),0) -> 0 | V16: =IFERROR(IF(Simulador!$U$30=1,0,IF($B16<=0,0,IF(Simulador!$D$22>0,Simulador!$D$22,Simulador!$O$24)*Simulador!$AA$44)),0) -> 0 | Y16: =IF(B16<=0,0,D16+J16+T16+V16) -> 0 | AD16: 0 | AE16: 2 | AF16: =IF(R16<=0.01,IF(R15>0.01,A16,0),0) -> 0 | AG16: =IF(AF16>0,AD16,0) -> 0 | AH16: =IF(AF16>0,AE16,0) -> 0 | AI16: 0 | AJ16: 0 | AK16: =+AO15 -> 0 | AL16: =IFERROR((IF(AK16+AM16-AL15<0, AK16+AM16, AL15*(1+AA16))),0) -> 0 | AM16: 0 | AN16: =+AL16-AM16 -> 0 | AO16: =+AK16-AN16 -> 0 | AP16: =IFERROR(IF(Simulador!$U$30=1,0,IF($AK16<=0,0,$AK16*Simulador!$AA$43)),0)+IFERROR(IF(Simulador!$U$30=1,0,IF($AK16<=0,0,IF(Simulador!$D$22>0,Simulador!$D$22,Simulador!$O$24)*Simulador!$AA$44)),0) -> 0 | AQ16: =AL16+AP16 -> 0 | AR16: =IFERROR(IF(AK16=0,0,AR15),0) -> 0 | AS16: =IFERROR(IF(AK16<=0.01,0,AS15-1),0) -> 0 | AT16: =IF(AK16=0,"",DATE(YEAR(AT15),MONTH(AT15)+1,1)) ->  | AU16: =IFERROR(DAY(DATE(YEAR(AT16),MONTH(AT16)+1,0)),0) -> 0 | AV16: 2
A17: 3 | B17: =IF(R16<=0.01,0,R16) -> 0 | D17: =IF(B17+F17-D16<=0,B17+F17,IF(AND(Simulador!$U$62=1,$AF$3=2),B17*AJ17,D16)) -> 0 | F17: 0 | H17: =D17-F17 -> 0 | L17: =IF(Simulador!$T$41=1,0,J17*Simulador!$W$39*1.16) -> 0 | P17: =IFERROR(IF(B17=0,0,P16),0) -> 0 | R17: 0 | T17: =IFERROR(IF(Simulador!$U$30=1,0,IF($B17<=0,0,$B17*Simulador!$AA$43)),0) -> 0 | V17: =IFERROR(IF(Simulador!$U$30=1,0,IF($B17<=0,0,IF(Simulador!$D$22>0,Simulador!$D$22,Simulador!$O$24)*Simulador!$AA$44)),0) -> 0 | Y17: 0 | AD17: 0 | AE17: 3 | AF17: 0 | AG17: 0 | AH17: 0 | AI17: 0 | AJ17: 0 | AK17: =+AO16 -> 0 | AL17: 0 | AM17: 0 | AN17: =+AL17-AM17 -> 0 | AO17: =+AK17-AN17 -> 0 | AP17: =IFERROR(IF(Simulador!$U$30=1,0,IF($AK17<=0,0,$AK17*Simulador!$AA$43)),0)+IFERROR(IF(Simulador!$U$30=1,0,IF($AK17<=0,0,IF(Simulador!$D$22>0,Simulador!$D$22,Simulador!$O$24)*Simulador!$AA$44)),0) -> 0 | AQ17: 0 | AR17: =IFERROR(IF(AK17=0,0,AR16),0) -> 0 | AS17: 0 | AT17: =IF(AK17=0,"",DATE(YEAR(AT16),MONTH(AT16)+1,1)) ->  | AU17: 0 | AV17: 3
A18: 4 | B18: 0 | D18: =IF(B18+F18-D17<=0,B18+F18,IF(AND(Simulador!$U$62=1,$AF$3=2),B18*AJ18,D17)) -> 0 | F18: 0 | H18: 0 | L18: =IF(Simulador!$T$41=1,0,J18*Simulador!$W$39*1.16) -> 0 | N18: =IF(B18-H18=0,0,N16) -> 0 | P18: 0 | R18: 0 | T18: =IFERROR(IF(Simulador!$U$30=1,0,IF($B18<=0,0,$B18*Simulador!$AA$43)),0) -> 0 | V18: =IFERROR(IF(Simulador!$U$30=1,0,IF($B18<=0,0,IF(Simulador!$D$22>0,Simulador!$D$22,Simulador!$O$24)*Simulador!$AA$44)),0) -> 0 | Y18: 0 | AD18: 0 | AE18: 4 | AF18: 0 | AG18: 0 | AH18: 0 | AI18: 0 | AJ18: 0 | AK18: =+AO17 -> 0 | AL18: 0 | AM18: 0 | AN18: =+AL18-AM18 -> 0 | AO18: =+AK18-AN18 -> 0 | AP18: =IFERROR(IF(Simulador!$U$30=1,0,IF($AK18<=0,0,$AK18*Simulador!$AA$43)),0)+IFERROR(IF(Simulador!$U$30=1,0,IF($AK18<=0,0,IF(Simulador!$D$22>0,Simulador!$D$22,Simulador!$O$24)*Simulador!$AA$44)),0) -> 0 | AQ18: 0 | AR18: 0 | AS18: 0 | AU18: 0 | AV18: 4
A19: 5 | B19: 0 | D19: =IF(B19+F19-D18<=0,B19+F19,IF(AND(Simulador!$U$62=1,$AF$3=2),B19*AJ19,D18)) -> 0 | F19: 0 | H19: 0 | L19: =IF(Simulador!$T$41=1,0,J19*Simulador!$W$39*1.16) -> 0 | P19: 0 | R19: 0 | T19: =IFERROR(IF(Simulador!$U$30=1,0,IF($B19<=0,0,$B19*Simulador!$AA$43)),0) -> 0 | V19: =IFERROR(IF(Simulador!$U$30=1,0,IF($B19<=0,0,IF(Simulador!$D$22>0,Simulador!$D$22,Simulador!$O$24)*Simulador!$AA$44)),0) -> 0 | Y19: 0 | AD19: 0 | AE19: 5 | AF19: 0 | AG19: 0 | AH19: 0 | AI19: 0 | AJ19: 0 | AK19: =+AO18 -> 0 | AL19: 0 | AM19: 0 | AN19: =+AL19-AM19 -> 0 | AO19: =+AK19-AN19 -> 0 | AP19: =IFERROR(IF(Simulador!$U$30=1,0,IF($AK19<=0,0,$AK19*Simulador!$AA$43)),0)+IFERROR(IF(Simulador!$U$30=1,0,IF($AK19<=0,0,IF(Simulador!$D$22>0,Simulador!$D$22,Simulador!$O$24)*Simulador!$AA$44)),0) -> 0 | AQ19: 0 | AR19: 0 | AS19: 0 | AU19: 0 | AV19: 5
A20: 6 | B20: 0 | D20: =IF(B20+F20-D19<=0,B20+F20,IF(AND(Simulador!$U$62=1,$AF$3=2),B20*AJ20,D19)) -> 0 | F20: 0 | H20: 0 | L20: =IF(Simulador!$T$41=1,0,J20*Simulador!$W$39*1.16) -> 0 | N20: =IF(B20-H20=0,0,N18) -> 0 | P20: 0 | R20: 0 | T20: =IFERROR(IF(Simulador!$U$30=1,0,IF($B20<=0,0,$B20*Simulador!$AA$43)),0) -> 0 | V20: =IFERROR(IF(Simulador!$U$30=1,0,IF($B20<=0,0,IF(Simulador!$D$22>0,Simulador!$D$22,Simulador!$O$24)*Simulador!$AA$44)),0) -> 0 | Y20: 0 | AD20: 0 | AE20: 6 | AF20: 0 | AG20: 0 | AH20: 0 | AI20: 0 | AJ20: 0 | AK20: 0 | AL20: 0 | AM20: 0 | AN20: 0 | AO20: 0 | AP20: =IFERROR(IF(Simulador!$U$30=1,0,IF($AK20<=0,0,$AK20*Simulador!$AA$43)),0)+IFERROR(IF(Simulador!$U$30=1,0,IF($AK20<=0,0,IF(Simulador!$D$22>0,Simulador!$D$22,Simulador!$O$24)*Simulador!$AA$44)),0) -> 0 | AQ20: 0 | AR20: 0 | AS20: 0 | AU20: 0 | AV20: 6
A21: 7 | B21: 0 | D21: =IF(B21+F21-D20<=0,B21+F21,IF(AND(Simulador!$U$62=1,$AF$3=2),B21*AJ21,D20)) -> 0 | F21: 0 | H21: 0 | L21: =IF(Simulador!$T$41=1,0,J21*Simulador!$W$39*1.16) -> 0 | P21: 0 | R21: 0 | T21: =IFERROR(IF(Simulador!$U$30=1,0,IF($B21<=0,0,$B21*Simulador!$AA$43)),0) -> 0 | V21: =IFERROR(IF(Simulador!$U$30=1,0,IF($B21<=0,0,IF(Simulador!$D$22>0,Simulador!$D$22,Simulador!$O$24)*Simulador!$AA$44)),0) -> 0 | Y21: 0 | AD21: 0 | AE21: 7 | AF21: 0 | AG21: 0 | AH21: 0 | AI21: 0 | AJ21: 0 | AK21: 0 | AL21: 0 | AM21: 0 | AN21: 0 | AO21: 0 | AP21: =IFERROR(IF(Simulador!$U$30=1,0,IF($AK21<=0,0,$AK21*Simulador!$AA$43)),0)+IFERROR(IF(Simulador!$U$30=1,0,IF($AK21<=0,0,IF(Simulador!$D$22>0,Simulador!$D$22,Simulador!$O$24)*Simulador!$AA$44)),0) -> 0 | AQ21: 0 | AR21: 0 | AS21: 0 | AU21: 0 | AV21: 7
A22: 8 | B22: 0 | D22: =IF(B22+F22-D21<=0,B22+F22,IF(AND(Simulador!$U$62=1,$AF$3=2),B22*AJ22,D21)) -> 0 | F22: 0 | H22: 0 | L22: =IF(Simulador!$T$41=1,0,J22*Simulador!$W$39*1.16) -> 0 | N22: =IF(B22-H22=0,0,N20) -> 0 | P22: 0 | R22: 0 | T22: =IFERROR(IF(Simulador!$U$30=1,0,IF($B22<=0,0,$B22*Simulador!$AA$43)),0) -> 0 | V22: =IFERROR(IF(Simulador!$U$30=1,0,IF($B22<=0,0,IF(Simulador!$D$22>0,Simulador!$D$22,Simulador!$O$24)*Simulador!$AA$44)),0) -> 0 | Y22: 0 | AD22: 0 | AE22: 8 | AF22: 0 | AG22: 0 | AH22: 0 | AI22: 0 | AJ22: 0 | AK22: 0 | AL22: 0 | AM22: 0 | AN22: 0 | AO22: 0 | AP22: =IFERROR(IF(Simulador!$U$30=1,0,IF($AK22<=0,0,$AK22*Simulador!$AA$43)),0)+IFERROR(IF(Simulador!$U$30=1,0,IF($AK22<=0,0,IF(Simulador!$D$22>0,Simulador!$D$22,Simulador!$O$24)*Simulador!$AA$44)),0) -> 0 | AQ22: 0 | AR22: 0 | AS22: 0 | AU22: 0 | AV22: 8
A23: 9 | B23: 0 | D23: =IF(B23+F23-D22<=0,B23+F23,IF(AND(Simulador!$U$62=1,$AF$3=2),B23*AJ23,D22)) -> 0 | F23: 0 | H23: 0 | L23: =IF(Simulador!$T$41=1,0,J23*Simulador!$W$39*1.16) -> 0 | P23: 0 | R23: 0 | T23: =IFERROR(IF(Simulador!$U$30=1,0,IF($B23<=0,0,$B23*Simulador!$AA$43)),0) -> 0 | V23: =IFERROR(IF(Simulador!$U$30=1,0,IF($B23<=0,0,IF(Simulador!$D$22>0,Simulador!$D$22,Simulador!$O$24)*Simulador!$AA$44)),0) -> 0 | Y23: 0 | AD23: 0 | AE23: 9 | AF23: 0 | AG23: 0 | AH23: 0 | AI23: 0 | AJ23: 0 | AK23: 0 | AL23: 0 | AM23: 0 | AN23: 0 | AO23: 0 | AP23: =IFERROR(IF(Simulador!$U$30=1,0,IF($AK23<=0,0,$AK23*Simulador!$AA$43)),0)+IFERROR(IF(Simulador!$U$30=1,0,IF($AK23<=0,0,IF(Simulador!$D$22>0,Simulador!$D$22,Simulador!$O$24)*Simulador!$AA$44)),0) -> 0 | AQ23: 0 | AR23: 0 | AS23: 0 | AU23: 0 | AV23: 9
A24: 10 | B24: 0 | D24: =IF(B24+F24-D23<=0,B24+F24,IF(AND(Simulador!$U$62=1,$AF$3=2),B24*AJ24,D23)) -> 0 | F24: 0 | H24: 0 | L24: =IF(Simulador!$T$41=1,0,J24*Simulador!$W$39*1.16) -> 0 | N24: =IF(B24-H24=0,0,N22) -> 0 | P24: 0 | R24: 0 | T24: =IFERROR(IF(Simulador!$U$30=1,0,IF($B24<=0,0,$B24*Simulador!$AA$43)),0) -> 0 | V24: =IFERROR(IF(Simulador!$U$30=1,0,IF($B24<=0,0,IF(Simulador!$D$22>0,Simulador!$D$22,Simulador!$O$24)*Simulador!$AA$44)),0) -> 0 | Y24: 0 | AD24: 0 | AE24: 10 | AF24: 0 | AG24: 0 | AH24: 0 | AI24: 0 | AJ24: =IFERROR((AL24/AK24),0) -> 0 | AK24: =+AO23 -> 0 | AL24: 0 | AM24: 0 | AN24: 0 | AO24: =+AK24-AN24 -> 0 | AP24: =IFERROR(IF(Simulador!$U$30=1,0,IF($AK24<=0,0,$AK24*Simulador!$AA$43)),0)+IFERROR(IF(Simulador!$U$30=1,0,IF($AK24<=0,0,IF(Simulador!$D$22>0,Simulador!$D$22,Simulador!$O$24)*Simulador!$AA$44)),0) -> 0 | AQ24: 0 | AR24: 0 | AS24: 0 | AU24: 0 | AV24: 10
A25: 11 | B25: 0 | D25: =IF(B25+F25-D24<=0,B25+F25,IF(AND(Simulador!$U$62=1,$AF$3=2),B25*AJ25,D24)) -> 0 | F25: 0 | H25: 0 | L25: =IF(Simulador!$T$41=1,0,J25*Simulador!$W$39*1.16) -> 0 | P25: 0 | R25: 0 | T25: =IFERROR(IF(Simulador!$U$30=1,0,IF($B25<=0,0,$B25*Simulador!$AA$43)),0) -> 0 | V25: =IFERROR(IF(Simulador!$U$30=1,0,IF($B25<=0,0,IF(Simulador!$D$22>0,Simulador!$D$22,Simulador!$O$24)*Simulador!$AA$44)),0) -> 0 | Y25: 0 | AD25: 0 | AE25: 11 | AF25: 0 | AG25: 0 | AH25: 0 | AI25: 0 | AJ25: 0 | AK25: 0 | AL25: 0 | AM25: 0 | AN25: 0 | AO25: 0 | AP25: =IFERROR(IF(Simulador!$U$30=1,0,IF($AK25<=0,0,$AK25*Simulador!$AA$43)),0)+IFERROR(IF(Simulador!$U$30=1,0,IF($AK25<=0,0,IF(Simulador!$D$22>0,Simulador!$D$22,Simulador!$O$24)*Simulador!$AA$44)),0) -> 0 | AQ25: 0 | AR25: 0 | AS25: 0 | AU25: 0 | AV25: 11
A26: 12 | B26: 0 | D26: =IF(B26+F26-D25<=0,B26+F26,IF(AND(Simulador!$U$62=1,$AF$3=2),B26*AJ26,D25)) -> 0 | F26: 0 | H26: 0 | L26: =IF(Simulador!$T$41=1,0,J26*Simulador!$W$39*1.16) -> 0 | N26: =IF(B26-H26=0,0,N24) -> 0 | P26: 0 | R26: 0 | T26: =IFERROR(IF(Simulador!$U$30=1,0,IF($B26<=0,0,$B26*Simulador!$AA$43)),0) -> 0 | V26: =IFERROR(IF(Simulador!$U$30=1,0,IF($B26<=0,0,IF(Simulador!$D$22>0,Simulador!$D$22,Simulador!$O$24)*Simulador!$AA$44)),0) -> 0 | Y26: 0 | AD26: 1 | AE26: 0 | AF26: 0 | AG26: 0 | AH26: 0 | AI26: 0 | AJ26: 0 | AK26: 0 | AL26: 0 | AM26: 0 | AN26: 0 | AO26: 0 | AP26: =IFERROR(IF(Simulador!$U$30=1,0,IF($AK26<=0,0,$AK26*Simulador!$AA$43)),0)+IFERROR(IF(Simulador!$U$30=1,0,IF($AK26<=0,0,IF(Simulador!$D$22>0,Simulador!$D$22,Simulador!$O$24)*Simulador!$AA$44)),0) -> 0 | AQ26: 0 | AR26: 0 | AS26: 0 | AU26: 0 | AV26: 12
A27: 13 | B27: 0 | D27: =IF(B27+F27-D26<=0,B27+F27,IF(AND(Simulador!$U$62=1,$AF$3=2),B27*AJ27,D26)) -> 0 | F27: 0 | H27: 0 | L27: =IF(Simulador!$T$41=1,0,J27*Simulador!$W$39*1.16) -> 0 | P27: 0 | R27: 0 | T27: =IFERROR(IF(Simulador!$U$30=1,0,IF($B27<=0,0,$B27*Simulador!$AA$43)),0) -> 0 | V27: =IFERROR(IF(Simulador!$U$30=1,0,IF($B27<=0,0,IF(Simulador!$D$22>0,Simulador!$D$22,Simulador!$O$24)*Simulador!$AA$44)),0) -> 0 | Y27: 0 | AA27: =IF(B27<=0,0,Simulador!$I$46) -> 0 | AD27: 1 | AE27: 1 | AF27: 0 | AG27: 0 | AH27: 0 | AI27: 0 | AJ27: 0 | AK27: 0 | AL27: 0 | AM27: 0 | AN27: 0 | AO27: 0 | AP27: =IFERROR(IF(Simulador!$U$30=1,0,IF($AK27<=0,0,$AK27*Simulador!$AA$43)),0)+IFERROR(IF(Simulador!$U$30=1,0,IF($AK27<=0,0,IF(Simulador!$D$22>0,Simulador!$D$22,Simulador!$O$24)*Simulador!$AA$44)),0) -> 0 | AQ27: 0 | AR27: 0 | AS27: 0 | AU27: 0 | AV27: 13
A28: 14 | B28: 0 | D28: =IF(B28+F28-D27<=0,B28+F28,IF(AND(Simulador!$U$62=1,$AF$3=2),B28*AJ28,D27)) -> 0 | F28: 0 | H28: 0 | L28: =IF(Simulador!$T$41=1,0,J28*Simulador!$W$39*1.16) -> 0 | N28: =IF(B28-H28=0,0,N26*(1+(Simulador!$AH$72))) -> 0 | P28: 0 | R28: 0 | T28: =IFERROR(IF(Simulador!$U$30=1,0,IF($B28<=0,0,$B28*Simulador!$AA$43)),0) -> 0 | V28: =IFERROR(IF(Simulador!$U$30=1,0,IF($B28<=0,0,IF(Simulador!$D$22>0,Simulador!$D$22,Simulador!$O$24)*Simulador!$AA$44)),0) -> 0 | Y28: 0 | AD28: 1 | AE28: 2 | AF28: 0 | AG28: 0 | AH28: 0 | AI28: 0 | AJ28: 0 | AK28: 0 | AL28: 0 | AM28: 0 | AN28: 0 | AO28: 0 | AP28: =IFERROR(IF(Simulador!$U$30=1,0,IF($AK28<=0,0,$AK28*Simulador!$AA$43)),0)+IFERROR(IF(Simulador!$U$30=1,0,IF($AK28<=0,0,IF(Simulador!$D$22>0,Simulador!$D$22,Simulador!$O$24)*Simulador!$AA$44)),0) -> 0 | AQ28: 0 | AR28: 0 | AS28: 0 | AU28: 0 | AV28: 14
A29: 15 | B29: 0 | D29: =IF(B29+F29-D28<=0,B29+F29,IF(AND(Simulador!$U$62=1,$AF$3=2),B29*AJ29,D28)) -> 0 | F29: 0 | H29: 0 | L29: =IF(Simulador!$T$41=1,0,J29*Simulador!$W$39*1.16) -> 0 | P29: 0 | R29: 0 | T29: =IFERROR(IF(Simulador!$U$30=1,0,IF($B29<=0,0,$B29*Simulador!$AA$43)),0) -> 0 | V29: =IFERROR(IF(Simulador!$U$30=1,0,IF($B29<=0,0,IF(Simulador!$D$22>0,Simulador!$D$22,Simulador!$O$24)*Simulador!$AA$44)),0) -> 0 | Y29: 0 | AD29: 1 | AE29: 3 | AF29: 0 | AG29: 0 | AH29: 0 | AI29: 0 | AJ29: 0 | AK29: 0 | AL29: 0 | AM29: 0 | AN29: 0 | AO29: 0 | AP29: =IFERROR(IF(Simulador!$U$30=1,0,IF($AK29<=0,0,$AK29*Simulador!$AA$43)),0)+IFERROR(IF(Simulador!$U$30=1,0,IF($AK29<=0,0,IF(Simulador!$D$22>0,Simulador!$D$22,Simulador!$O$24)*Simulador!$AA$44)),0) -> 0 | AQ29: 0 | AR29: 0 | AS29: 0 | AU29: 0 | AV29: 15
A30: 16 | B30: 0 | D30: =IF(B30+F30-D29<=0,B30+F30,IF(AND(Simulador!$U$62=1,$AF$3=2),B30*AJ30,D29)) -> 0 | F30: 0 | H30: 0 | L30: =IF(Simulador!$T$41=1,0,J30*Simulador!$W$39*1.16) -> 0 | N30: =IF(B30-H30=0,0,N28) -> 0 | P30: 0 | R30: 0 | T30: =IFERROR(IF(Simulador!$U$30=1,0,IF($B30<=0,0,$B30*Simulador!$AA$43)),0) -> 0 | V30: =IFERROR(IF(Simulador!$U$30=1,0,IF($B30<=0,0,IF(Simulador!$D$22>0,Simulador!$D$22,Simulador!$O$24)*Simulador!$AA$44)),0) -> 0 | Y30: 0 | AD30: 1 | AE30: 4 | AF30: 0 | AG30: 0 | AH30: 0 | AI30: 0 | AJ30: 0 | AK30: 0 | AL30: 0 | AM30: 0 | AN30: 0 | AO30: 0 | AP30: =IFERROR(IF(Simulador!$U$30=1,0,IF($AK30<=0,0,$AK30*Simulador!$AA$43)),0)+IFERROR(IF(Simulador!$U$30=1,0,IF($AK30<=0,0,IF(Simulador!$D$22>0,Simulador!$D$22,Simulador!$O$24)*Simulador!$AA$44)),0) -> 0 | AQ30: 0 | AR30: 0 | AS30: 0 | AU30: 0 | AV30: 16
A31: 17 | B31: 0 | D31: =IF(B31+F31-D30<=0,B31+F31,IF(AND(Simulador!$U$62=1,$AF$3=2),B31*AJ31,D30)) -> 0 | F31: 0 | H31: 0 | L31: =IF(Simulador!$T$41=1,0,J31*Simulador!$W$39*1.16) -> 0 | P31: 0 | R31: =B31-H31-J31+L31-N31 -> 0 | T31: =IFERROR(IF(Simulador!$U$30=1,0,IF($B31<=0,0,$B31*Simulador!$AA$43)),0) -> 0 | V31: =IFERROR(IF(Simulador!$U$30=1,0,IF($B31<=0,0,IF(Simulador!$D$22>0,Simulador!$D$22,Simulador!$O$24)*Simulador!$AA$44)),0) -> 0 | Y31: 0 | AD31: 1 | AE31: 5 | AF31: 0 | AG31: 0 | AH31: 0 | AI31: 0 | AJ31: 0 | AK31: 0 | AL31: 0 | AM31: 0 | AN31: 0 | AO31: 0 | AP31: =IFERROR(IF(Simulador!$U$30=1,0,IF($AK31<=0,0,$AK31*Simulador!$AA$43)),0)+IFERROR(IF(Simulador!$U$30=1,0,IF($AK31<=0,0,IF(Simulador!$D$22>0,Simulador!$D$22,Simulador!$O$24)*Simulador!$AA$44)),0) -> 0 | AQ31: 0 | AR31: 0 | AS31: 0 | AU31: 0 | AV31: 17
A32: 18 | B32: 0 | D32: =IF(B32+F32-D31<=0,B32+F32,IF(AND(Simulador!$U$62=1,$AF$3=2),B32*AJ32,D31)) -> 0 | F32: 0 | H32: 0 | L32: =IF(Simulador!$T$41=1,0,J32*Simulador!$W$39*1.16) -> 0 | N32: =IF(B32-H32=0,0,N30) -> 0 | P32: 0 | R32: 0 | T32: =IFERROR(IF(Simulador!$U$30=1,0,IF($B32<=0,0,$B32*Simulador!$AA$43)),0) -> 0 | V32: =IFERROR(IF(Simulador!$U$30=1,0,IF($B32<=0,0,IF(Simulador!$D$22>0,Simulador!$D$22,Simulador!$O$24)*Simulador!$AA$44)),0) -> 0 | Y32: 0 | AD32: 1 | AE32: 6 | AF32: 0 | AG32: 0 | AH32: 0 | AI32: 0 | AJ32: 0 | AK32: 0 | AL32: 0 | AM32: 0 | AN32: 0 | AO32: 0 | AP32: =IFERROR(IF(Simulador!$U$30=1,0,IF($AK32<=0,0,$AK32*Simulador!$AA$43)),0)+IFERROR(IF(Simulador!$U$30=1,0,IF($AK32<=0,0,IF(Simulador!$D$22>0,Simulador!$D$22,Simulador!$O$24)*Simulador!$AA$44)),0) -> 0 | AQ32: 0 | AR32: 0 | AS32: 0 | AU32: 0 | AV32: 18
A33: 19 | B33: 0 | D33: =IF(B33+F33-D32<=0,B33+F33,IF(AND(Simulador!$U$62=1,$AF$3=2),B33*AJ33,D32)) -> 0 | F33: 0 | H33: 0 | L33: =IF(Simulador!$T$41=1,0,J33*Simulador!$W$39*1.16) -> 0 | P33: 0 | R33: 0 | T33: =IFERROR(IF(Simulador!$U$30=1,0,IF($B33<=0,0,$B33*Simulador!$AA$43)),0) -> 0 | V33: =IFERROR(IF(Simulador!$U$30=1,0,IF($B33<=0,0,IF(Simulador!$D$22>0,Simulador!$D$22,Simulador!$O$24)*Simulador!$AA$44)),0) -> 0 | Y33: 0 | AD33: 1 | AE33: 7 | AF33: 0 | AG33: 0 | AH33: 0 | AI33: 0 | AJ33: 0 | AK33: 0 | AL33: =IFERROR((IF(AK33+AM33-AL32<0, AK33+AM33, AL32*(1+AA33))),0) -> 0 | AM33: 0 | AN33: 0 | AO33: 0 | AP33: =IFERROR(IF(Simulador!$U$30=1,0,IF($AK33<=0,0,$AK33*Simulador!$AA$43)),0)+IFERROR(IF(Simulador!$U$30=1,0,IF($AK33<=0,0,IF(Simulador!$D$22>0,Simulador!$D$22,Simulador!$O$24)*Simulador!$AA$44)),0) -> 0 | AQ33: 0 | AR33: 0 | AS33: 0 | AU33: 0 | AV33: 19
A34: 20 | B34: 0 | D34: =IF(B34+F34-D33<=0,B34+F34,IF(AND(Simulador!$U$62=1,$AF$3=2),B34*AJ34,D33)) -> 0 | F34: 0 | H34: 0 | L34: =IF(Simulador!$T$41=1,0,J34*Simulador!$W$39*1.16) -> 0 | N34: =IF(B34-H34=0,0,N32) -> 0 | P34: 0 | R34: 0 | T34: =IFERROR(IF(Simulador!$U$30=1,0,IF($B34<=0,0,$B34*Simulador!$AA$43)),0) -> 0 | V34: =IFERROR(IF(Simulador!$U$30=1,0,IF($B34<=0,0,IF(Simulador!$D$22>0,Simulador!$D$22,Simulador!$O$24)*Simulador!$AA$44)),0) -> 0 | Y34: 0 | AD34: 1 | AE34: 8 | AF34: 0 | AG34: 0 | AH34: 0 | AI34: 0 | AJ34: 0 | AK34: 0 | AL34: 0 | AM34: 0 | AN34: 0 | AO34: 0 | AP34: =IFERROR(IF(Simulador!$U$30=1,0,IF($AK34<=0,0,$AK34*Simulador!$AA$43)),0)+IFERROR(IF(Simulador!$U$30=1,0,IF($AK34<=0,0,IF(Simulador!$D$22>0,Simulador!$D$22,Simulador!$O$24)*Simulador!$AA$44)),0) -> 0 | AQ34: 0 | AR34: 0 | AS34: 0 | AU34: 0 | AV34: 20
A35: 21 | B35: 0 | D35: =IF(B35+F35-D34<=0,B35+F35,IF(AND(Simulador!$U$62=1,$AF$3=2),B35*AJ35,D34)) -> 0 | F35: 0 | H35: 0 | L35: =IF(Simulador!$T$41=1,0,J35*Simulador!$W$39*1.16) -> 0 | P35: 0 | R35: 0 | T35: =IFERROR(IF(Simulador!$U$30=1,0,IF($B35<=0,0,$B35*Simulador!$AA$43)),0) -> 0 | V35: =IFERROR(IF(Simulador!$U$30=1,0,IF($B35<=0,0,IF(Simulador!$D$22>0,Simulador!$D$22,Simulador!$O$24)*Simulador!$AA$44)),0) -> 0 | Y35: 0 | AD35: 1 | AE35: 9 | AF35: 0 | AG35: 0 | AH35: 0 | AI35: 0 | AJ35: 0 | AK35: 0 | AL35: 0 | AM35: 0 | AN35: 0 | AO35: 0 | AP35: =IFERROR(IF(Simulador!$U$30=1,0,IF($AK35<=0,0,$AK35*Simulador!$AA$43)),0)+IFERROR(IF(Simulador!$U$30=1,0,IF($AK35<=0,0,IF(Simulador!$D$22>0,Simulador!$D$22,Simulador!$O$24)*Simulador!$AA$44)),0) -> 0 | AQ35: 0 | AR35: 0 | AS35: 0 | AU35: 0 | AV35: 21
A36: 22 | B36: 0 | D36: =IF(B36+F36-D35<=0,B36+F36,IF(AND(Simulador!$U$62=1,$AF$3=2),B36*AJ36,D35)) -> 0 | F36: 0 | H36: 0 | L36: =IF(Simulador!$T$41=1,0,J36*Simulador!$W$39*1.16) -> 0 | N36: =IF(B36-H36=0,0,N34) -> 0 | P36: 0 | R36: 0 | T36: =IFERROR(IF(Simulador!$U$30=1,0,IF($B36<=0,0,$B36*Simulador!$AA$43)),0) -> 0 | V36: =IFERROR(IF(Simulador!$U$30=1,0,IF($B36<=0,0,IF(Simulador!$D$22>0,Simulador!$D$22,Simulador!$O$24)*Simulador!$AA$44)),0) -> 0 | Y36: 0 | AD36: 1 | AE36: 10 | AF36: 0 | AG36: 0 | AH36: 0 | AI36: 0 | AJ36: 0 | AK36: 0 | AL36: 0 | AM36: 0 | AN36: 0 | AO36: 0 | AP36: =IFERROR(IF(Simulador!$U$30=1,0,IF($AK36<=0,0,$AK36*Simulador!$AA$43)),0)+IFERROR(IF(Simulador!$U$30=1,0,IF($AK36<=0,0,IF(Simulador!$D$22>0,Simulador!$D$22,Simulador!$O$24)*Simulador!$AA$44)),0) -> 0 | AQ36: 0 | AR36: 0 | AS36: 0 | AU36: 0 | AV36: 22
A37: 23 | B37: 0 | D37: =IF(B37+F37-D36<=0,B37+F37,IF(AND(Simulador!$U$62=1,$AF$3=2),B37*AJ37,D36)) -> 0 | F37: 0 | H37: 0 | L37: =IF(Simulador!$T$41=1,0,J37*Simulador!$W$39*1.16) -> 0 | P37: 0 | R37: 0 | T37: =IFERROR(IF(Simulador!$U$30=1,0,IF($B37<=0,0,$B37*Simulador!$AA$43)),0) -> 0 | V37: =IFERROR(IF(Simulador!$U$30=1,0,IF($B37<=0,0,IF(Simulador!$D$22>0,Simulador!$D$22,Simulador!$O$24)*Simulador!$AA$44)),0) -> 0 | Y37: 0 | AD37: 1 | AE37: 11 | AF37: 0 | AG37: 0 | AH37: 0 | AI37: 0 | AJ37: 0 | AK37: 0 | AL37: 0 | AM37: 0 | AN37: 0 | AO37: 0 | AP37: =IFERROR(IF(Simulador!$U$30=1,0,IF($AK37<=0,0,$AK37*Simulador!$AA$43)),0)+IFERROR(IF(Simulador!$U$30=1,0,IF($AK37<=0,0,IF(Simulador!$D$22>0,Simulador!$D$22,Simulador!$O$24)*Simulador!$AA$44)),0) -> 0 | AQ37: 0 | AR37: 0 | AS37: 0 | AU37: 0 | AV37: 23
A38: 24 | B38: 0 | D38: =IF(B38+F38-D37<=0,B38+F38,IF(AND(Simulador!$U$62=1,$AF$3=2),B38*AJ38,D37)) -> 0 | F38: 0 | H38: 0 | L38: =IF(Simulador!$T$41=1,0,J38*Simulador!$W$39*1.16) -> 0 | N38: =IF(B38-H38=0,0,N36) -> 0 | P38: 0 | R38: 0 | T38: =IFERROR(IF(Simulador!$U$30=1,0,IF($B38<=0,0,$B38*Simulador!$AA$43)),0) -> 0 | V38: =IFERROR(IF(Simulador!$U$30=1,0,IF($B38<=0,0,IF(Simulador!$D$22>0,Simulador!$D$22,Simulador!$O$24)*Simulador!$AA$44)),0) -> 0 | Y38: 0 | AD38: 2 | AE38: 0 | AF38: 0 | AG38: 0 | AH38: 0 | AI38: 0 | AJ38: 0 | AK38: 0 | AL38: 0 | AM38: 0 | AN38: 0 | AO38: 0 | AP38: =IFERROR(IF(Simulador!$U$30=1,0,IF($AK38<=0,0,$AK38*Simulador!$AA$43)),0)+IFERROR(IF(Simulador!$U$30=1,0,IF($AK38<=0,0,IF(Simulador!$D$22>0,Simulador!$D$22,Simulador!$O$24)*Simulador!$AA$44)),0) -> 0 | AQ38: 0 | AR38: 0 | AS38: 0 | AU38: 0 | AV38: 24
A39: 25 | B39: 0 | D39: =IF(B39+F39-D38<=0,B39+F39,IF(AND(Simulador!$U$62=1,$AF$3=2),B39*AJ39,D38)) -> 0 | F39: 0 | H39: 0 | L39: =IF(Simulador!$T$41=1,0,J39*Simulador!$W$39*1.16) -> 0 | P39: 0 | R39: 0 | T39: =IFERROR(IF(Simulador!$U$30=1,0,IF($B39<=0,0,$B39*Simulador!$AA$43)),0) -> 0 | V39: =IFERROR(IF(Simulador!$U$30=1,0,IF($B39<=0,0,IF(Simulador!$D$22>0,Simulador!$D$22,Simulador!$O$24)*Simulador!$AA$44)),0) -> 0 | Y39: 0 | AA39: =IF(B39<=0,0,Simulador!$I$46) -> 0 | AD39: 2 | AE39: 1 | AF39: 0 | AG39: 0 | AH39: 0 | AI39: 0 | AJ39: 0 | AK39: 0 | AL39: 0 | AM39: 0 | AN39: 0 | AO39: 0 | AP39: =IFERROR(IF(Simulador!$U$30=1,0,IF($AK39<=0,0,$AK39*Simulador!$AA$43)),0)+IFERROR(IF(Simulador!$U$30=1,0,IF($AK39<=0,0,IF(Simulador!$D$22>0,Simulador!$D$22,Simulador!$O$24)*Simulador!$AA$44)),0) -> 0 | AQ39: 0 | AR39: 0 | AS39: 0 | AU39: 0 | AV39: 25
A40: 26 | B40: 0 | D40: =IF(B40+F40-D39<=0,B40+F40,IF(AND(Simulador!$U$62=1,$AF$3=2),B40*AJ40,D39)) -> 0 | F40: 0 | H40: 0 | L40: =IF(Simulador!$T$41=1,0,J40*Simulador!$W$39*1.16) -> 0 | N40: =IF(B40-H40=0,0,N38*(1+(Simulador!$AH$72))) -> 0 | P40: 0 | R40: 0 | T40: =IFERROR(IF(Simulador!$U$30=1,0,IF($B40<=0,0,$B40*Simulador!$AA$43)),0) -> 0 | V40: =IFERROR(IF(Simulador!$U$30=1,0,IF($B40<=0,0,IF(Simulador!$D$22>0,Simulador!$D$22,Simulador!$O$24)*Simulador!$AA$44)),0) -> 0 | Y40: 0 | AD40: 2 | AE40: 2 | AF40: 0 | AG40: 0 | AH40: 0 | AI40: 0 | AJ40: 0 | AK40: 0 | AL40: 0 | AM40: 0 | AN40: 0 | AO40: 0 | AP40: =IFERROR(IF(Simulador!$U$30=1,0,IF($AK40<=0,0,$AK40*Simulador!$AA$43)),0)+IFERROR(IF(Simulador!$U$30=1,0,IF($AK40<=0,0,IF(Simulador!$D$22>0,Simulador!$D$22,Simulador!$O$24)*Simulador!$AA$44)),0) -> 0 | AQ40: 0 | AR40: 0 | AS40: 0 | AU40: 0 | AV40: 26
A41: 27 | B41: 0 | D41: =IF(B41+F41-D40<=0,B41+F41,IF(AND(Simulador!$U$62=1,$AF$3=2),B41*AJ41,D40)) -> 0 | F41: 0 | H41: 0 | L41: =IF(Simulador!$T$41=1,0,J41*Simulador!$W$39*1.16) -> 0 | P41: 0 | R41: 0 | T41: =IFERROR(IF(Simulador!$U$30=1,0,IF($B41<=0,0,$B41*Simulador!$AA$43)),0) -> 0 | V41: =IFERROR(IF(Simulador!$U$30=1,0,IF($B41<=0,0,IF(Simulador!$D$22>0,Simulador!$D$22,Simulador!$O$24)*Simulador!$AA$44)),0) -> 0 | Y41: 0 | AD41: 2 | AE41: 3 | AF41: 0 | AG41: 0 | AH41: 0 | AI41: 0 | AJ41: 0 | AK41: 0 | AL41: 0 | AM41: 0 | AN41: 0 | AO41: 0 | AP41: =IFERROR(IF(Simulador!$U$30=1,0,IF($AK41<=0,0,$AK41*Simulador!$AA$43)),0)+IFERROR(IF(Simulador!$U$30=1,0,IF($AK41<=0,0,IF(Simulador!$D$22>0,Simulador!$D$22,Simulador!$O$24)*Simulador!$AA$44)),0) -> 0 | AQ41: 0 | AR41: 0 | AS41: 0 | AU41: 0 | AV41: 27
A42: 28 | B42: 0 | D42: =IF(B42+F42-D41<=0,B42+F42,IF(AND(Simulador!$U$62=1,$AF$3=2),B42*AJ42,D41)) -> 0 | F42: 0 | H42: 0 | L42: =IF(Simulador!$T$41=1,0,J42*Simulador!$W$39*1.16) -> 0 | N42: =IF(B42-H42=0,0,N40) -> 0 | P42: 0 | R42: 0 | T42: =IFERROR(IF(Simulador!$U$30=1,0,IF($B42<=0,0,$B42*Simulador!$AA$43)),0) -> 0 | V42: =IFERROR(IF(Simulador!$U$30=1,0,IF($B42<=0,0,IF(Simulador!$D$22>0,Simulador!$D$22,Simulador!$O$24)*Simulador!$AA$44)),0) -> 0 | Y42: 0 | AD42: 2 | AE42: 4 | AF42: 0 | AG42: 0 | AH42: 0 | AI42: 0 | AJ42: 0 | AK42: 0 | AL42: 0 | AM42: 0 | AN42: 0 | AO42: 0 | AP42: =IFERROR(IF(Simulador!$U$30=1,0,IF($AK42<=0,0,$AK42*Simulador!$AA$43)),0)+IFERROR(IF(Simulador!$U$30=1,0,IF($AK42<=0,0,IF(Simulador!$D$22>0,Simulador!$D$22,Simulador!$O$24)*Simulador!$AA$44)),0) -> 0 | AQ42: 0 | AR42: 0 | AS42: 0 | AU42: 0 | AV42: 28
A43: 29 | B43: 0 | D43: =IF(B43+F43-D42<=0,B43+F43,IF(AND(Simulador!$U$62=1,$AF$3=2),B43*AJ43,D42)) -> 0 | F43: 0 | H43: 0 | L43: =IF(Simulador!$T$41=1,0,J43*Simulador!$W$39*1.16) -> 0 | P43: 0 | R43: 0 | T43: =IFERROR(IF(Simulador!$U$30=1,0,IF($B43<=0,0,$B43*Simulador!$AA$43)),0) -> 0 | V43: =IFERROR(IF(Simulador!$U$30=1,0,IF($B43<=0,0,IF(Simulador!$D$22>0,Simulador!$D$22,Simulador!$O$24)*Simulador!$AA$44)),0) -> 0 | Y43: 0 | AD43: 2 | AE43: 5 | AF43: 0 | AG43: 0 | AH43: 0 | AI43: 0 | AJ43: 0 | AK43: 0 | AL43: 0 | AM43: 0 | AN43: 0 | AO43: 0 | AP43: =IFERROR(IF(Simulador!$U$30=1,0,IF($AK43<=0,0,$AK43*Simulador!$AA$43)),0)+IFERROR(IF(Simulador!$U$30=1,0,IF($AK43<=0,0,IF(Simulador!$D$22>0,Simulador!$D$22,Simulador!$O$24)*Simulador!$AA$44)),0) -> 0 | AQ43: 0 | AR43: 0 | AS43: 0 | AU43: 0 | AV43: 29
A44: 30 | B44: 0 | D44: =IF(B44+F44-D43<=0,B44+F44,IF(AND(Simulador!$U$62=1,$AF$3=2),B44*AJ44,D43)) -> 0 | F44: 0 | H44: 0 | L44: =IF(Simulador!$T$41=1,0,J44*Simulador!$W$39*1.16) -> 0 | N44: =IF(B44-H44=0,0,N42) -> 0 | P44: 0 | R44: 0 | T44: =IFERROR(IF(Simulador!$U$30=1,0,IF($B44<=0,0,$B44*Simulador!$AA$43)),0) -> 0 | V44: =IFERROR(IF(Simulador!$U$30=1,0,IF($B44<=0,0,IF(Simulador!$D$22>0,Simulador!$D$22,Simulador!$O$24)*Simulador!$AA$44)),0) -> 0 | Y44: 0 | AD44: 2 | AE44: 6 | AF44: 0 | AG44: =IF(AF44>0,AD44,0) -> 0 | AH44: 0 | AI44: 0 | AJ44: 0 | AK44: 0 | AL44: 0 | AM44: 0 | AN44: 0 | AO44: 0 | AP44: =IFERROR(IF(Simulador!$U$30=1,0,IF($AK44<=0,0,$AK44*Simulador!$AA$43)),0)+IFERROR(IF(Simulador!$U$30=1,0,IF($AK44<=0,0,IF(Simulador!$D$22>0,Simulador!$D$22,Simulador!$O$24)*Simulador!$AA$44)),0) -> 0 | AQ44: 0 | AR44: 0 | AS44: 0 | AU44: 0 | AV44: 30
A45: 31 | B45: 0 | D45: =IF(B45+F45-D44<=0,B45+F45,IF(AND(Simulador!$U$62=1,$AF$3=2),B45*AJ45,D44)) -> 0 | F45: 0 | H45: 0 | L45: =IF(Simulador!$T$41=1,0,J45*Simulador!$W$39*1.16) -> 0 | P45: 0 | R45: 0 | T45: =IFERROR(IF(Simulador!$U$30=1,0,IF($B45<=0,0,$B45*Simulador!$AA$43)),0) -> 0 | V45: =IFERROR(IF(Simulador!$U$30=1,0,IF($B45<=0,0,IF(Simulador!$D$22>0,Simulador!$D$22,Simulador!$O$24)*Simulador!$AA$44)),0) -> 0 | Y45: 0 | AD45: 2 | AE45: 7 | AF45: 0 | AG45: 0 | AH45: 0 | AI45: 0 | AJ45: 0 | AK45: 0 | AL45: 0 | AM45: 0 | AN45: 0 | AO45: 0 | AP45: =IFERROR(IF(Simulador!$U$30=1,0,IF($AK45<=0,0,$AK45*Simulador!$AA$43)),0)+IFERROR(IF(Simulador!$U$30=1,0,IF($AK45<=0,0,IF(Simulador!$D$22>0,Simulador!$D$22,Simulador!$O$24)*Simulador!$AA$44)),0) -> 0 | AQ45: 0 | AR45: 0 | AS45: 0 | AU45: 0 | AV45: 31
A46: 32 | B46: 0 | D46: =IF(B46+F46-D45<=0,B46+F46,IF(AND(Simulador!$U$62=1,$AF$3=2),B46*AJ46,D45)) -> 0 | F46: 0 | H46: 0 | L46: =IF(Simulador!$T$41=1,0,J46*Simulador!$W$39*1.16) -> 0 | N46: =IF(B46-H46=0,0,N44) -> 0 | P46: 0 | R46: 0 | T46: =IFERROR(IF(Simulador!$U$30=1,0,IF($B46<=0,0,$B46*Simulador!$AA$43)),0) -> 0 | V46: =IFERROR(IF(Simulador!$U$30=1,0,IF($B46<=0,0,IF(Simulador!$D$22>0,Simulador!$D$22,Simulador!$O$24)*Simulador!$AA$44)),0) -> 0 | Y46: 0 | AD46: 2 | AE46: 8 | AF46: 0 | AG46: 0 | AH46: 0 | AI46: 0 | AJ46: 0 | AK46: 0 | AL46: 0 | AM46: 0 | AN46: 0 | AO46: 0 | AP46: =IFERROR(IF(Simulador!$U$30=1,0,IF($AK46<=0,0,$AK46*Simulador!$AA$43)),0)+IFERROR(IF(Simulador!$U$30=1,0,IF($AK46<=0,0,IF(Simulador!$D$22>0,Simulador!$D$22,Simulador!$O$24)*Simulador!$AA$44)),0) -> 0 | AQ46: 0 | AR46: 0 | AS46: 0 | AU46: 0 | AV46: 32
A47: 33 | B47: 0 | D47: =IF(B47+F47-D46<=0,B47+F47,IF(AND(Simulador!$U$62=1,$AF$3=2),B47*AJ47,D46)) -> 0 | F47: 0 | H47: 0 | L47: =IF(Simulador!$T$41=1,0,J47*Simulador!$W$39*1.16) -> 0 | P47: 0 | R47: 0 | T47: =IFERROR(IF(Simulador!$U$30=1,0,IF($B47<=0,0,$B47*Simulador!$AA$43)),0) -> 0 | V47: =IFERROR(IF(Simulador!$U$30=1,0,IF($B47<=0,0,IF(Simulador!$D$22>0,Simulador!$D$22,Simulador!$O$24)*Simulador!$AA$44)),0) -> 0 | Y47: 0 | AD47: 2 | AE47: 9 | AF47: 0 | AG47: 0 | AH47: 0 | AI47: 0 | AJ47: 0 | AK47: 0 | AL47: 0 | AM47: 0 | AN47: 0 | AO47: 0 | AP47: =IFERROR(IF(Simulador!$U$30=1,0,IF($AK47<=0,0,$AK47*Simulador!$AA$43)),0)+IFERROR(IF(Simulador!$U$30=1,0,IF($AK47<=0,0,IF(Simulador!$D$22>0,Simulador!$D$22,Simulador!$O$24)*Simulador!$AA$44)),0) -> 0 | AQ47: 0 | AR47: 0 | AS47: 0 | AU47: 0 | AV47: 33
A48: 34 | B48: 0 | D48: =IF(B48+F48-D47<=0,B48+F48,IF(AND(Simulador!$U$62=1,$AF$3=2),B48*AJ48,D47)) -> 0 | F48: 0 | H48: 0 | L48: =IF(Simulador!$T$41=1,0,J48*Simulador!$W$39*1.16) -> 0 | N48: =IF(B48-H48=0,0,N46) -> 0 | P48: 0 | R48: 0 | T48: =IFERROR(IF(Simulador!$U$30=1,0,IF($B48<=0,0,$B48*Simulador!$AA$43)),0) -> 0 | V48: =IFERROR(IF(Simulador!$U$30=1,0,IF($B48<=0,0,IF(Simulador!$D$22>0,Simulador!$D$22,Simulador!$O$24)*Simulador!$AA$44)),0) -> 0 | Y48: 0 | AD48: 2 | AE48: 10 | AF48: 0 | AG48: 0 | AH48: 0 | AI48: 0 | AJ48: 0 | AK48: 0 | AL48: 0 | AM48: 0 | AN48: 0 | AO48: 0 | AP48: =IFERROR(IF(Simulador!$U$30=1,0,IF($AK48<=0,0,$AK48*Simulador!$AA$43)),0)+IFERROR(IF(Simulador!$U$30=1,0,IF($AK48<=0,0,IF(Simulador!$D$22>0,Simulador!$D$22,Simulador!$O$24)*Simulador!$AA$44)),0) -> 0 | AQ48: 0 | AR48: 0 | AS48: 0 | AU48: 0 | AV48: 34
A49: 35 | B49: 0 | D49: =IF(B49+F49-D48<=0,B49+F49,IF(AND(Simulador!$U$62=1,$AF$3=2),B49*AJ49,D48)) -> 0 | F49: 0 | H49: 0 | L49: =IF(Simulador!$T$41=1,0,J49*Simulador!$W$39*1.16) -> 0 | P49: 0 | R49: 0 | T49: =IFERROR(IF(Simulador!$U$30=1,0,IF($B49<=0,0,$B49*Simulador!$AA$43)),0) -> 0 | V49: =IFERROR(IF(Simulador!$U$30=1,0,IF($B49<=0,0,IF(Simulador!$D$22>0,Simulador!$D$22,Simulador!$O$24)*Simulador!$AA$44)),0) -> 0 | Y49: 0 | AD49: 2 | AE49: 11 | AF49: 0 | AG49: 0 | AH49: 0 | AI49: 0 | AJ49: 0 | AK49: 0 | AL49: 0 | AM49: 0 | AN49: 0 | AO49: 0 | AP49: =IFERROR(IF(Simulador!$U$30=1,0,IF($AK49<=0,0,$AK49*Simulador!$AA$43)),0)+IFERROR(IF(Simulador!$U$30=1,0,IF($AK49<=0,0,IF(Simulador!$D$22>0,Simulador!$D$22,Simulador!$O$24)*Simulador!$AA$44)),0) -> 0 | AQ49: 0 | AR49: 0 | AS49: 0 | AU49: 0 | AV49: 35
A50: 36 | B50: 0 | D50: =IF(B50+F50-D49<=0,B50+F50,IF(AND(Simulador!$U$62=1,$AF$3=2),B50*AJ50,D49)) -> 0 | F50: 0 | H50: 0 | L50: =IF(Simulador!$T$41=1,0,J50*Simulador!$W$39*1.16) -> 0 | N50: =IF(B50-H50=0,0,N48) -> 0 | P50: 0 | R50: 0 | T50: =IFERROR(IF(Simulador!$U$30=1,0,IF($B50<=0,0,$B50*Simulador!$AA$43)),0) -> 0 | V50: =IFERROR(IF(Simulador!$U$30=1,0,IF($B50<=0,0,IF(Simulador!$D$22>0,Simulador!$D$22,Simulador!$O$24)*Simulador!$AA$44)),0) -> 0 | Y50: 0 | AD50: 3 | AE50: 0 | AF50: 0 | AG50: 0 | AH50: 0 | AI50: 0 | AJ50: 0 | AK50: 0 | AL50: 0 | AM50: 0 | AN50: 0 | AO50: 0 | AP50: =IFERROR(IF(Simulador!$U$30=1,0,IF($AK50<=0,0,$AK50*Simulador!$AA$43)),0)+IFERROR(IF(Simulador!$U$30=1,0,IF($AK50<=0,0,IF(Simulador!$D$22>0,Simulador!$D$22,Simulador!$O$24)*Simulador!$AA$44)),0) -> 0 | AQ50: 0 | AR50: 0 | AS50: 0 | AU50: 0 | AV50: 36
A51: 37 | B51: 0 | D51: =IF(B51+F51-D50<=0,B51+F51,IF(AND(Simulador!$U$62=1,$AF$3=2),B51*AJ51,D50)) -> 0 | F51: 0 | H51: 0 | L51: =IF(Simulador!$T$41=1,0,J51*Simulador!$W$39*1.16) -> 0 | P51: 0 | R51: 0 | T51: =IFERROR(IF(Simulador!$U$30=1,0,IF($B51<=0,0,$B51*Simulador!$AA$43)),0) -> 0 | V51: =IFERROR(IF(Simulador!$U$30=1,0,IF($B51<=0,0,IF(Simulador!$D$22>0,Simulador!$D$22,Simulador!$O$24)*Simulador!$AA$44)),0) -> 0 | Y51: 0 | AA51: =IF(B51<=0,0,Simulador!$I$46) -> 0 | AD51: 3 | AE51: 1 | AF51: 0 | AG51: 0 | AH51: 0 | AI51: 0 | AJ51: 0 | AK51: 0 | AL51: 0 | AM51: 0 | AN51: 0 | AO51: 0 | AP51: =IFERROR(IF(Simulador!$U$30=1,0,IF($AK51<=0,0,$AK51*Simulador!$AA$43)),0)+IFERROR(IF(Simulador!$U$30=1,0,IF($AK51<=0,0,IF(Simulador!$D$22>0,Simulador!$D$22,Simulador!$O$24)*Simulador!$AA$44)),0) -> 0 | AQ51: 0 | AR51: 0 | AS51: 0 | AU51: 0 | AV51: 37
A52: 38 | B52: 0 | D52: =IF(B52+F52-D51<=0,B52+F52,IF(AND(Simulador!$U$62=1,$AF$3=2),B52*AJ52,D51)) -> 0 | F52: 0 | H52: 0 | L52: =IF(Simulador!$T$41=1,0,J52*Simulador!$W$39*1.16) -> 0 | N52: =IF(B52-H52=0,0,N50*(1+(Simulador!$AH$72))) -> 0 | P52: 0 | R52: 0 | T52: =IFERROR(IF(Simulador!$U$30=1,0,IF($B52<=0,0,$B52*Simulador!$AA$43)),0) -> 0 | V52: =IFERROR(IF(Simulador!$U$30=1,0,IF($B52<=0,0,IF(Simulador!$D$22>0,Simulador!$D$22,Simulador!$O$24)*Simulador!$AA$44)),0) -> 0 | Y52: 0 | AD52: 3 | AE52: 2 | AF52: 0 | AG52: 0 | AH52: 0 | AI52: 0 | AJ52: 0 | AK52: 0 | AL52: 0 | AM52: 0 | AN52: 0 | AO52: 0 | AP52: =IFERROR(IF(Simulador!$U$30=1,0,IF($AK52<=0,0,$AK52*Simulador!$AA$43)),0)+IFERROR(IF(Simulador!$U$30=1,0,IF($AK52<=0,0,IF(Simulador!$D$22>0,Simulador!$D$22,Simulador!$O$24)*Simulador!$AA$44)),0) -> 0 | AQ52: 0 | AR52: 0 | AS52: 0 | AU52: 0 | AV52: 38
A53: 39 | B53: 0 | D53: =IF(B53+F53-D52<=0,B53+F53,IF(AND(Simulador!$U$62=1,$AF$3=2),B53*AJ53,D52)) -> 0 | F53: 0 | H53: 0 | L53: =IF(Simulador!$T$41=1,0,J53*Simulador!$W$39*1.16) -> 0 | P53: 0 | R53: 0 | T53: =IFERROR(IF(Simulador!$U$30=1,0,IF($B53<=0,0,$B53*Simulador!$AA$43)),0) -> 0 | V53: =IFERROR(IF(Simulador!$U$30=1,0,IF($B53<=0,0,IF(Simulador!$D$22>0,Simulador!$D$22,Simulador!$O$24)*Simulador!$AA$44)),0) -> 0 | Y53: 0 | AD53: 3 | AE53: 3 | AF53: 0 | AG53: 0 | AH53: 0 | AI53: 0 | AJ53: 0 | AK53: 0 | AL53: 0 | AM53: 0 | AN53: 0 | AO53: 0 | AP53: =IFERROR(IF(Simulador!$U$30=1,0,IF($AK53<=0,0,$AK53*Simulador!$AA$43)),0)+IFERROR(IF(Simulador!$U$30=1,0,IF($AK53<=0,0,IF(Simulador!$D$22>0,Simulador!$D$22,Simulador!$O$24)*Simulador!$AA$44)),0) -> 0 | AQ53: 0 | AR53: 0 | AS53: 0 | AU53: 0 | AV53: 39
A54: 40 | B54: 0 | D54: =IF(B54+F54-D53<=0,B54+F54,IF(AND(Simulador!$U$62=1,$AF$3=2),B54*AJ54,D53)) -> 0 | F54: 0 | H54: 0 | L54: =IF(Simulador!$T$41=1,0,J54*Simulador!$W$39*1.16) -> 0 | N54: =IF(B54-H54=0,0,N52) -> 0 | P54: 0 | R54: 0 | T54: =IFERROR(IF(Simulador!$U$30=1,0,IF($B54<=0,0,$B54*Simulador!$AA$43)),0) -> 0 | V54: =IFERROR(IF(Simulador!$U$30=1,0,IF($B54<=0,0,IF(Simulador!$D$22>0,Simulador!$D$22,Simulador!$O$24)*Simulador!$AA$44)),0) -> 0 | Y54: 0 | AD54: 3 | AE54: 4 | AF54: 0 | AG54: 0 | AH54: 0 | AI54: 0 | AJ54: 0 | AK54: 0 | AL54: 0 | AM54: 0 | AN54: 0 | AO54: 0 | AP54: =IFERROR(IF(Simulador!$U$30=1,0,IF($AK54<=0,0,$AK54*Simulador!$AA$43)),0)+IFERROR(IF(Simulador!$U$30=1,0,IF($AK54<=0,0,IF(Simulador!$D$22>0,Simulador!$D$22,Simulador!$O$24)*Simulador!$AA$44)),0) -> 0 | AQ54: 0 | AR54: 0 | AS54: 0 | AU54: 0 | AV54: 40
A55: 41 | B55: 0 | D55: =IF(B55+F55-D54<=0,B55+F55,IF(AND(Simulador!$U$62=1,$AF$3=2),B55*AJ55,D54)) -> 0 | F55: 0 | H55: 0 | L55: =IF(Simulador!$T$41=1,0,J55*Simulador!$W$39*1.16) -> 0 | P55: 0 | R55: 0 | T55: =IFERROR(IF(Simulador!$U$30=1,0,IF($B55<=0,0,$B55*Simulador!$AA$43)),0) -> 0 | V55: =IFERROR(IF(Simulador!$U$30=1,0,IF($B55<=0,0,IF(Simulador!$D$22>0,Simulador!$D$22,Simulador!$O$24)*Simulador!$AA$44)),0) -> 0 | Y55: 0 | AD55: 3 | AE55: 5 | AF55: 0 | AG55: 0 | AH55: 0 | AI55: 0 | AJ55: 0 | AK55: 0 | AL55: 0 | AM55: 0 | AN55: 0 | AO55: 0 | AP55: =IFERROR(IF(Simulador!$U$30=1,0,IF($AK55<=0,0,$AK55*Simulador!$AA$43)),0)+IFERROR(IF(Simulador!$U$30=1,0,IF($AK55<=0,0,IF(Simulador!$D$22>0,Simulador!$D$22,Simulador!$O$24)*Simulador!$AA$44)),0) -> 0 | AQ55: 0 | AR55: 0 | AS55: 0 | AU55: 0 | AV55: 41
A56: 42 | B56: 0 | D56: =IF(B56+F56-D55<=0,B56+F56,IF(AND(Simulador!$U$62=1,$AF$3=2),B56*AJ56,D55)) -> 0 | F56: 0 | H56: 0 | L56: =IF(Simulador!$T$41=1,0,J56*Simulador!$W$39*1.16) -> 0 | N56: =IF(B56-H56=0,0,N54) -> 0 | P56: 0 | R56: 0 | T56: =IFERROR(IF(Simulador!$U$30=1,0,IF($B56<=0,0,$B56*Simulador!$AA$43)),0) -> 0 | V56: =IFERROR(IF(Simulador!$U$30=1,0,IF($B56<=0,0,IF(Simulador!$D$22>0,Simulador!$D$22,Simulador!$O$24)*Simulador!$AA$44)),0) -> 0 | Y56: 0 | AD56: 3 | AE56: 6 | AF56: 0 | AG56: 0 | AH56: 0 | AI56: 0 | AJ56: 0 | AK56: 0 | AL56: 0 | AM56: 0 | AN56: 0 | AO56: 0 | AP56: =IFERROR(IF(Simulador!$U$30=1,0,IF($AK56<=0,0,$AK56*Simulador!$AA$43)),0)+IFERROR(IF(Simulador!$U$30=1,0,IF($AK56<=0,0,IF(Simulador!$D$22>0,Simulador!$D$22,Simulador!$O$24)*Simulador!$AA$44)),0) -> 0 | AQ56: 0 | AR56: 0 | AS56: 0 | AU56: 0 | AV56: 42
A57: 43 | B57: 0 | D57: =IF(B57+F57-D56<=0,B57+F57,IF(AND(Simulador!$U$62=1,$AF$3=2),B57*AJ57,D56)) -> 0 | F57: 0 | H57: 0 | L57: =IF(Simulador!$T$41=1,0,J57*Simulador!$W$39*1.16) -> 0 | P57: 0 | R57: 0 | T57: =IFERROR(IF(Simulador!$U$30=1,0,IF($B57<=0,0,$B57*Simulador!$AA$43)),0) -> 0 | V57: =IFERROR(IF(Simulador!$U$30=1,0,IF($B57<=0,0,IF(Simulador!$D$22>0,Simulador!$D$22,Simulador!$O$24)*Simulador!$AA$44)),0) -> 0 | Y57: 0 | AD57: 3 | AE57: 7 | AF57: 0 | AG57: 0 | AH57: 0 | AI57: 0 | AJ57: 0 | AK57: 0 | AL57: 0 | AM57: 0 | AN57: 0 | AO57: 0 | AP57: =IFERROR(IF(Simulador!$U$30=1,0,IF($AK57<=0,0,$AK57*Simulador!$AA$43)),0)+IFERROR(IF(Simulador!$U$30=1,0,IF($AK57<=0,0,IF(Simulador!$D$22>0,Simulador!$D$22,Simulador!$O$24)*Simulador!$AA$44)),0) -> 0 | AQ57: 0 | AR57: 0 | AS57: 0 | AU57: 0 | AV57: 43
A58: 44 | B58: 0 | D58: =IF(B58+F58-D57<=0,B58+F58,IF(AND(Simulador!$U$62=1,$AF$3=2),B58*AJ58,D57)) -> 0 | F58: 0 | H58: 0 | L58: =IF(Simulador!$T$41=1,0,J58*Simulador!$W$39*1.16) -> 0 | N58: =IF(B58-H58=0,0,N56) -> 0 | P58: 0 | R58: 0 | T58: =IFERROR(IF(Simulador!$U$30=1,0,IF($B58<=0,0,$B58*Simulador!$AA$43)),0) -> 0 | V58: =IFERROR(IF(Simulador!$U$30=1,0,IF($B58<=0,0,IF(Simulador!$D$22>0,Simulador!$D$22,Simulador!$O$24)*Simulador!$AA$44)),0) -> 0 | Y58: 0 | AD58: 3 | AE58: 8 | AF58: 0 | AG58: 0 | AH58: 0 | AI58: 0 | AJ58: 0 | AK58: 0 | AL58: 0 | AM58: 0 | AN58: 0 | AO58: 0 | AP58: =IFERROR(IF(Simulador!$U$30=1,0,IF($AK58<=0,0,$AK58*Simulador!$AA$43)),0)+IFERROR(IF(Simulador!$U$30=1,0,IF($AK58<=0,0,IF(Simulador!$D$22>0,Simulador!$D$22,Simulador!$O$24)*Simulador!$AA$44)),0) -> 0 | AQ58: 0 | AR58: 0 | AS58: 0 | AU58: 0 | AV58: 44
A59: 45 | B59: 0 | D59: =IF(B59+F59-D58<=0,B59+F59,IF(AND(Simulador!$U$62=1,$AF$3=2),B59*AJ59,D58)) -> 0 | F59: 0 | H59: 0 | L59: =IF(Simulador!$T$41=1,0,J59*Simulador!$W$39*1.16) -> 0 | P59: 0 | R59: 0 | T59: =IFERROR(IF(Simulador!$U$30=1,0,IF($B59<=0,0,$B59*Simulador!$AA$43)),0) -> 0 | V59: =IFERROR(IF(Simulador!$U$30=1,0,IF($B59<=0,0,IF(Simulador!$D$22>0,Simulador!$D$22,Simulador!$O$24)*Simulador!$AA$44)),0) -> 0 | Y59: 0 | AD59: 3 | AE59: 9 | AF59: 0 | AG59: 0 | AH59: 0 | AI59: 0 | AJ59: 0 | AK59: 0 | AL59: 0 | AM59: 0 | AN59: 0 | AO59: 0 | AP59: =IFERROR(IF(Simulador!$U$30=1,0,IF($AK59<=0,0,$AK59*Simulador!$AA$43)),0)+IFERROR(IF(Simulador!$U$30=1,0,IF($AK59<=0,0,IF(Simulador!$D$22>0,Simulador!$D$22,Simulador!$O$24)*Simulador!$AA$44)),0) -> 0 | AQ59: 0 | AR59: 0 | AS59: 0 | AU59: 0 | AV59: 45
A60: 46 | B60: 0 | D60: =IF(B60+F60-D59<=0,B60+F60,IF(AND(Simulador!$U$62=1,$AF$3=2),B60*AJ60,D59)) -> 0 | F60: 0 | H60: 0 | L60: =IF(Simulador!$T$41=1,0,J60*Simulador!$W$39*1.16) -> 0 | N60: =IF(B60-H60=0,0,N58) -> 0 | P60: 0 | R60: 0 | T60: =IFERROR(IF(Simulador!$U$30=1,0,IF($B60<=0,0,$B60*Simulador!$AA$43)),0) -> 0 | V60: =IFERROR(IF(Simulador!$U$30=1,0,IF($B60<=0,0,IF(Simulador!$D$22>0,Simulador!$D$22,Simulador!$O$24)*Simulador!$AA$44)),0) -> 0 | Y60: 0 | AD60: 3 | AE60: 10 | AF60: 0 | AG60: 0 | AH60: 0 | AI60: 0 | AJ60: 0 | AK60: 0 | AL60: 0 | AM60: 0 | AN60: 0 | AO60: 0 | AP60: =IFERROR(IF(Simulador!$U$30=1,0,IF($AK60<=0,0,$AK60*Simulador!$AA$43)),0)+IFERROR(IF(Simulador!$U$30=1,0,IF($AK60<=0,0,IF(Simulador!$D$22>0,Simulador!$D$22,Simulador!$O$24)*Simulador!$AA$44)),0) -> 0 | AQ60: 0 | AR60: 0 | AS60: 0 | AU60: 0 | AV60: 46
A61: 47 | B61: 0 | D61: =IF(B61+F61-D60<=0,B61+F61,IF(AND(Simulador!$U$62=1,$AF$3=2),B61*AJ61,D60)) -> 0 | F61: 0 | H61: 0 | L61: =IF(Simulador!$T$41=1,0,J61*Simulador!$W$39*1.16) -> 0 | P61: 0 | R61: 0 | T61: =IFERROR(IF(Simulador!$U$30=1,0,IF($B61<=0,0,$B61*Simulador!$AA$43)),0) -> 0 | V61: =IFERROR(IF(Simulador!$U$30=1,0,IF($B61<=0,0,IF(Simulador!$D$22>0,Simulador!$D$22,Simulador!$O$24)*Simulador!$AA$44)),0) -> 0 | Y61: 0 | AD61: 3 | AE61: 11 | AF61: 0 | AG61: 0 | AH61: 0 | AI61: 0 | AJ61: 0 | AK61: 0 | AL61: 0 | AM61: 0 | AN61: 0 | AO61: 0 | AP61: =IFERROR(IF(Simulador!$U$30=1,0,IF($AK61<=0,0,$AK61*Simulador!$AA$43)),0)+IFERROR(IF(Simulador!$U$30=1,0,IF($AK61<=0,0,IF(Simulador!$D$22>0,Simulador!$D$22,Simulador!$O$24)*Simulador!$AA$44)),0) -> 0 | AQ61: 0 | AR61: 0 | AS61: 0 | AU61: 0 | AV61: 47
A62: 48 | B62: 0 | D62: =IF(B62+F62-D61<=0,B62+F62,IF(AND(Simulador!$U$62=1,$AF$3=2),B62*AJ62,D61)) -> 0 | F62: 0 | H62: 0 | L62: =IF(Simulador!$T$41=1,0,J62*Simulador!$W$39*1.16) -> 0 | N62: =IF(B62-H62=0,0,N60) -> 0 | P62: 0 | R62: 0 | T62: =IFERROR(IF(Simulador!$U$30=1,0,IF($B62<=0,0,$B62*Simulador!$AA$43)),0) -> 0 | V62: =IFERROR(IF(Simulador!$U$30=1,0,IF($B62<=0,0,IF(Simulador!$D$22>0,Simulador!$D$22,Simulador!$O$24)*Simulador!$AA$44)),0) -> 0 | Y62: 0 | AD62: 4 | AE62: 0 | AF62: 0 | AG62: 0 | AH62: 0 | AI62: 0 | AJ62: 0 | AK62: 0 | AL62: 0 | AM62: 0 | AN62: 0 | AO62: 0 | AP62: =IFERROR(IF(Simulador!$U$30=1,0,IF($AK62<=0,0,$AK62*Simulador!$AA$43)),0)+IFERROR(IF(Simulador!$U$30=1,0,IF($AK62<=0,0,IF(Simulador!$D$22>0,Simulador!$D$22,Simulador!$O$24)*Simulador!$AA$44)),0) -> 0 | AQ62: 0 | AR62: 0 | AS62: 0 | AU62: 0 | AV62: 48
A63: 49 | B63: 0 | D63: =IF(B63+F63-D62<=0,B63+F63,IF(AND(Simulador!$U$62=1,$AF$3=2),B63*AJ63,D62)) -> 0 | F63: 0 | H63: 0 | L63: =IF(Simulador!$T$41=1,0,J63*Simulador!$W$39*1.16) -> 0 | P63: 0 | R63: 0 | T63: =IFERROR(IF(Simulador!$U$30=1,0,IF($B63<=0,0,$B63*Simulador!$AA$43)),0) -> 0 | V63: =IFERROR(IF(Simulador!$U$30=1,0,IF($B63<=0,0,IF(Simulador!$D$22>0,Simulador!$D$22,Simulador!$O$24)*Simulador!$AA$44)),0) -> 0 | Y63: 0 | AA63: =IF(B63<=0,0,Simulador!$I$46) -> 0 | AD63: 4 | AE63: 1 | AF63: 0 | AG63: 0 | AH63: 0 | AI63: 0 | AJ63: 0 | AK63: 0 | AL63: 0 | AM63: 0 | AN63: 0 | AO63: 0 | AP63: =IFERROR(IF(Simulador!$U$30=1,0,IF($AK63<=0,0,$AK63*Simulador!$AA$43)),0)+IFERROR(IF(Simulador!$U$30=1,0,IF($AK63<=0,0,IF(Simulador!$D$22>0,Simulador!$D$22,Simulador!$O$24)*Simulador!$AA$44)),0) -> 0 | AQ63: 0 | AR63: 0 | AS63: 0 | AU63: 0 | AV63: 49
A64: 50 | B64: 0 | D64: =IF(B64+F64-D63<=0,B64+F64,IF(AND(Simulador!$U$62=1,$AF$3=2),B64*AJ64,D63)) -> 0 | F64: 0 | H64: 0 | L64: =IF(Simulador!$T$41=1,0,J64*Simulador!$W$39*1.16) -> 0 | N64: =IF(B64-H64=0,0,N62*(1+(Simulador!$AH$72))) -> 0 | P64: 0 | R64: 0 | T64: =IFERROR(IF(Simulador!$U$30=1,0,IF($B64<=0,0,$B64*Simulador!$AA$43)),0) -> 0 | V64: =IFERROR(IF(Simulador!$U$30=1,0,IF($B64<=0,0,IF(Simulador!$D$22>0,Simulador!$D$22,Simulador!$O$24)*Simulador!$AA$44)),0) -> 0 | Y64: 0 | AD64: 4 | AE64: 2 | AF64: 0 | AG64: 0 | AH64: 0 | AI64: 0 | AJ64: 0 | AK64: 0 | AL64: 0 | AM64: 0 | AN64: 0 | AO64: 0 | AP64: =IFERROR(IF(Simulador!$U$30=1,0,IF($AK64<=0,0,$AK64*Simulador!$AA$43)),0)+IFERROR(IF(Simulador!$U$30=1,0,IF($AK64<=0,0,IF(Simulador!$D$22>0,Simulador!$D$22,Simulador!$O$24)*Simulador!$AA$44)),0) -> 0 | AQ64: 0 | AR64: 0 | AS64: 0 | AU64: 0 | AV64: 50
A65: 51 | B65: 0 | D65: =IF(B65+F65-D64<=0,B65+F65,IF(AND(Simulador!$U$62=1,$AF$3=2),B65*AJ65,D64)) -> 0 | F65: 0 | H65: 0 | L65: =IF(Simulador!$T$41=1,0,J65*Simulador!$W$39*1.16) -> 0 | P65: 0 | R65: 0 | T65: =IFERROR(IF(Simulador!$U$30=1,0,IF($B65<=0,0,$B65*Simulador!$AA$43)),0) -> 0 | V65: =IFERROR(IF(Simulador!$U$30=1,0,IF($B65<=0,0,IF(Simulador!$D$22>0,Simulador!$D$22,Simulador!$O$24)*Simulador!$AA$44)),0) -> 0 | Y65: 0 | AD65: 4 | AE65: 3 | AF65: 0 | AG65: 0 | AH65: 0 | AI65: 0 | AJ65: 0 | AK65: 0 | AL65: 0 | AM65: 0 | AN65: 0 | AO65: 0 | AP65: =IFERROR(IF(Simulador!$U$30=1,0,IF($AK65<=0,0,$AK65*Simulador!$AA$43)),0)+IFERROR(IF(Simulador!$U$30=1,0,IF($AK65<=0,0,IF(Simulador!$D$22>0,Simulador!$D$22,Simulador!$O$24)*Simulador!$AA$44)),0) -> 0 | AQ65: 0 | AR65: 0 | AS65: 0 | AU65: 0 | AV65: 51
A66: 52 | B66: 0 | D66: =IF(B66+F66-D65<=0,B66+F66,IF(AND(Simulador!$U$62=1,$AF$3=2),B66*AJ66,D65)) -> 0 | F66: 0 | H66: 0 | L66: =IF(Simulador!$T$41=1,0,J66*Simulador!$W$39*1.16) -> 0 | N66: =IF(B66-H66=0,0,N64) -> 0 | P66: 0 | R66: 0 | T66: =IFERROR(IF(Simulador!$U$30=1,0,IF($B66<=0,0,$B66*Simulador!$AA$43)),0) -> 0 | V66: =IFERROR(IF(Simulador!$U$30=1,0,IF($B66<=0,0,IF(Simulador!$D$22>0,Simulador!$D$22,Simulador!$O$24)*Simulador!$AA$44)),0) -> 0 | Y66: 0 | AD66: 4 | AE66: 4 | AF66: 0 | AG66: 0 | AH66: 0 | AI66: 0 | AJ66: 0 | AK66: 0 | AL66: 0 | AM66: 0 | AN66: 0 | AO66: 0 | AP66: =IFERROR(IF(Simulador!$U$30=1,0,IF($AK66<=0,0,$AK66*Simulador!$AA$43)),0)+IFERROR(IF(Simulador!$U$30=1,0,IF($AK66<=0,0,IF(Simulador!$D$22>0,Simulador!$D$22,Simulador!$O$24)*Simulador!$AA$44)),0) -> 0 | AQ66: 0 | AR66: 0 | AS66: 0 | AU66: 0 | AV66: 52
A67: 53 | B67: 0 | D67: =IF(B67+F67-D66<=0,B67+F67,IF(AND(Simulador!$U$62=1,$AF$3=2),B67*AJ67,D66)) -> 0 | F67: 0 | H67: 0 | L67: =IF(Simulador!$T$41=1,0,J67*Simulador!$W$39*1.16) -> 0 | P67: 0 | R67: 0 | T67: =IFERROR(IF(Simulador!$U$30=1,0,IF($B67<=0,0,$B67*Simulador!$AA$43)),0) -> 0 | V67: =IFERROR(IF(Simulador!$U$30=1,0,IF($B67<=0,0,IF(Simulador!$D$22>0,Simulador!$D$22,Simulador!$O$24)*Simulador!$AA$44)),0) -> 0 | Y67: 0 | AD67: 4 | AE67: 5 | AF67: 0 | AG67: 0 | AH67: 0 | AI67: 0 | AJ67: 0 | AK67: 0 | AL67: 0 | AM67: 0 | AN67: 0 | AO67: 0 | AP67: =IFERROR(IF(Simulador!$U$30=1,0,IF($AK67<=0,0,$AK67*Simulador!$AA$43)),0)+IFERROR(IF(Simulador!$U$30=1,0,IF($AK67<=0,0,IF(Simulador!$D$22>0,Simulador!$D$22,Simulador!$O$24)*Simulador!$AA$44)),0) -> 0 | AQ67: 0 | AR67: 0 | AS67: 0 | AU67: 0 | AV67: 53
A68: 54 | B68: 0 | D68: =IF(B68+F68-D67<=0,B68+F68,IF(AND(Simulador!$U$62=1,$AF$3=2),B68*AJ68,D67)) -> 0 | F68: 0 | H68: 0 | L68: =IF(Simulador!$T$41=1,0,J68*Simulador!$W$39*1.16) -> 0 | N68: =IF(B68-H68=0,0,N66) -> 0 | P68: 0 | R68: 0 | T68: =IFERROR(IF(Simulador!$U$30=1,0,IF($B68<=0,0,$B68*Simulador!$AA$43)),0) -> 0 | V68: =IFERROR(IF(Simulador!$U$30=1,0,IF($B68<=0,0,IF(Simulador!$D$22>0,Simulador!$D$22,Simulador!$O$24)*Simulador!$AA$44)),0) -> 0 | Y68: 0 | AD68: 4 | AE68: 6 | AF68: 0 | AG68: 0 | AH68: 0 | AI68: 0 | AJ68: 0 | AK68: 0 | AL68: 0 | AM68: 0 | AN68: 0 | AO68: 0 | AP68: =IFERROR(IF(Simulador!$U$30=1,0,IF($AK68<=0,0,$AK68*Simulador!$AA$43)),0)+IFERROR(IF(Simulador!$U$30=1,0,IF($AK68<=0,0,IF(Simulador!$D$22>0,Simulador!$D$22,Simulador!$O$24)*Simulador!$AA$44)),0) -> 0 | AQ68: 0 | AR68: 0 | AS68: 0 | AU68: 0 | AV68: 54
A69: 55 | B69: 0 | D69: =IF(B69+F69-D68<=0,B69+F69,IF(AND(Simulador!$U$62=1,$AF$3=2),B69*AJ69,D68)) -> 0 | F69: 0 | H69: 0 | L69: =IF(Simulador!$T$41=1,0,J69*Simulador!$W$39*1.16) -> 0 | P69: 0 | R69: 0 | T69: =IFERROR(IF(Simulador!$U$30=1,0,IF($B69<=0,0,$B69*Simulador!$AA$43)),0) -> 0 | V69: =IFERROR(IF(Simulador!$U$30=1,0,IF($B69<=0,0,IF(Simulador!$D$22>0,Simulador!$D$22,Simulador!$O$24)*Simulador!$AA$44)),0) -> 0 | Y69: 0 | AD69: 4 | AE69: 7 | AF69: 0 | AG69: 0 | AH69: 0 | AI69: 0 | AJ69: 0 | AK69: 0 | AL69: 0 | AM69: 0 | AN69: 0 | AO69: 0 | AP69: =IFERROR(IF(Simulador!$U$30=1,0,IF($AK69<=0,0,$AK69*Simulador!$AA$43)),0)+IFERROR(IF(Simulador!$U$30=1,0,IF($AK69<=0,0,IF(Simulador!$D$22>0,Simulador!$D$22,Simulador!$O$24)*Simulador!$AA$44)),0) -> 0 | AQ69: 0 | AR69: 0 | AS69: 0 | AU69: 0 | AV69: 55
A70: 56 | B70: 0 | D70: =IF(B70+F70-D69<=0,B70+F70,IF(AND(Simulador!$U$62=1,$AF$3=2),B70*AJ70,D69)) -> 0 | F70: 0 | H70: 0 | L70: =IF(Simulador!$T$41=1,0,J70*Simulador!$W$39*1.16) -> 0 | N70: =IF(B70-H70=0,0,N68) -> 0 | P70: 0 | R70: 0 | T70: =IFERROR(IF(Simulador!$U$30=1,0,IF($B70<=0,0,$B70*Simulador!$AA$43)),0) -> 0 | V70: =IFERROR(IF(Simulador!$U$30=1,0,IF($B70<=0,0,IF(Simulador!$D$22>0,Simulador!$D$22,Simulador!$O$24)*Simulador!$AA$44)),0) -> 0 | Y70: 0 | AD70: 4 | AE70: 8 | AF70: 0 | AG70: 0 | AH70: 0 | AI70: 0 | AJ70: 0 | AK70: 0 | AL70: 0 | AM70: 0 | AN70: 0 | AO70: 0 | AP70: =IFERROR(IF(Simulador!$U$30=1,0,IF($AK70<=0,0,$AK70*Simulador!$AA$43)),0)+IFERROR(IF(Simulador!$U$30=1,0,IF($AK70<=0,0,IF(Simulador!$D$22>0,Simulador!$D$22,Simulador!$O$24)*Simulador!$AA$44)),0) -> 0 | AQ70: 0 | AR70: 0 | AS70: 0 | AU70: 0 | AV70: 56
A71: 57 | B71: 0 | D71: =IF(B71+F71-D70<=0,B71+F71,IF(AND(Simulador!$U$62=1,$AF$3=2),B71*AJ71,D70)) -> 0 | F71: 0 | H71: 0 | L71: =IF(Simulador!$T$41=1,0,J71*Simulador!$W$39*1.16) -> 0 | P71: 0 | R71: 0 | T71: =IFERROR(IF(Simulador!$U$30=1,0,IF($B71<=0,0,$B71*Simulador!$AA$43)),0) -> 0 | V71: =IFERROR(IF(Simulador!$U$30=1,0,IF($B71<=0,0,IF(Simulador!$D$22>0,Simulador!$D$22,Simulador!$O$24)*Simulador!$AA$44)),0) -> 0 | Y71: 0 | AD71: 4 | AE71: 9 | AF71: 0 | AG71: 0 | AH71: 0 | AI71: 0 | AJ71: 0 | AK71: 0 | AL71: 0 | AM71: 0 | AN71: 0 | AO71: 0 | AP71: =IFERROR(IF(Simulador!$U$30=1,0,IF($AK71<=0,0,$AK71*Simulador!$AA$43)),0)+IFERROR(IF(Simulador!$U$30=1,0,IF($AK71<=0,0,IF(Simulador!$D$22>0,Simulador!$D$22,Simulador!$O$24)*Simulador!$AA$44)),0) -> 0 | AQ71: 0 | AR71: 0 | AS71: 0 | AU71: 0 | AV71: 57
A72: 58 | B72: 0 | D72: =IF(B72+F72-D71<=0,B72+F72,IF(AND(Simulador!$U$62=1,$AF$3=2),B72*AJ72,D71)) -> 0 | F72: 0 | H72: 0 | L72: =IF(Simulador!$T$41=1,0,J72*Simulador!$W$39*1.16) -> 0 | N72: =IF(B72-H72=0,0,N70) -> 0 | P72: 0 | R72: 0 | T72: =IFERROR(IF(Simulador!$U$30=1,0,IF($B72<=0,0,$B72*Simulador!$AA$43)),0) -> 0 | V72: =IFERROR(IF(Simulador!$U$30=1,0,IF($B72<=0,0,IF(Simulador!$D$22>0,Simulador!$D$22,Simulador!$O$24)*Simulador!$AA$44)),0) -> 0 | Y72: 0 | AD72: 4 | AE72: 10 | AF72: 0 | AG72: 0 | AH72: 0 | AI72: 0 | AJ72: 0 | AK72: 0 | AL72: 0 | AM72: 0 | AN72: 0 | AO72: 0 | AP72: =IFERROR(IF(Simulador!$U$30=1,0,IF($AK72<=0,0,$AK72*Simulador!$AA$43)),0)+IFERROR(IF(Simulador!$U$30=1,0,IF($AK72<=0,0,IF(Simulador!$D$22>0,Simulador!$D$22,Simulador!$O$24)*Simulador!$AA$44)),0) -> 0 | AQ72: 0 | AR72: 0 | AS72: 0 | AU72: 0 | AV72: 58
A73: 59 | B73: 0 | D73: =IF(B73+F73-D72<=0,B73+F73,IF(AND(Simulador!$U$62=1,$AF$3=2),B73*AJ73,D72)) -> 0 | F73: 0 | H73: 0 | L73: =IF(Simulador!$T$41=1,0,J73*Simulador!$W$39*1.16) -> 0 | P73: 0 | R73: 0 | T73: =IFERROR(IF(Simulador!$U$30=1,0,IF($B73<=0,0,$B73*Simulador!$AA$43)),0) -> 0 | V73: =IFERROR(IF(Simulador!$U$30=1,0,IF($B73<=0,0,IF(Simulador!$D$22>0,Simulador!$D$22,Simulador!$O$24)*Simulador!$AA$44)),0) -> 0 | Y73: 0 | AD73: 4 | AE73: 11 | AF73: 0 | AG73: 0 | AH73: 0 | AI73: 0 | AJ73: 0 | AK73: 0 | AL73: 0 | AM73: 0 | AN73: 0 | AO73: 0 | AP73: =IFERROR(IF(Simulador!$U$30=1,0,IF($AK73<=0,0,$AK73*Simulador!$AA$43)),0)+IFERROR(IF(Simulador!$U$30=1,0,IF($AK73<=0,0,IF(Simulador!$D$22>0,Simulador!$D$22,Simulador!$O$24)*Simulador!$AA$44)),0) -> 0 | AQ73: 0 | AR73: 0 | AS73: 0 | AU73: 0 | AV73: 59
A74: 60 | B74: 0 | D74: =IF(B74+F74-D73<=0,B74+F74,IF(AND(Simulador!$U$62=1,$AF$3=2),B74*AJ74,D73)) -> 0 | F74: 0 | H74: 0 | L74: =IF(Simulador!$T$41=1,0,J74*Simulador!$W$39*1.16) -> 0 | N74: =IF(B74-H74=0,0,N72) -> 0 | P74: 0 | R74: 0 | T74: =IFERROR(IF(Simulador!$U$30=1,0,IF($B74<=0,0,$B74*Simulador!$AA$43)),0) -> 0 | V74: =IFERROR(IF(Simulador!$U$30=1,0,IF($B74<=0,0,IF(Simulador!$D$22>0,Simulador!$D$22,Simulador!$O$24)*Simulador!$AA$44)),0) -> 0 | Y74: 0 | AD74: 5 | AE74: 0 | AF74: =IF(R74<=0.01,IF(R73>0.01,A74,0),0) -> 0 | AG74: 0 | AH74: 0 | AI74: 0 | AJ74: 0 | AK74: 0 | AL74: 0 | AM74: 0 | AN74: 0 | AO74: 0 | AP74: =IFERROR(IF(Simulador!$U$30=1,0,IF($AK74<=0,0,$AK74*Simulador!$AA$43)),0)+IFERROR(IF(Simulador!$U$30=1,0,IF($AK74<=0,0,IF(Simulador!$D$22>0,Simulador!$D$22,Simulador!$O$24)*Simulador!$AA$44)),0) -> 0 | AQ74: 0 | AR74: 0 | AS74: 0 | AU74: 0 | AV74: 60
A75: 61 | B75: 0 | D75: =IF(B75+F75-D74<=0,B75+F75,IF(AND(OR(Simulador!$U$39=2,Simulador!$U$39=7),J74=0),IFERROR((((P75/360*AU75)/(1-(1+(P75/360*AU75))^-AS75))*B75)*(1+AA75),0),IF($AF$3=2,B75*AJ75,IFERROR((((P75/360*AU75)/(1-(1+(P75/360*AU75))^-AS75))*B75)*(1+AA75),0)))) -> 0 | F75: 0 | H75: 0 | L75: =IF(Simulador!$T$41=1,0,J75*Simulador!$W$39*1.16) -> 0 | P75: =IFERROR(IF(B75=0,0,IF(Simulador!$D$26<>0,MIN(Simulador!$D$26+Simulador!$U$75,$AG$12),P74)),0) -> 0 | R75: 0 | T75: =IFERROR(IF(Simulador!$U$30=1,0,IF($B75<=0,0,$B75*Simulador!$AA$43)),0) -> 0 | V75: =IFERROR(IF(Simulador!$U$30=1,0,IF($B75<=0,0,IF(Simulador!$D$22>0,Simulador!$D$22,Simulador!$O$24)*Simulador!$AA$44)),0) -> 0 | Y75: 0 | AA75: =IF(B75<=0,0,Simulador!$I$46) -> 0 | AC75: =Simulador!D26 -> 0 | AD75: 5 | AE75: 1 | AF75: 0 | AG75: 0 | AH75: 0 | AI75: 0 | AJ75: =IFERROR((AL75/AK75),0) -> 0 | AK75: 0 | AL75: =IFERROR(((AR75/360*AU75)/(1-(1+(AR75/360*AU75))^-AS75))*AK75,0) -> 0 | AM75: 0 | AN75: 0 | AO75: =+AK75-AN75 -> 0 | AP75: =IFERROR(IF(Simulador!$U$30=1,0,IF($AK75<=0,0,$AK75*Simulador!$AA$43)),0)+IFERROR(IF(Simulador!$U$30=1,0,IF($AK75<=0,0,IF(Simulador!$D$22>0,Simulador!$D$22,Simulador!$O$24)*Simulador!$AA$44)),0) -> 0 | AQ75: 0 | AR75: =IFERROR(IF(AK75=0,0,IF(Simulador!$D$26<>0,MIN(Simulador!$D$26+Simulador!$U$75,$AG$12),AR74)),0) -> 0 | AS75: 0 | AU75: 0 | AV75: 61
A76: 62 | B76: 0 | D76: =IF(B76+F76-D75<=0,B76+F76,IF(AND(OR(Simulador!$U$39=2,Simulador!$U$39=7),J75=0),IFERROR((((P76/360*AU76)/(1-(1+(P76/360*AU76))^-AS76))*B76)*(1+AA76),0),IF($AF$3=2,B76*AJ76,IFERROR((((P76/360*AU76)/(1-(1+(P76/360*AU76))^-AS76))*B76)*(1+AA76),0)))) -> 0 | F76: 0 | H76: 0 | L76: =IF(Simulador!$T$41=1,0,J76*Simulador!$W$39*1.16) -> 0 | N76: =IF(B76-H76=0,0,N74*(1+(Simulador!$AH$72))) -> 0 | P76: 0 | R76: 0 | T76: =IFERROR(IF(Simulador!$U$30=1,0,IF($B76<=0,0,$B76*Simulador!$AA$43)),0) -> 0 | V76: =IFERROR(IF(Simulador!$U$30=1,0,IF($B76<=0,0,IF(Simulador!$D$22>0,Simulador!$D$22,Simulador!$O$24)*Simulador!$AA$44)),0) -> 0 | Y76: 0 | AD76: 5 | AE76: 2 | AF76: 0 | AG76: 0 | AH76: 0 | AI76: 0 | AJ76: 0 | AK76: =+AO75 -> 0 | AL76: =IFERROR(((AR76/360*AU76)/(1-(1+(AR76/360*AU76))^-AS76))*AK76,0) -> 0 | AM76: =IFERROR(IF(AK76=0,0,AR76/360*AU76*AK76),0) -> 0 | AN76: =+AL76-AM76 -> 0 | AO76: =+AK76-AN76 -> 0 | AP76: =IFERROR(IF(Simulador!$U$30=1,0,IF($AK76<=0,0,$AK76*Simulador!$AA$43)),0)+IFERROR(IF(Simulador!$U$30=1,0,IF($AK76<=0,0,IF(Simulador!$D$22>0,Simulador!$D$22,Simulador!$O$24)*Simulador!$AA$44)),0) -> 0 | AQ76: 0 | AR76: 0 | AS76: 0 | AU76: 0 | AV76: 62
A77: 63 | B77: 0 | D77: =IF(B77+F77-D76<=0,B77+F77,IF(AND(OR(Simulador!$U$39=2,Simulador!$U$39=7),J76=0),IFERROR((((P77/360*AU77)/(1-(1+(P77/360*AU77))^-AS77))*B77)*(1+AA77),0),IF($AF$3=2,B77*AJ77,IFERROR((((P77/360*AU77)/(1-(1+(P77/360*AU77))^-AS77))*B77)*(1+AA77),0)))) -> 0 | F77: 0 | H77: 0 | L77: =IF(Simulador!$T$41=1,0,J77*Simulador!$W$39*1.16) -> 0 | P77: 0 | R77: 0 | T77: =IFERROR(IF(Simulador!$U$30=1,0,IF($B77<=0,0,$B77*Simulador!$AA$43)),0) -> 0 | V77: =IFERROR(IF(Simulador!$U$30=1,0,IF($B77<=0,0,IF(Simulador!$D$22>0,Simulador!$D$22,Simulador!$O$24)*Simulador!$AA$44)),0) -> 0 | Y77: 0 | AD77: 5 | AE77: 3 | AF77: 0 | AG77: 0 | AH77: 0 | AI77: 0 | AJ77: 0 | AK77: =+AO76 -> 0 | AL77: =IFERROR(((AR77/360*AU77)/(1-(1+(AR77/360*AU77))^-AS77))*AK77,0) -> 0 | AM77: =IFERROR(IF(AK77=0,0,AR77/360*AU77*AK77),0) -> 0 | AN77: =+AL77-AM77 -> 0 | AO77: =+AK77-AN77 -> 0 | AP77: =IFERROR(IF(Simulador!$U$30=1,0,IF($AK77<=0,0,$AK77*Simulador!$AA$43)),0)+IFERROR(IF(Simulador!$U$30=1,0,IF($AK77<=0,0,IF(Simulador!$D$22>0,Simulador!$D$22,Simulador!$O$24)*Simulador!$AA$44)),0) -> 0 | AQ77: 0 | AR77: 0 | AS77: 0 | AU77: 0 | AV77: 63
A78: 64 | B78: 0 | D78: =IF(B78+F78-D77<=0,B78+F78,IF(AND(OR(Simulador!$U$39=2,Simulador!$U$39=7),J77=0),IFERROR((((P78/360*AU78)/(1-(1+(P78/360*AU78))^-AS78))*B78)*(1+AA78),0),IF($AF$3=2,B78*AJ78,IFERROR((((P78/360*AU78)/(1-(1+(P78/360*AU78))^-AS78))*B78)*(1+AA78),0)))) -> 0 | F78: 0 | H78: 0 | L78: =IF(Simulador!$T$41=1,0,J78*Simulador!$W$39*1.16) -> 0 | N78: =IF(B78-H78=0,0,N76) -> 0 | P78: 0 | R78: 0 | T78: =IFERROR(IF(Simulador!$U$30=1,0,IF($B78<=0,0,$B78*Simulador!$AA$43)),0) -> 0 | V78: =IFERROR(IF(Simulador!$U$30=1,0,IF($B78<=0,0,IF(Simulador!$D$22>0,Simulador!$D$22,Simulador!$O$24)*Simulador!$AA$44)),0) -> 0 | Y78: 0 | AD78: 5 | AE78: 4 | AF78: 0 | AG78: 0 | AH78: 0 | AI78: 0 | AJ78: 0 | AK78: 0 | AL78: 0 | AM78: 0 | AN78: 0 | AO78: 0 | AP78: =IFERROR(IF(Simulador!$U$30=1,0,IF($AK78<=0,0,$AK78*Simulador!$AA$43)),0)+IFERROR(IF(Simulador!$U$30=1,0,IF($AK78<=0,0,IF(Simulador!$D$22>0,Simulador!$D$22,Simulador!$O$24)*Simulador!$AA$44)),0) -> 0 | AQ78: 0 | AR78: 0 | AS78: 0 | AU78: 0 | AV78: 64
A79: 65 | B79: 0 | D79: =IF(B79+F79-D78<=0,B79+F79,IF(AND(OR(Simulador!$U$39=2,Simulador!$U$39=7),J78=0),IFERROR((((P79/360*AU79)/(1-(1+(P79/360*AU79))^-AS79))*B79)*(1+AA79),0),IF($AF$3=2,B79*AJ79,IFERROR((((P79/360*AU79)/(1-(1+(P79/360*AU79))^-AS79))*B79)*(1+AA79),0)))) -> 0 | F79: 0 | H79: 0 | L79: =IF(Simulador!$T$41=1,0,J79*Simulador!$W$39*1.16) -> 0 | P79: 0 | R79: 0 | T79: =IFERROR(IF(Simulador!$U$30=1,0,IF($B79<=0,0,$B79*Simulador!$AA$43)),0) -> 0 | V79: =IFERROR(IF(Simulador!$U$30=1,0,IF($B79<=0,0,IF(Simulador!$D$22>0,Simulador!$D$22,Simulador!$O$24)*Simulador!$AA$44)),0) -> 0 | Y79: =IF(B79<=0,0,D79+J79+T79+V79) -> 0 | AD79: 5 | AE79: 5 | AF79: 0 | AG79: 0 | AH79: 0 | AI79: =Y79 -> 0 | AJ79: 0 | AK79: 0 | AL79: 0 | AM79: 0 | AN79: 0 | AO79: 0 | AP79: =IFERROR(IF(Simulador!$U$30=1,0,IF($AK79<=0,0,$AK79*Simulador!$AA$43)),0)+IFERROR(IF(Simulador!$U$30=1,0,IF($AK79<=0,0,IF(Simulador!$D$22>0,Simulador!$D$22,Simulador!$O$24)*Simulador!$AA$44)),0) -> 0 | AQ79: =AL79+AP79 -> 0 | AR79: 0 | AS79: 0 | AU79: 0 | AV79: 65
A80: 66 | B80: 0 | D80: =IF(B80+F80-D79<=0,B80+F80,IF(AND(OR(Simulador!$U$39=2,Simulador!$U$39=7),J79=0),IFERROR((((P80/360*AU80)/(1-(1+(P80/360*AU80))^-AS80))*B80)*(1+AA80),0),IF($AF$3=2,B80*AJ80,IFERROR((((P80/360*AU80)/(1-(1+(P80/360*AU80))^-AS80))*B80)*(1+AA80),0)))) -> 0 | F80: =IFERROR(IF(B80=0,0,P80/360*AU80*B80),0) -> 0 | H80: 0 | L80: =IF(Simulador!$T$41=1,0,J80*Simulador!$W$39*1.16) -> 0 | N80: =IF(B80-H80=0,0,N78) -> 0 | P80: 0 | R80: =B80-H80-J80+L80-N80 -> 0 | T80: =IFERROR(IF(Simulador!$U$30=1,0,IF($B80<=0,0,$B80*Simulador!$AA$43)),0) -> 0 | V80: =IFERROR(IF(Simulador!$U$30=1,0,IF($B80<=0,0,IF(Simulador!$D$22>0,Simulador!$D$22,Simulador!$O$24)*Simulador!$AA$44)),0) -> 0 | Y80: 0 | AD80: 5 | AE80: 6 | AF80: =IF(R80<=0.01,IF(R79>0.01,A80,0),0) -> 0 | AG80: =IF(AF80>0,AD80,0) -> 0 | AH80: =IF(AF80>0,AE80,0) -> 0 | AI80: 0 | AJ80: =IFERROR((AL80/AK80),0) -> 0 | AK80: 0 | AL80: 0 | AM80: 0 | AN80: 0 | AO80: 0 | AP80: =IFERROR(IF(Simulador!$U$30=1,0,IF($AK80<=0,0,$AK80*Simulador!$AA$43)),0)+IFERROR(IF(Simulador!$U$30=1,0,IF($AK80<=0,0,IF(Simulador!$D$22>0,Simulador!$D$22,Simulador!$O$24)*Simulador!$AA$44)),0) -> 0 | AQ80: 0 | AR80: 0 | AS80: =IFERROR(IF(AK80<=0.01,0,AS79-1),0) -> 0 | AU80: =IFERROR(DAY(DATE(YEAR(AT80),MONTH(AT80)+1,0)),0) -> 0 | AV80: 66
A81: 67 | B81: =IF(R80<=0.01,0,R80) -> 0 | D81: =IF(B81+F81-D80<=0,B81+F81,IF(AND(OR(Simulador!$U$39=2,Simulador!$U$39=7),J80=0),IFERROR((((P81/360*AU81)/(1-(1+(P81/360*AU81))^-AS81))*B81)*(1+AA81),0),IF($AF$3=2,B81*AJ81,IFERROR((((P81/360*AU81)/(1-(1+(P81/360*AU81))^-AS81))*B81)*(1+AA81),0)))) -> 0 | F81: 0 | H81: =D81-F81 -> 0 | L81: =IF(Simulador!$T$41=1,0,J81*Simulador!$W$39*1.16) -> 0 | P81: =IFERROR(IF(B81=0,0,P80),0) -> 0 | R81: 0 | T81: =IFERROR(IF(Simulador!$U$30=1,0,IF($B81<=0,0,$B81*Simulador!$AA$43)),0) -> 0 | V81: =IFERROR(IF(Simulador!$U$30=1,0,IF($B81<=0,0,IF(Simulador!$D$22>0,Simulador!$D$22,Simulador!$O$24)*Simulador!$AA$44)),0) -> 0 | Y81: 0 | AD81: 5 | AE81: 7 | AF81: 0 | AG81: 0 | AH81: 0 | AI81: 0 | AJ81: 0 | AK81: 0 | AL81: 0 | AM81: 0 | AN81: 0 | AO81: 0 | AP81: =IFERROR(IF(Simulador!$U$30=1,0,IF($AK81<=0,0,$AK81*Simulador!$AA$43)),0)+IFERROR(IF(Simulador!$U$30=1,0,IF($AK81<=0,0,IF(Simulador!$D$22>0,Simulador!$D$22,Simulador!$O$24)*Simulador!$AA$44)),0) -> 0 | AQ81: 0 | AR81: =IFERROR(IF(AK81=0,0,AR80),0) -> 0 | AS81: 0 | AT81: =IF(AK81=0,"",DATE(YEAR(AT80),MONTH(AT80)+1,1)) ->  | AU81: 0 | AV81: 67
A82: 68 | B82: 0 | D82: =IF(B82+F82-D81<=0,B82+F82,IF(AND(OR(Simulador!$U$39=2,Simulador!$U$39=7),J81=0),IFERROR((((P82/360*AU82)/(1-(1+(P82/360*AU82))^-AS82))*B82)*(1+AA82),0),IF($AF$3=2,B82*AJ82,IFERROR((((P82/360*AU82)/(1-(1+(P82/360*AU82))^-AS82))*B82)*(1+AA82),0)))) -> 0 | F82: 0 | H82: 0 | L82: =IF(Simulador!$T$41=1,0,J82*Simulador!$W$39*1.16) -> 0 | N82: =IF(B82-H82=0,0,N80) -> 0 | P82: 0 | R82: 0 | T82: =IFERROR(IF(Simulador!$U$30=1,0,IF($B82<=0,0,$B82*Simulador!$AA$43)),0) -> 0 | V82: =IFERROR(IF(Simulador!$U$30=1,0,IF($B82<=0,0,IF(Simulador!$D$22>0,Simulador!$D$22,Simulador!$O$24)*Simulador!$AA$44)),0) -> 0 | Y82: 0 | AD82: 5 | AE82: 8 | AF82: 0 | AG82: 0 | AH82: 0 | AI82: 0 | AJ82: 0 | AK82: 0 | AL82: 0 | AM82: 0 | AN82: 0 | AO82: 0 | AP82: =IFERROR(IF(Simulador!$U$30=1,0,IF($AK82<=0,0,$AK82*Simulador!$AA$43)),0)+IFERROR(IF(Simulador!$U$30=1,0,IF($AK82<=0,0,IF(Simulador!$D$22>0,Simulador!$D$22,Simulador!$O$24)*Simulador!$AA$44)),0) -> 0 | AQ82: 0 | AR82: 0 | AS82: 0 | AU82: 0 | AV82: 68
A83: 69 | B83: 0 | D83: =IF(B83+F83-D82<=0,B83+F83,IF(AND(OR(Simulador!$U$39=2,Simulador!$U$39=7),J82=0),IFERROR((((P83/360*AU83)/(1-(1+(P83/360*AU83))^-AS83))*B83)*(1+AA83),0),IF($AF$3=2,B83*AJ83,IFERROR((((P83/360*AU83)/(1-(1+(P83/360*AU83))^-AS83))*B83)*(1+AA83),0)))) -> 0 | F83: 0 | H83: 0 | L83: =IF(Simulador!$T$41=1,0,J83*Simulador!$W$39*1.16) -> 0 | P83: 0 | R83: 0 | T83: =IFERROR(IF(Simulador!$U$30=1,0,IF($B83<=0,0,$B83*Simulador!$AA$43)),0) -> 0 | V83: =IFERROR(IF(Simulador!$U$30=1,0,IF($B83<=0,0,IF(Simulador!$D$22>0,Simulador!$D$22,Simulador!$O$24)*Simulador!$AA$44)),0) -> 0 | Y83: 0 | AD83: 5 | AE83: 9 | AF83: 0 | AG83: 0 | AH83: 0 | AI83: 0 | AJ83: 0 | AK83: 0 | AL83: 0 | AM83: 0 | AN83: 0 | AO83: 0 | AP83: =IFERROR(IF(Simulador!$U$30=1,0,IF($AK83<=0,0,$AK83*Simulador!$AA$43)),0)+IFERROR(IF(Simulador!$U$30=1,0,IF($AK83<=0,0,IF(Simulador!$D$22>0,Simulador!$D$22,Simulador!$O$24)*Simulador!$AA$44)),0) -> 0 | AQ83: 0 | AR83: 0 | AS83: 0 | AU83: 0 | AV83: 69
A84: 70 | B84: 0 | D84: =IF(B84+F84-D83<=0,B84+F84,IF(AND(OR(Simulador!$U$39=2,Simulador!$U$39=7),J83=0),IFERROR((((P84/360*AU84)/(1-(1+(P84/360*AU84))^-AS84))*B84)*(1+AA84),0),IF($AF$3=2,B84*AJ84,IFERROR((((P84/360*AU84)/(1-(1+(P84/360*AU84))^-AS84))*B84)*(1+AA84),0)))) -> 0 | F84: 0 | H84: 0 | L84: =IF(Simulador!$T$41=1,0,J84*Simulador!$W$39*1.16) -> 0 | N84: =IF(B84-H84=0,0,N82) -> 0 | P84: 0 | R84: 0 | T84: =IFERROR(IF(Simulador!$U$30=1,0,IF($B84<=0,0,$B84*Simulador!$AA$43)),0) -> 0 | V84: =IFERROR(IF(Simulador!$U$30=1,0,IF($B84<=0,0,IF(Simulador!$D$22>0,Simulador!$D$22,Simulador!$O$24)*Simulador!$AA$44)),0) -> 0 | Y84: 0 | AD84: 5 | AE84: 10 | AF84: 0 | AG84: 0 | AH84: 0 | AI84: 0 | AJ84: 0 | AK84: 0 | AL84: 0 | AM84: 0 | AN84: 0 | AO84: 0 | AP84: =IFERROR(IF(Simulador!$U$30=1,0,IF($AK84<=0,0,$AK84*Simulador!$AA$43)),0)+IFERROR(IF(Simulador!$U$30=1,0,IF($AK84<=0,0,IF(Simulador!$D$22>0,Simulador!$D$22,Simulador!$O$24)*Simulador!$AA$44)),0) -> 0 | AQ84: 0 | AR84: 0 | AS84: 0 | AU84: 0 | AV84: 70
A85: 71 | B85: 0 | D85: =IF(B85+F85-D84<=0,B85+F85,IF(AND(OR(Simulador!$U$39=2,Simulador!$U$39=7),J84=0),IFERROR((((P85/360*AU85)/(1-(1+(P85/360*AU85))^-AS85))*B85)*(1+AA85),0),IF($AF$3=2,B85*AJ85,IFERROR((((P85/360*AU85)/(1-(1+(P85/360*AU85))^-AS85))*B85)*(1+AA85),0)))) -> 0 | F85: 0 | H85: 0 | L85: =IF(Simulador!$T$41=1,0,J85*Simulador!$W$39*1.16) -> 0 | P85: 0 | R85: 0 | T85: =IFERROR(IF(Simulador!$U$30=1,0,IF($B85<=0,0,$B85*Simulador!$AA$43)),0) -> 0 | V85: =IFERROR(IF(Simulador!$U$30=1,0,IF($B85<=0,0,IF(Simulador!$D$22>0,Simulador!$D$22,Simulador!$O$24)*Simulador!$AA$44)),0) -> 0 | Y85: 0 | AD85: 5 | AE85: 11 | AF85: 0 | AG85: 0 | AH85: 0 | AI85: 0 | AJ85: 0 | AK85: 0 | AL85: 0 | AM85: 0 | AN85: 0 | AO85: 0 | AP85: =IFERROR(IF(Simulador!$U$30=1,0,IF($AK85<=0,0,$AK85*Simulador!$AA$43)),0)+IFERROR(IF(Simulador!$U$30=1,0,IF($AK85<=0,0,IF(Simulador!$D$22>0,Simulador!$D$22,Simulador!$O$24)*Simulador!$AA$44)),0) -> 0 | AQ85: 0 | AR85: 0 | AS85: 0 | AU85: 0 | AV85: 71
A86: 72 | B86: 0 | D86: =IF(B86+F86-D85<=0,B86+F86,IF(AND(OR(Simulador!$U$39=2,Simulador!$U$39=7),J85=0),IFERROR((((P86/360*AU86)/(1-(1+(P86/360*AU86))^-AS86))*B86)*(1+AA86),0),IF($AF$3=2,B86*AJ86,IFERROR((((P86/360*AU86)/(1-(1+(P86/360*AU86))^-AS86))*B86)*(1+AA86),0)))) -> 0 | F86: 0 | H86: 0 | L86: =IF(Simulador!$T$41=1,0,J86*Simulador!$W$39*1.16) -> 0 | N86: =IF(B86-H86=0,0,N84) -> 0 | P86: 0 | R86: 0 | T86: =IFERROR(IF(Simulador!$U$30=1,0,IF($B86<=0,0,$B86*Simulador!$AA$43)),0) -> 0 | V86: =IFERROR(IF(Simulador!$U$30=1,0,IF($B86<=0,0,IF(Simulador!$D$22>0,Simulador!$D$22,Simulador!$O$24)*Simulador!$AA$44)),0) -> 0 | Y86: 0 | AD86: 6 | AE86: 0 | AF86: 0 | AG86: 0 | AH86: 0 | AI86: 0 | AJ86: 0 | AK86: 0 | AL86: 0 | AM86: 0 | AN86: 0 | AO86: 0 | AP86: =IFERROR(IF(Simulador!$U$30=1,0,IF($AK86<=0,0,$AK86*Simulador!$AA$43)),0)+IFERROR(IF(Simulador!$U$30=1,0,IF($AK86<=0,0,IF(Simulador!$D$22>0,Simulador!$D$22,Simulador!$O$24)*Simulador!$AA$44)),0) -> 0 | AQ86: 0 | AR86: 0 | AS86: 0 | AU86: 0 | AV86: 72
A87: 73 | B87: 0 | D87: =IF(B87+F87-D86<=0,B87+F87,IF(AND(OR(Simulador!$U$39=2,Simulador!$U$39=7),J86=0),IFERROR((((P87/360*AU87)/(1-(1+(P87/360*AU87))^-AS87))*B87)*(1+AA87),0),IF($AF$3=2,B87*AJ87,IFERROR((((P87/360*AU87)/(1-(1+(P87/360*AU87))^-AS87))*B87)*(1+AA87),0)))) -> 0 | F87: 0 | H87: 0 | L87: =IF(Simulador!$T$41=1,0,J87*Simulador!$W$39*1.16) -> 0 | P87: 0 | R87: 0 | T87: =IFERROR(IF(Simulador!$U$30=1,0,IF($B87<=0,0,$B87*Simulador!$AA$43)),0) -> 0 | V87: =IFERROR(IF(Simulador!$U$30=1,0,IF($B87<=0,0,IF(Simulador!$D$22>0,Simulador!$D$22,Simulador!$O$24)*Simulador!$AA$44)),0) -> 0 | Y87: 0 | AA87: =IF(B87<=0,0,Simulador!$I$46) -> 0 | AD87: 6 | AE87: 1 | AF87: 0 | AG87: 0 | AH87: 0 | AI87: 0 | AJ87: 0 | AK87: 0 | AL87: 0 | AM87: 0 | AN87: 0 | AO87: 0 | AP87: =IFERROR(IF(Simulador!$U$30=1,0,IF($AK87<=0,0,$AK87*Simulador!$AA$43)),0)+IFERROR(IF(Simulador!$U$30=1,0,IF($AK87<=0,0,IF(Simulador!$D$22>0,Simulador!$D$22,Simulador!$O$24)*Simulador!$AA$44)),0) -> 0 | AQ87: 0 | AR87: 0 | AS87: 0 | AU87: 0 | AV87: 73
A88: 74 | B88: 0 | D88: =IF(B88+F88-D87<=0,B88+F88,IF(AND(OR(Simulador!$U$39=2,Simulador!$U$39=7),J87=0),IFERROR((((P88/360*AU88)/(1-(1+(P88/360*AU88))^-AS88))*B88)*(1+AA88),0),IF($AF$3=2,B88*AJ88,IFERROR((((P88/360*AU88)/(1-(1+(P88/360*AU88))^-AS88))*B88)*(1+AA88),0)))) -> 0 | F88: 0 | H88: 0 | L88: =IF(Simulador!$T$41=1,0,J88*Simulador!$W$39*1.16) -> 0 | N88: =IF(B88-H88=0,0,N86*(1+(Simulador!$AH$72))) -> 0 | P88: 0 | R88: 0 | T88: =IFERROR(IF(Simulador!$U$30=1,0,IF($B88<=0,0,$B88*Simulador!$AA$43)),0) -> 0 | V88: =IFERROR(IF(Simulador!$U$30=1,0,IF($B88<=0,0,IF(Simulador!$D$22>0,Simulador!$D$22,Simulador!$O$24)*Simulador!$AA$44)),0) -> 0 | Y88: 0 | AD88: 6 | AE88: 2 | AF88: 0 | AG88: 0 | AH88: 0 | AI88: 0 | AJ88: 0 | AK88: 0 | AL88: 0 | AM88: 0 | AN88: 0 | AO88: 0 | AP88: =IFERROR(IF(Simulador!$U$30=1,0,IF($AK88<=0,0,$AK88*Simulador!$AA$43)),0)+IFERROR(IF(Simulador!$U$30=1,0,IF($AK88<=0,0,IF(Simulador!$D$22>0,Simulador!$D$22,Simulador!$O$24)*Simulador!$AA$44)),0) -> 0 | AQ88: 0 | AR88: 0 | AS88: 0 | AU88: 0 | AV88: 74
A89: 75 | B89: 0 | D89: =IF(B89+F89-D88<=0,B89+F89,IF(AND(OR(Simulador!$U$39=2,Simulador!$U$39=7),J88=0),IFERROR((((P89/360*AU89)/(1-(1+(P89/360*AU89))^-AS89))*B89)*(1+AA89),0),IF($AF$3=2,B89*AJ89,IFERROR((((P89/360*AU89)/(1-(1+(P89/360*AU89))^-AS89))*B89)*(1+AA89),0)))) -> 0 | F89: 0 | H89: 0 | L89: =IF(Simulador!$T$41=1,0,J89*Simulador!$W$39*1.16) -> 0 | P89: 0 | R89: 0 | T89: =IFERROR(IF(Simulador!$U$30=1,0,IF($B89<=0,0,$B89*Simulador!$AA$43)),0) -> 0 | V89: =IFERROR(IF(Simulador!$U$30=1,0,IF($B89<=0,0,IF(Simulador!$D$22>0,Simulador!$D$22,Simulador!$O$24)*Simulador!$AA$44)),0) -> 0 | Y89: 0 | AD89: 6 | AE89: 3 | AF89: 0 | AG89: 0 | AH89: 0 | AI89: 0 | AJ89: 0 | AK89: 0 | AL89: 0 | AM89: 0 | AN89: 0 | AO89: 0 | AP89: =IFERROR(IF(Simulador!$U$30=1,0,IF($AK89<=0,0,$AK89*Simulador!$AA$43)),0)+IFERROR(IF(Simulador!$U$30=1,0,IF($AK89<=0,0,IF(Simulador!$D$22>0,Simulador!$D$22,Simulador!$O$24)*Simulador!$AA$44)),0) -> 0 | AQ89: 0 | AR89: 0 | AS89: 0 | AU89: 0 | AV89: 75
A90: 76 | B90: 0 | D90: =IF(B90+F90-D89<=0,B90+F90,IF(AND(OR(Simulador!$U$39=2,Simulador!$U$39=7),J89=0),IFERROR((((P90/360*AU90)/(1-(1+(P90/360*AU90))^-AS90))*B90)*(1+AA90),0),IF($AF$3=2,B90*AJ90,IFERROR((((P90/360*AU90)/(1-(1+(P90/360*AU90))^-AS90))*B90)*(1+AA90),0)))) -> 0 | F90: 0 | H90: 0 | L90: =IF(Simulador!$T$41=1,0,J90*Simulador!$W$39*1.16) -> 0 | N90: =IF(B90-H90=0,0,N88) -> 0 | P90: 0 | R90: 0 | T90: =IFERROR(IF(Simulador!$U$30=1,0,IF($B90<=0,0,$B90*Simulador!$AA$43)),0) -> 0 | V90: =IFERROR(IF(Simulador!$U$30=1,0,IF($B90<=0,0,IF(Simulador!$D$22>0,Simulador!$D$22,Simulador!$O$24)*Simulador!$AA$44)),0) -> 0 | Y90: 0 | AD90: 6 | AE90: 4 | AF90: 0 | AG90: 0 | AH90: 0 | AI90: 0 | AJ90: 0 | AK90: 0 | AL90: 0 | AM90: 0 | AN90: 0 | AO90: 0 | AP90: =IFERROR(IF(Simulador!$U$30=1,0,IF($AK90<=0,0,$AK90*Simulador!$AA$43)),0)+IFERROR(IF(Simulador!$U$30=1,0,IF($AK90<=0,0,IF(Simulador!$D$22>0,Simulador!$D$22,Simulador!$O$24)*Simulador!$AA$44)),0) -> 0 | AQ90: 0 | AR90: 0 | AS90: 0 | AU90: 0 | AV90: 76
A91: 77 | B91: 0 | D91: =IF(B91+F91-D90<=0,B91+F91,IF(AND(OR(Simulador!$U$39=2,Simulador!$U$39=7),J90=0),IFERROR((((P91/360*AU91)/(1-(1+(P91/360*AU91))^-AS91))*B91)*(1+AA91),0),IF($AF$3=2,B91*AJ91,IFERROR((((P91/360*AU91)/(1-(1+(P91/360*AU91))^-AS91))*B91)*(1+AA91),0)))) -> 0 | F91: 0 | H91: 0 | L91: =IF(Simulador!$T$41=1,0,J91*Simulador!$W$39*1.16) -> 0 | P91: 0 | R91: 0 | T91: =IFERROR(IF(Simulador!$U$30=1,0,IF($B91<=0,0,$B91*Simulador!$AA$43)),0) -> 0 | V91: =IFERROR(IF(Simulador!$U$30=1,0,IF($B91<=0,0,IF(Simulador!$D$22>0,Simulador!$D$22,Simulador!$O$24)*Simulador!$AA$44)),0) -> 0 | Y91: 0 | AD91: 6 | AE91: 5 | AF91: 0 | AG91: 0 | AH91: 0 | AI91: 0 | AJ91: 0 | AK91: 0 | AL91: 0 | AM91: 0 | AN91: 0 | AO91: 0 | AP91: =IFERROR(IF(Simulador!$U$30=1,0,IF($AK91<=0,0,$AK91*Simulador!$AA$43)),0)+IFERROR(IF(Simulador!$U$30=1,0,IF($AK91<=0,0,IF(Simulador!$D$22>0,Simulador!$D$22,Simulador!$O$24)*Simulador!$AA$44)),0) -> 0 | AQ91: 0 | AR91: 0 | AS91: 0 | AU91: 0 | AV91: 77
A92: 78 | B92: 0 | D92: =IF(B92+F92-D91<=0,B92+F92,IF(AND(OR(Simulador!$U$39=2,Simulador!$U$39=7),J91=0),IFERROR((((P92/360*AU92)/(1-(1+(P92/360*AU92))^-AS92))*B92)*(1+AA92),0),IF($AF$3=2,B92*AJ92,IFERROR((((P92/360*AU92)/(1-(1+(P92/360*AU92))^-AS92))*B92)*(1+AA92),0)))) -> 0 | F92: 0 | H92: 0 | L92: =IF(Simulador!$T$41=1,0,J92*Simulador!$W$39*1.16) -> 0 | N92: =IF(B92-H92=0,0,N90) -> 0 | P92: 0 | R92: 0 | T92: =IFERROR(IF(Simulador!$U$30=1,0,IF($B92<=0,0,$B92*Simulador!$AA$43)),0) -> 0 | V92: =IFERROR(IF(Simulador!$U$30=1,0,IF($B92<=0,0,IF(Simulador!$D$22>0,Simulador!$D$22,Simulador!$O$24)*Simulador!$AA$44)),0) -> 0 | Y92: 0 | AD92: 6 | AE92: 6 | AF92: 0 | AG92: 0 | AH92: 0 | AI92: 0 | AJ92: 0 | AK92: 0 | AL92: 0 | AM92: 0 | AN92: 0 | AO92: 0 | AP92: =IFERROR(IF(Simulador!$U$30=1,0,IF($AK92<=0,0,$AK92*Simulador!$AA$43)),0)+IFERROR(IF(Simulador!$U$30=1,0,IF($AK92<=0,0,IF(Simulador!$D$22>0,Simulador!$D$22,Simulador!$O$24)*Simulador!$AA$44)),0) -> 0 | AQ92: 0 | AR92: 0 | AS92: 0 | AU92: 0 | AV92: 78
A93: 79 | B93: 0 | D93: =IF(B93+F93-D92<=0,B93+F93,IF(AND(OR(Simulador!$U$39=2,Simulador!$U$39=7),J92=0),IFERROR((((P93/360*AU93)/(1-(1+(P93/360*AU93))^-AS93))*B93)*(1+AA93),0),IF($AF$3=2,B93*AJ93,IFERROR((((P93/360*AU93)/(1-(1+(P93/360*AU93))^-AS93))*B93)*(1+AA93),0)))) -> 0 | F93: 0 | H93: 0 | L93: =IF(Simulador!$T$41=1,0,J93*Simulador!$W$39*1.16) -> 0 | P93: 0 | R93: 0 | T93: =IFERROR(IF(Simulador!$U$30=1,0,IF($B93<=0,0,$B93*Simulador!$AA$43)),0) -> 0 | V93: =IFERROR(IF(Simulador!$U$30=1,0,IF($B93<=0,0,IF(Simulador!$D$22>0,Simulador!$D$22,Simulador!$O$24)*Simulador!$AA$44)),0) -> 0 | Y93: 0 | AD93: 6 | AE93: 7 | AF93: 0 | AG93: 0 | AH93: 0 | AI93: 0 | AJ93: 0 | AK93: 0 | AL93: 0 | AM93: 0 | AN93: 0 | AO93: 0 | AP93: =IFERROR(IF(Simulador!$U$30=1,0,IF($AK93<=0,0,$AK93*Simulador!$AA$43)),0)+IFERROR(IF(Simulador!$U$30=1,0,IF($AK93<=0,0,IF(Simulador!$D$22>0,Simulador!$D$22,Simulador!$O$24)*Simulador!$AA$44)),0) -> 0 | AQ93: 0 | AR93: 0 | AS93: 0 | AU93: 0 | AV93: 79
A94: 80 | B94: 0 | D94: =IF(B94+F94-D93<=0,B94+F94,IF(AND(OR(Simulador!$U$39=2,Simulador!$U$39=7),J93=0),IFERROR((((P94/360*AU94)/(1-(1+(P94/360*AU94))^-AS94))*B94)*(1+AA94),0),IF($AF$3=2,B94*AJ94,IFERROR((((P94/360*AU94)/(1-(1+(P94/360*AU94))^-AS94))*B94)*(1+AA94),0)))) -> 0 | F94: 0 | H94: 0 | L94: =IF(Simulador!$T$41=1,0,J94*Simulador!$W$39*1.16) -> 0 | N94: =IF(B94-H94=0,0,N92) -> 0 | P94: 0 | R94: 0 | T94: =IFERROR(IF(Simulador!$U$30=1,0,IF($B94<=0,0,$B94*Simulador!$AA$43)),0) -> 0 | V94: =IFERROR(IF(Simulador!$U$30=1,0,IF($B94<=0,0,IF(Simulador!$D$22>0,Simulador!$D$22,Simulador!$O$24)*Simulador!$AA$44)),0) -> 0 | Y94: 0 | AD94: 6 | AE94: 8 | AF94: 0 | AG94: 0 | AH94: 0 | AI94: 0 | AJ94: 0 | AK94: 0 | AL94: 0 | AM94: 0 | AN94: 0 | AO94: 0 | AP94: =IFERROR(IF(Simulador!$U$30=1,0,IF($AK94<=0,0,$AK94*Simulador!$AA$43)),0)+IFERROR(IF(Simulador!$U$30=1,0,IF($AK94<=0,0,IF(Simulador!$D$22>0,Simulador!$D$22,Simulador!$O$24)*Simulador!$AA$44)),0) -> 0 | AQ94: 0 | AR94: 0 | AS94: 0 | AU94: 0 | AV94: 80
A95: 81 | B95: 0 | D95: =IF(B95+F95-D94<=0,B95+F95,IF(AND(OR(Simulador!$U$39=2,Simulador!$U$39=7),J94=0),IFERROR((((P95/360*AU95)/(1-(1+(P95/360*AU95))^-AS95))*B95)*(1+AA95),0),IF($AF$3=2,B95*AJ95,IFERROR((((P95/360*AU95)/(1-(1+(P95/360*AU95))^-AS95))*B95)*(1+AA95),0)))) -> 0 | F95: 0 | H95: 0 | L95: =IF(Simulador!$T$41=1,0,J95*Simulador!$W$39*1.16) -> 0 | P95: 0 | R95: 0 | T95: =IFERROR(IF(Simulador!$U$30=1,0,IF($B95<=0,0,$B95*Simulador!$AA$43)),0) -> 0 | V95: =IFERROR(IF(Simulador!$U$30=1,0,IF($B95<=0,0,IF(Simulador!$D$22>0,Simulador!$D$22,Simulador!$O$24)*Simulador!$AA$44)),0) -> 0 | Y95: 0 | AD95: 6 | AE95: 9 | AF95: 0 | AG95: 0 | AH95: 0 | AI95: 0 | AJ95: 0 | AK95: 0 | AL95: 0 | AM95: 0 | AN95: 0 | AO95: 0 | AP95: =IFERROR(IF(Simulador!$U$30=1,0,IF($AK95<=0,0,$AK95*Simulador!$AA$43)),0)+IFERROR(IF(Simulador!$U$30=1,0,IF($AK95<=0,0,IF(Simulador!$D$22>0,Simulador!$D$22,Simulador!$O$24)*Simulador!$AA$44)),0) -> 0 | AQ95: 0 | AR95: 0 | AS95: 0 | AU95: 0 | AV95: 81
A96: 82 | B96: 0 | D96: =IF(B96+F96-D95<=0,B96+F96,IF(AND(OR(Simulador!$U$39=2,Simulador!$U$39=7),J95=0),IFERROR((((P96/360*AU96)/(1-(1+(P96/360*AU96))^-AS96))*B96)*(1+AA96),0),IF($AF$3=2,B96*AJ96,IFERROR((((P96/360*AU96)/(1-(1+(P96/360*AU96))^-AS96))*B96)*(1+AA96),0)))) -> 0 | F96: 0 | H96: 0 | L96: =IF(Simulador!$T$41=1,0,J96*Simulador!$W$39*1.16) -> 0 | N96: =IF(B96-H96=0,0,N94) -> 0 | P96: 0 | R96: 0 | T96: =IFERROR(IF(Simulador!$U$30=1,0,IF($B96<=0,0,$B96*Simulador!$AA$43)),0) -> 0 | V96: =IFERROR(IF(Simulador!$U$30=1,0,IF($B96<=0,0,IF(Simulador!$D$22>0,Simulador!$D$22,Simulador!$O$24)*Simulador!$AA$44)),0) -> 0 | Y96: 0 | AD96: 6 | AE96: 10 | AF96: 0 | AG96: 0 | AH96: 0 | AI96: 0 | AJ96: 0 | AK96: 0 | AL96: 0 | AM96: 0 | AN96: 0 | AO96: 0 | AP96: =IFERROR(IF(Simulador!$U$30=1,0,IF($AK96<=0,0,$AK96*Simulador!$AA$43)),0)+IFERROR(IF(Simulador!$U$30=1,0,IF($AK96<=0,0,IF(Simulador!$D$22>0,Simulador!$D$22,Simulador!$O$24)*Simulador!$AA$44)),0) -> 0 | AQ96: 0 | AR96: 0 | AS96: 0 | AU96: 0 | AV96: 82
A97: 83 | B97: 0 | D97: =IF(B97+F97-D96<=0,B97+F97,IF(AND(OR(Simulador!$U$39=2,Simulador!$U$39=7),J96=0),IFERROR((((P97/360*AU97)/(1-(1+(P97/360*AU97))^-AS97))*B97)*(1+AA97),0),IF($AF$3=2,B97*AJ97,IFERROR((((P97/360*AU97)/(1-(1+(P97/360*AU97))^-AS97))*B97)*(1+AA97),0)))) -> 0 | F97: 0 | H97: 0 | L97: =IF(Simulador!$T$41=1,0,J97*Simulador!$W$39*1.16) -> 0 | P97: 0 | R97: 0 | T97: =IFERROR(IF(Simulador!$U$30=1,0,IF($B97<=0,0,$B97*Simulador!$AA$43)),0) -> 0 | V97: =IFERROR(IF(Simulador!$U$30=1,0,IF($B97<=0,0,IF(Simulador!$D$22>0,Simulador!$D$22,Simulador!$O$24)*Simulador!$AA$44)),0) -> 0 | Y97: 0 | AD97: 6 | AE97: 11 | AF97: 0 | AG97: 0 | AH97: 0 | AI97: 0 | AJ97: 0 | AK97: 0 | AL97: 0 | AM97: 0 | AN97: 0 | AO97: 0 | AP97: =IFERROR(IF(Simulador!$U$30=1,0,IF($AK97<=0,0,$AK97*Simulador!$AA$43)),0)+IFERROR(IF(Simulador!$U$30=1,0,IF($AK97<=0,0,IF(Simulador!$D$22>0,Simulador!$D$22,Simulador!$O$24)*Simulador!$AA$44)),0) -> 0 | AQ97: 0 | AR97: 0 | AS97: 0 | AU97: 0 | AV97: 83
A98: 84 | B98: 0 | D98: =IF(B98+F98-D97<=0,B98+F98,IF(AND(OR(Simulador!$U$39=2,Simulador!$U$39=7),J97=0),IFERROR((((P98/360*AU98)/(1-(1+(P98/360*AU98))^-AS98))*B98)*(1+AA98),0),IF($AF$3=2,B98*AJ98,IFERROR((((P98/360*AU98)/(1-(1+(P98/360*AU98))^-AS98))*B98)*(1+AA98),0)))) -> 0 | F98: 0 | H98: 0 | L98: =IF(Simulador!$T$41=1,0,J98*Simulador!$W$39*1.16) -> 0 | N98: =IF(B98-H98=0,0,N96) -> 0 | P98: 0 | R98: 0 | T98: =IFERROR(IF(Simulador!$U$30=1,0,IF($B98<=0,0,$B98*Simulador!$AA$43)),0) -> 0 | V98: =IFERROR(IF(Simulador!$U$30=1,0,IF($B98<=0,0,IF(Simulador!$D$22>0,Simulador!$D$22,Simulador!$O$24)*Simulador!$AA$44)),0) -> 0 | Y98: 0 | AD98: 7 | AE98: 0 | AF98: 0 | AG98: 0 | AH98: 0 | AI98: 0 | AJ98: 0 | AK98: 0 | AL98: 0 | AM98: 0 | AN98: 0 | AO98: 0 | AP98: =IFERROR(IF(Simulador!$U$30=1,0,IF($AK98<=0,0,$AK98*Simulador!$AA$43)),0)+IFERROR(IF(Simulador!$U$30=1,0,IF($AK98<=0,0,IF(Simulador!$D$22>0,Simulador!$D$22,Simulador!$O$24)*Simulador!$AA$44)),0) -> 0 | AQ98: 0 | AR98: 0 | AS98: 0 | AU98: 0 | AV98: 84
A99: 85 | B99: 0 | D99: =IF(B99+F99-D98<=0,B99+F99,IF(AND(OR(Simulador!$U$39=2,Simulador!$U$39=7),J98=0),IFERROR((((P99/360*AU99)/(1-(1+(P99/360*AU99))^-AS99))*B99)*(1+AA99),0),IF($AF$3=2,B99*AJ99,IFERROR((((P99/360*AU99)/(1-(1+(P99/360*AU99))^-AS99))*B99)*(1+AA99),0)))) -> 0 | F99: 0 | H99: 0 | L99: =IF(Simulador!$T$41=1,0,J99*Simulador!$W$39*1.16) -> 0 | P99: 0 | R99: 0 | T99: =IFERROR(IF(Simulador!$U$30=1,0,IF($B99<=0,0,$B99*Simulador!$AA$43)),0) -> 0 | V99: =IFERROR(IF(Simulador!$U$30=1,0,IF($B99<=0,0,IF(Simulador!$D$22>0,Simulador!$D$22,Simulador!$O$24)*Simulador!$AA$44)),0) -> 0 | Y99: 0 | AA99: =IF(B99<=0,0,Simulador!$I$46) -> 0 | AD99: 7 | AE99: 1 | AF99: 0 | AG99: 0 | AH99: 0 | AI99: 0 | AJ99: 0 | AK99: 0 | AL99: 0 | AM99: 0 | AN99: 0 | AO99: 0 | AP99: =IFERROR(IF(Simulador!$U$30=1,0,IF($AK99<=0,0,$AK99*Simulador!$AA$43)),0)+IFERROR(IF(Simulador!$U$30=1,0,IF($AK99<=0,0,IF(Simulador!$D$22>0,Simulador!$D$22,Simulador!$O$24)*Simulador!$AA$44)),0) -> 0 | AQ99: 0 | AR99: 0 | AS99: 0 | AU99: 0 | AV99: 85
A100: 86 | B100: 0 | D100: =IF(B100+F100-D99<=0,B100+F100,IF(AND(OR(Simulador!$U$39=2,Simulador!$U$39=7),J99=0),IFERROR((((P100/360*AU100)/(1-(1+(P100/360*AU100))^-AS100))*B100)*(1+AA100),0),IF($AF$3=2,B100*AJ100,IFERROR((((P100/360*AU100)/(1-(1+(P100/360*AU100))^-AS100))*B100)*(1+AA100),0)))) -> 0 | F100: 0 | H100: 0 | L100: =IF(Simulador!$T$41=1,0,J100*Simulador!$W$39*1.16) -> 0 | N100: =IF(B100-H100=0,0,N98*(1+(Simulador!$AH$72))) -> 0 | P100: 0 | R100: 0 | T100: =IFERROR(IF(Simulador!$U$30=1,0,IF($B100<=0,0,$B100*Simulador!$AA$43)),0) -> 0 | V100: =IFERROR(IF(Simulador!$U$30=1,0,IF($B100<=0,0,IF(Simulador!$D$22>0,Simulador!$D$22,Simulador!$O$24)*Simulador!$AA$44)),0) -> 0 | Y100: 0 | AD100: 7 | AE100: 2 | AF100: 0 | AG100: 0 | AH100: 0 | AI100: 0 | AJ100: 0 | AK100: 0 | AL100: 0 | AM100: 0 | AN100: 0 | AO100: 0 | AP100: =IFERROR(IF(Simulador!$U$30=1,0,IF($AK100<=0,0,$AK100*Simulador!$AA$43)),0)+IFERROR(IF(Simulador!$U$30=1,0,IF($AK100<=0,0,IF(Simulador!$D$22>0,Simulador!$D$22,Simulador!$O$24)*Simulador!$AA$44)),0) -> 0 | AQ100: 0 | AR100: 0 | AS100: 0 | AU100: 0 | AV100: 86
A101: 87 | B101: 0 | D101: =IF(B101+F101-D100<=0,B101+F101,IF(AND(OR(Simulador!$U$39=2,Simulador!$U$39=7),J100=0),IFERROR((((P101/360*AU101)/(1-(1+(P101/360*AU101))^-AS101))*B101)*(1+AA101),0),IF($AF$3=2,B101*AJ101,IFERROR((((P101/360*AU101)/(1-(1+(P101/360*AU101))^-AS101))*B101)*(1+AA101),0)))) -> 0 | F101: 0 | H101: 0 | L101: =IF(Simulador!$T$41=1,0,J101*Simulador!$W$39*1.16) -> 0 | P101: 0 | R101: 0 | T101: =IFERROR(IF(Simulador!$U$30=1,0,IF($B101<=0,0,$B101*Simulador!$AA$43)),0) -> 0 | V101: =IFERROR(IF(Simulador!$U$30=1,0,IF($B101<=0,0,IF(Simulador!$D$22>0,Simulador!$D$22,Simulador!$O$24)*Simulador!$AA$44)),0) -> 0 | Y101: 0 | AD101: 7 | AE101: 3 | AF101: 0 | AG101: 0 | AH101: 0 | AI101: 0 | AJ101: 0 | AK101: 0 | AL101: 0 | AM101: 0 | AN101: 0 | AO101: 0 | AP101: =IFERROR(IF(Simulador!$U$30=1,0,IF($AK101<=0,0,$AK101*Simulador!$AA$43)),0)+IFERROR(IF(Simulador!$U$30=1,0,IF($AK101<=0,0,IF(Simulador!$D$22>0,Simulador!$D$22,Simulador!$O$24)*Simulador!$AA$44)),0) -> 0 | AQ101: 0 | AR101: 0 | AS101: 0 | AU101: 0 | AV101: 87
A102: 88 | B102: 0 | D102: =IF(B102+F102-D101<=0,B102+F102,IF(AND(OR(Simulador!$U$39=2,Simulador!$U$39=7),J101=0),IFERROR((((P102/360*AU102)/(1-(1+(P102/360*AU102))^-AS102))*B102)*(1+AA102),0),IF($AF$3=2,B102*AJ102,IFERROR((((P102/360*AU102)/(1-(1+(P102/360*AU102))^-AS102))*B102)*(1+AA102),0)))) -> 0 | F102: 0 | H102: 0 | L102: =IF(Simulador!$T$41=1,0,J102*Simulador!$W$39*1.16) -> 0 | N102: =IF(B102-H102=0,0,N100) -> 0 | P102: 0 | R102: 0 | T102: =IFERROR(IF(Simulador!$U$30=1,0,IF($B102<=0,0,$B102*Simulador!$AA$43)),0) -> 0 | V102: =IFERROR(IF(Simulador!$U$30=1,0,IF($B102<=0,0,IF(Simulador!$D$22>0,Simulador!$D$22,Simulador!$O$24)*Simulador!$AA$44)),0) -> 0 | Y102: 0 | AD102: 7 | AE102: 4 | AF102: 0 | AG102: 0 | AH102: 0 | AI102: 0 | AJ102: 0 | AK102: 0 | AL102: 0 | AM102: 0 | AN102: 0 | AO102: 0 | AP102: =IFERROR(IF(Simulador!$U$30=1,0,IF($AK102<=0,0,$AK102*Simulador!$AA$43)),0)+IFERROR(IF(Simulador!$U$30=1,0,IF($AK102<=0,0,IF(Simulador!$D$22>0,Simulador!$D$22,Simulador!$O$24)*Simulador!$AA$44)),0) -> 0 | AQ102: 0 | AR102: 0 | AS102: 0 | AU102: 0 | AV102: 88
A103: 89 | B103: 0 | D103: =IF(B103+F103-D102<=0,B103+F103,IF(AND(OR(Simulador!$U$39=2,Simulador!$U$39=7),J102=0),IFERROR((((P103/360*AU103)/(1-(1+(P103/360*AU103))^-AS103))*B103)*(1+AA103),0),IF($AF$3=2,B103*AJ103,IFERROR((((P103/360*AU103)/(1-(1+(P103/360*AU103))^-AS103))*B103)*(1+AA103),0)))) -> 0 | F103: 0 | H103: 0 | L103: =IF(Simulador!$T$41=1,0,J103*Simulador!$W$39*1.16) -> 0 | P103: 0 | R103: 0 | T103: =IFERROR(IF(Simulador!$U$30=1,0,IF($B103<=0,0,$B103*Simulador!$AA$43)),0) -> 0 | V103: =IFERROR(IF(Simulador!$U$30=1,0,IF($B103<=0,0,IF(Simulador!$D$22>0,Simulador!$D$22,Simulador!$O$24)*Simulador!$AA$44)),0) -> 0 | Y103: 0 | AD103: 7 | AE103: 5 | AF103: 0 | AG103: 0 | AH103: 0 | AI103: 0 | AJ103: 0 | AK103: 0 | AL103: 0 | AM103: 0 | AN103: 0 | AO103: 0 | AP103: =IFERROR(IF(Simulador!$U$30=1,0,IF($AK103<=0,0,$AK103*Simulador!$AA$43)),0)+IFERROR(IF(Simulador!$U$30=1,0,IF($AK103<=0,0,IF(Simulador!$D$22>0,Simulador!$D$22,Simulador!$O$24)*Simulador!$AA$44)),0) -> 0 | AQ103: 0 | AR103: 0 | AS103: 0 | AU103: 0 | AV103: 89
A104: 90 | B104: 0 | D104: =IF(B104+F104-D103<=0,B104+F104,IF(AND(OR(Simulador!$U$39=2,Simulador!$U$39=7),J103=0),IFERROR((((P104/360*AU104)/(1-(1+(P104/360*AU104))^-AS104))*B104)*(1+AA104),0),IF($AF$3=2,B104*AJ104,IFERROR((((P104/360*AU104)/(1-(1+(P104/360*AU104))^-AS104))*B104)*(1+AA104),0)))) -> 0 | F104: 0 | H104: 0 | L104: =IF(Simulador!$T$41=1,0,J104*Simulador!$W$39*1.16) -> 0 | N104: =IF(B104-H104=0,0,N102) -> 0 | P104: 0 | R104: 0 | T104: =IFERROR(IF(Simulador!$U$30=1,0,IF($B104<=0,0,$B104*Simulador!$AA$43)),0) -> 0 | V104: =IFERROR(IF(Simulador!$U$30=1,0,IF($B104<=0,0,IF(Simulador!$D$22>0,Simulador!$D$22,Simulador!$O$24)*Simulador!$AA$44)),0) -> 0 | Y104: 0 | AD104: 7 | AE104: 6 | AF104: 0 | AG104: 0 | AH104: 0 | AI104: 0 | AJ104: 0 | AK104: 0 | AL104: 0 | AM104: 0 | AN104: 0 | AO104: 0 | AP104: =IFERROR(IF(Simulador!$U$30=1,0,IF($AK104<=0,0,$AK104*Simulador!$AA$43)),0)+IFERROR(IF(Simulador!$U$30=1,0,IF($AK104<=0,0,IF(Simulador!$D$22>0,Simulador!$D$22,Simulador!$O$24)*Simulador!$AA$44)),0) -> 0 | AQ104: 0 | AR104: 0 | AS104: 0 | AU104: 0 | AV104: 90
A105: 91 | B105: 0 | D105: =IF(B105+F105-D104<=0,B105+F105,IF(AND(OR(Simulador!$U$39=2,Simulador!$U$39=7),J104=0),IFERROR((((P105/360*AU105)/(1-(1+(P105/360*AU105))^-AS105))*B105)*(1+AA105),0),IF($AF$3=2,B105*AJ105,IFERROR((((P105/360*AU105)/(1-(1+(P105/360*AU105))^-AS105))*B105)*(1+AA105),0)))) -> 0 | F105: 0 | H105: 0 | L105: =IF(Simulador!$T$41=1,0,J105*Simulador!$W$39*1.16) -> 0 | P105: 0 | R105: 0 | T105: =IFERROR(IF(Simulador!$U$30=1,0,IF($B105<=0,0,$B105*Simulador!$AA$43)),0) -> 0 | V105: =IFERROR(IF(Simulador!$U$30=1,0,IF($B105<=0,0,IF(Simulador!$D$22>0,Simulador!$D$22,Simulador!$O$24)*Simulador!$AA$44)),0) -> 0 | Y105: 0 | AD105: 7 | AE105: 7 | AF105: 0 | AG105: 0 | AH105: 0 | AI105: 0 | AJ105: 0 | AK105: 0 | AL105: 0 | AM105: 0 | AN105: 0 | AO105: 0 | AP105: =IFERROR(IF(Simulador!$U$30=1,0,IF($AK105<=0,0,$AK105*Simulador!$AA$43)),0)+IFERROR(IF(Simulador!$U$30=1,0,IF($AK105<=0,0,IF(Simulador!$D$22>0,Simulador!$D$22,Simulador!$O$24)*Simulador!$AA$44)),0) -> 0 | AQ105: 0 | AR105: 0 | AS105: 0 | AU105: 0 | AV105: 91
A106: 92 | B106: 0 | D106: =IF(B106+F106-D105<=0,B106+F106,IF(AND(OR(Simulador!$U$39=2,Simulador!$U$39=7),J105=0),IFERROR((((P106/360*AU106)/(1-(1+(P106/360*AU106))^-AS106))*B106)*(1+AA106),0),IF($AF$3=2,B106*AJ106,IFERROR((((P106/360*AU106)/(1-(1+(P106/360*AU106))^-AS106))*B106)*(1+AA106),0)))) -> 0 | F106: 0 | H106: 0 | L106: =IF(Simulador!$T$41=1,0,J106*Simulador!$W$39*1.16) -> 0 | N106: =IF(B106-H106=0,0,N104) -> 0 | P106: 0 | R106: 0 | T106: =IFERROR(IF(Simulador!$U$30=1,0,IF($B106<=0,0,$B106*Simulador!$AA$43)),0) -> 0 | V106: =IFERROR(IF(Simulador!$U$30=1,0,IF($B106<=0,0,IF(Simulador!$D$22>0,Simulador!$D$22,Simulador!$O$24)*Simulador!$AA$44)),0) -> 0 | Y106: 0 | AD106: 7 | AE106: 8 | AF106: 0 | AG106: 0 | AH106: 0 | AI106: 0 | AJ106: 0 | AK106: 0 | AL106: 0 | AM106: 0 | AN106: 0 | AO106: 0 | AP106: =IFERROR(IF(Simulador!$U$30=1,0,IF($AK106<=0,0,$AK106*Simulador!$AA$43)),0)+IFERROR(IF(Simulador!$U$30=1,0,IF($AK106<=0,0,IF(Simulador!$D$22>0,Simulador!$D$22,Simulador!$O$24)*Simulador!$AA$44)),0) -> 0 | AQ106: 0 | AR106: 0 | AS106: 0 | AU106: 0 | AV106: 92
A107: 93 | B107: 0 | D107: =IF(B107+F107-D106<=0,B107+F107,IF(AND(OR(Simulador!$U$39=2,Simulador!$U$39=7),J106=0),IFERROR((((P107/360*AU107)/(1-(1+(P107/360*AU107))^-AS107))*B107)*(1+AA107),0),IF($AF$3=2,B107*AJ107,IFERROR((((P107/360*AU107)/(1-(1+(P107/360*AU107))^-AS107))*B107)*(1+AA107),0)))) -> 0 | F107: 0 | H107: 0 | L107: =IF(Simulador!$T$41=1,0,J107*Simulador!$W$39*1.16) -> 0 | P107: 0 | R107: 0 | T107: =IFERROR(IF(Simulador!$U$30=1,0,IF($B107<=0,0,$B107*Simulador!$AA$43)),0) -> 0 | V107: =IFERROR(IF(Simulador!$U$30=1,0,IF($B107<=0,0,IF(Simulador!$D$22>0,Simulador!$D$22,Simulador!$O$24)*Simulador!$AA$44)),0) -> 0 | Y107: 0 | AD107: 7 | AE107: 9 | AF107: 0 | AG107: 0 | AH107: 0 | AI107: 0 | AJ107: 0 | AK107: 0 | AL107: 0 | AM107: 0 | AN107: 0 | AO107: 0 | AP107: =IFERROR(IF(Simulador!$U$30=1,0,IF($AK107<=0,0,$AK107*Simulador!$AA$43)),0)+IFERROR(IF(Simulador!$U$30=1,0,IF($AK107<=0,0,IF(Simulador!$D$22>0,Simulador!$D$22,Simulador!$O$24)*Simulador!$AA$44)),0) -> 0 | AQ107: 0 | AR107: 0 | AS107: 0 | AU107: 0 | AV107: 93
A108: 94 | B108: 0 | D108: =IF(B108+F108-D107<=0,B108+F108,IF(AND(OR(Simulador!$U$39=2,Simulador!$U$39=7),J107=0),IFERROR((((P108/360*AU108)/(1-(1+(P108/360*AU108))^-AS108))*B108)*(1+AA108),0),IF($AF$3=2,B108*AJ108,IFERROR((((P108/360*AU108)/(1-(1+(P108/360*AU108))^-AS108))*B108)*(1+AA108),0)))) -> 0 | F108: 0 | H108: 0 | L108: =IF(Simulador!$T$41=1,0,J108*Simulador!$W$39*1.16) -> 0 | N108: =IF(B108-H108=0,0,N106) -> 0 | P108: 0 | R108: 0 | T108: =IFERROR(IF(Simulador!$U$30=1,0,IF($B108<=0,0,$B108*Simulador!$AA$43)),0) -> 0 | V108: =IFERROR(IF(Simulador!$U$30=1,0,IF($B108<=0,0,IF(Simulador!$D$22>0,Simulador!$D$22,Simulador!$O$24)*Simulador!$AA$44)),0) -> 0 | Y108: 0 | AD108: 7 | AE108: 10 | AF108: 0 | AG108: 0 | AH108: 0 | AI108: 0 | AJ108: 0 | AK108: 0 | AL108: 0 | AM108: 0 | AN108: 0 | AO108: 0 | AP108: =IFERROR(IF(Simulador!$U$30=1,0,IF($AK108<=0,0,$AK108*Simulador!$AA$43)),0)+IFERROR(IF(Simulador!$U$30=1,0,IF($AK108<=0,0,IF(Simulador!$D$22>0,Simulador!$D$22,Simulador!$O$24)*Simulador!$AA$44)),0) -> 0 | AQ108: 0 | AR108: 0 | AS108: 0 | AU108: 0 | AV108: 94
A109: 95 | B109: 0 | D109: =IF(B109+F109-D108<=0,B109+F109,IF(AND(OR(Simulador!$U$39=2,Simulador!$U$39=7),J108=0),IFERROR((((P109/360*AU109)/(1-(1+(P109/360*AU109))^-AS109))*B109)*(1+AA109),0),IF($AF$3=2,B109*AJ109,IFERROR((((P109/360*AU109)/(1-(1+(P109/360*AU109))^-AS109))*B109)*(1+AA109),0)))) -> 0 | F109: 0 | H109: 0 | L109: =IF(Simulador!$T$41=1,0,J109*Simulador!$W$39*1.16) -> 0 | P109: 0 | R109: 0 | T109: =IFERROR(IF(Simulador!$U$30=1,0,IF($B109<=0,0,$B109*Simulador!$AA$43)),0) -> 0 | V109: =IFERROR(IF(Simulador!$U$30=1,0,IF($B109<=0,0,IF(Simulador!$D$22>0,Simulador!$D$22,Simulador!$O$24)*Simulador!$AA$44)),0) -> 0 | Y109: 0 | AD109: 7 | AE109: 11 | AF109: 0 | AG109: 0 | AH109: 0 | AI109: 0 | AJ109: 0 | AK109: 0 | AL109: 0 | AM109: 0 | AN109: 0 | AO109: 0 | AP109: =IFERROR(IF(Simulador!$U$30=1,0,IF($AK109<=0,0,$AK109*Simulador!$AA$43)),0)+IFERROR(IF(Simulador!$U$30=1,0,IF($AK109<=0,0,IF(Simulador!$D$22>0,Simulador!$D$22,Simulador!$O$24)*Simulador!$AA$44)),0) -> 0 | AQ109: 0 | AR109: 0 | AS109: 0 | AU109: 0 | AV109: 95
A110: 96 | B110: 0 | D110: =IF(B110+F110-D109<=0,B110+F110,IF(AND(OR(Simulador!$U$39=2,Simulador!$U$39=7),J109=0),IFERROR((((P110/360*AU110)/(1-(1+(P110/360*AU110))^-AS110))*B110)*(1+AA110),0),IF($AF$3=2,B110*AJ110,IFERROR((((P110/360*AU110)/(1-(1+(P110/360*AU110))^-AS110))*B110)*(1+AA110),0)))) -> 0 | F110: 0 | H110: 0 | L110: =IF(Simulador!$T$41=1,0,J110*Simulador!$W$39*1.16) -> 0 | N110: =IF(B110-H110=0,0,N108) -> 0 | P110: 0 | R110: 0 | T110: =IFERROR(IF(Simulador!$U$30=1,0,IF($B110<=0,0,$B110*Simulador!$AA$43)),0) -> 0 | V110: =IFERROR(IF(Simulador!$U$30=1,0,IF($B110<=0,0,IF(Simulador!$D$22>0,Simulador!$D$22,Simulador!$O$24)*Simulador!$AA$44)),0) -> 0 | Y110: 0 | AD110: 8 | AE110: 0 | AF110: 0 | AG110: 0 | AH110: 0 | AI110: 0 | AJ110: 0 | AK110: 0 | AL110: 0 | AM110: 0 | AN110: 0 | AO110: 0 | AP110: =IFERROR(IF(Simulador!$U$30=1,0,IF($AK110<=0,0,$AK110*Simulador!$AA$43)),0)+IFERROR(IF(Simulador!$U$30=1,0,IF($AK110<=0,0,IF(Simulador!$D$22>0,Simulador!$D$22,Simulador!$O$24)*Simulador!$AA$44)),0) -> 0 | AQ110: 0 | AR110: 0 | AS110: 0 | AU110: 0 | AV110: 96
A111: 97 | B111: 0 | D111: =IF(B111+F111-D110<=0,B111+F111,IF(AND(OR(Simulador!$U$39=2,Simulador!$U$39=7),J110=0),IFERROR((((P111/360*AU111)/(1-(1+(P111/360*AU111))^-AS111))*B111)*(1+AA111),0),IF($AF$3=2,B111*AJ111,IFERROR((((P111/360*AU111)/(1-(1+(P111/360*AU111))^-AS111))*B111)*(1+AA111),0)))) -> 0 | F111: 0 | H111: 0 | L111: =IF(Simulador!$T$41=1,0,J111*Simulador!$W$39*1.16) -> 0 | P111: 0 | R111: 0 | T111: =IFERROR(IF(Simulador!$U$30=1,0,IF($B111<=0,0,$B111*Simulador!$AA$43)),0) -> 0 | V111: =IFERROR(IF(Simulador!$U$30=1,0,IF($B111<=0,0,IF(Simulador!$D$22>0,Simulador!$D$22,Simulador!$O$24)*Simulador!$AA$44)),0) -> 0 | Y111: 0 | AA111: =IF(B111<=0,0,Simulador!$I$46) -> 0 | AD111: 8 | AE111: 1 | AF111: 0 | AG111: 0 | AH111: 0 | AI111: 0 | AJ111: 0 | AK111: 0 | AL111: 0 | AM111: 0 | AN111: 0 | AO111: 0 | AP111: =IFERROR(IF(Simulador!$U$30=1,0,IF($AK111<=0,0,$AK111*Simulador!$AA$43)),0)+IFERROR(IF(Simulador!$U$30=1,0,IF($AK111<=0,0,IF(Simulador!$D$22>0,Simulador!$D$22,Simulador!$O$24)*Simulador!$AA$44)),0) -> 0 | AQ111: 0 | AR111: 0 | AS111: 0 | AU111: 0 | AV111: 97
A112: 98 | B112: 0 | D112: =IF(B112+F112-D111<=0,B112+F112,IF(AND(OR(Simulador!$U$39=2,Simulador!$U$39=7),J111=0),IFERROR((((P112/360*AU112)/(1-(1+(P112/360*AU112))^-AS112))*B112)*(1+AA112),0),IF($AF$3=2,B112*AJ112,IFERROR((((P112/360*AU112)/(1-(1+(P112/360*AU112))^-AS112))*B112)*(1+AA112),0)))) -> 0 | F112: 0 | H112: 0 | L112: =IF(Simulador!$T$41=1,0,J112*Simulador!$W$39*1.16) -> 0 | N112: =IF(B112-H112=0,0,N110*(1+(Simulador!$AH$72))) -> 0 | P112: 0 | R112: 0 | T112: =IFERROR(IF(Simulador!$U$30=1,0,IF($B112<=0,0,$B112*Simulador!$AA$43)),0) -> 0 | V112: =IFERROR(IF(Simulador!$U$30=1,0,IF($B112<=0,0,IF(Simulador!$D$22>0,Simulador!$D$22,Simulador!$O$24)*Simulador!$AA$44)),0) -> 0 | Y112: 0 | AD112: 8 | AE112: 2 | AF112: 0 | AG112: 0 | AH112: 0 | AI112: 0 | AJ112: 0 | AK112: 0 | AL112: 0 | AM112: 0 | AN112: 0 | AO112: 0 | AP112: =IFERROR(IF(Simulador!$U$30=1,0,IF($AK112<=0,0,$AK112*Simulador!$AA$43)),0)+IFERROR(IF(Simulador!$U$30=1,0,IF($AK112<=0,0,IF(Simulador!$D$22>0,Simulador!$D$22,Simulador!$O$24)*Simulador!$AA$44)),0) -> 0 | AQ112: 0 | AR112: 0 | AS112: 0 | AU112: 0 | AV112: 98
A113: 99 | B113: 0 | D113: =IF(B113+F113-D112<=0,B113+F113,IF(AND(OR(Simulador!$U$39=2,Simulador!$U$39=7),J112=0),IFERROR((((P113/360*AU113)/(1-(1+(P113/360*AU113))^-AS113))*B113)*(1+AA113),0),IF($AF$3=2,B113*AJ113,IFERROR((((P113/360*AU113)/(1-(1+(P113/360*AU113))^-AS113))*B113)*(1+AA113),0)))) -> 0 | F113: 0 | H113: 0 | L113: =IF(Simulador!$T$41=1,0,J113*Simulador!$W$39*1.16) -> 0 | P113: 0 | R113: 0 | T113: =IFERROR(IF(Simulador!$U$30=1,0,IF($B113<=0,0,$B113*Simulador!$AA$43)),0) -> 0 | V113: =IFERROR(IF(Simulador!$U$30=1,0,IF($B113<=0,0,IF(Simulador!$D$22>0,Simulador!$D$22,Simulador!$O$24)*Simulador!$AA$44)),0) -> 0 | Y113: 0 | AD113: 8 | AE113: 3 | AF113: 0 | AG113: 0 | AH113: 0 | AI113: 0 | AJ113: 0 | AK113: 0 | AL113: 0 | AM113: 0 | AN113: 0 | AO113: 0 | AP113: =IFERROR(IF(Simulador!$U$30=1,0,IF($AK113<=0,0,$AK113*Simulador!$AA$43)),0)+IFERROR(IF(Simulador!$U$30=1,0,IF($AK113<=0,0,IF(Simulador!$D$22>0,Simulador!$D$22,Simulador!$O$24)*Simulador!$AA$44)),0) -> 0 | AQ113: 0 | AR113: 0 | AS113: 0 | AU113: 0 | AV113: 99
A114: 100 | B114: 0 | D114: =IF(B114+F114-D113<=0,B114+F114,IF(AND(OR(Simulador!$U$39=2,Simulador!$U$39=7),J113=0),IFERROR((((P114/360*AU114)/(1-(1+(P114/360*AU114))^-AS114))*B114)*(1+AA114),0),IF($AF$3=2,B114*AJ114,IFERROR((((P114/360*AU114)/(1-(1+(P114/360*AU114))^-AS114))*B114)*(1+AA114),0)))) -> 0 | F114: 0 | H114: 0 | L114: =IF(Simulador!$T$41=1,0,J114*Simulador!$W$39*1.16) -> 0 | N114: =IF(B114-H114=0,0,N112) -> 0 | P114: 0 | R114: 0 | T114: =IFERROR(IF(Simulador!$U$30=1,0,IF($B114<=0,0,$B114*Simulador!$AA$43)),0) -> 0 | V114: =IFERROR(IF(Simulador!$U$30=1,0,IF($B114<=0,0,IF(Simulador!$D$22>0,Simulador!$D$22,Simulador!$O$24)*Simulador!$AA$44)),0) -> 0 | Y114: 0 | AD114: 8 | AE114: 4 | AF114: 0 | AG114: 0 | AH114: 0 | AI114: 0 | AJ114: 0 | AK114: 0 | AL114: 0 | AM114: 0 | AN114: 0 | AO114: 0 | AP114: =IFERROR(IF(Simulador!$U$30=1,0,IF($AK114<=0,0,$AK114*Simulador!$AA$43)),0)+IFERROR(IF(Simulador!$U$30=1,0,IF($AK114<=0,0,IF(Simulador!$D$22>0,Simulador!$D$22,Simulador!$O$24)*Simulador!$AA$44)),0) -> 0 | AQ114: 0 | AR114: 0 | AS114: 0 | AU114: 0 | AV114: 100
A115: 101 | B115: 0 | D115: =IF(B115+F115-D114<=0,B115+F115,IF(AND(OR(Simulador!$U$39=2,Simulador!$U$39=7),J114=0),IFERROR((((P115/360*AU115)/(1-(1+(P115/360*AU115))^-AS115))*B115)*(1+AA115),0),IF($AF$3=2,B115*AJ115,IFERROR((((P115/360*AU115)/(1-(1+(P115/360*AU115))^-AS115))*B115)*(1+AA115),0)))) -> 0 | F115: 0 | H115: 0 | L115: =IF(Simulador!$T$41=1,0,J115*Simulador!$W$39*1.16) -> 0 | P115: 0 | R115: 0 | T115: =IFERROR(IF(Simulador!$U$30=1,0,IF($B115<=0,0,$B115*Simulador!$AA$43)),0) -> 0 | V115: =IFERROR(IF(Simulador!$U$30=1,0,IF($B115<=0,0,IF(Simulador!$D$22>0,Simulador!$D$22,Simulador!$O$24)*Simulador!$AA$44)),0) -> 0 | Y115: 0 | AD115: 8 | AE115: 5 | AF115: 0 | AG115: 0 | AH115: 0 | AI115: 0 | AJ115: 0 | AK115: 0 | AL115: 0 | AM115: 0 | AN115: 0 | AO115: 0 | AP115: =IFERROR(IF(Simulador!$U$30=1,0,IF($AK115<=0,0,$AK115*Simulador!$AA$43)),0)+IFERROR(IF(Simulador!$U$30=1,0,IF($AK115<=0,0,IF(Simulador!$D$22>0,Simulador!$D$22,Simulador!$O$24)*Simulador!$AA$44)),0) -> 0 | AQ115: 0 | AR115: 0 | AS115: 0 | AU115: 0 | AV115: 101
A116: 102 | B116: 0 | D116: =IF(B116+F116-D115<=0,B116+F116,IF(AND(OR(Simulador!$U$39=2,Simulador!$U$39=7),J115=0),IFERROR((((P116/360*AU116)/(1-(1+(P116/360*AU116))^-AS116))*B116)*(1+AA116),0),IF($AF$3=2,B116*AJ116,IFERROR((((P116/360*AU116)/(1-(1+(P116/360*AU116))^-AS116))*B116)*(1+AA116),0)))) -> 0 | F116: 0 | H116: 0 | L116: =IF(Simulador!$T$41=1,0,J116*Simulador!$W$39*1.16) -> 0 | N116: =IF(B116-H116=0,0,N114) -> 0 | P116: 0 | R116: 0 | T116: =IFERROR(IF(Simulador!$U$30=1,0,IF($B116<=0,0,$B116*Simulador!$AA$43)),0) -> 0 | V116: =IFERROR(IF(Simulador!$U$30=1,0,IF($B116<=0,0,IF(Simulador!$D$22>0,Simulador!$D$22,Simulador!$O$24)*Simulador!$AA$44)),0) -> 0 | Y116: 0 | AD116: 8 | AE116: 6 | AF116: 0 | AG116: 0 | AH116: 0 | AI116: 0 | AJ116: 0 | AK116: 0 | AL116: 0 | AM116: 0 | AN116: 0 | AO116: 0 | AP116: =IFERROR(IF(Simulador!$U$30=1,0,IF($AK116<=0,0,$AK116*Simulador!$AA$43)),0)+IFERROR(IF(Simulador!$U$30=1,0,IF($AK116<=0,0,IF(Simulador!$D$22>0,Simulador!$D$22,Simulador!$O$24)*Simulador!$AA$44)),0) -> 0 | AQ116: 0 | AR116: 0 | AS116: 0 | AU116: 0 | AV116: 102
A117: 103 | B117: 0 | D117: =IF(B117+F117-D116<=0,B117+F117,IF(AND(OR(Simulador!$U$39=2,Simulador!$U$39=7),J116=0),IFERROR((((P117/360*AU117)/(1-(1+(P117/360*AU117))^-AS117))*B117)*(1+AA117),0),IF($AF$3=2,B117*AJ117,IFERROR((((P117/360*AU117)/(1-(1+(P117/360*AU117))^-AS117))*B117)*(1+AA117),0)))) -> 0 | F117: 0 | H117: 0 | L117: =IF(Simulador!$T$41=1,0,J117*Simulador!$W$39*1.16) -> 0 | P117: 0 | R117: 0 | T117: =IFERROR(IF(Simulador!$U$30=1,0,IF($B117<=0,0,$B117*Simulador!$AA$43)),0) -> 0 | V117: =IFERROR(IF(Simulador!$U$30=1,0,IF($B117<=0,0,IF(Simulador!$D$22>0,Simulador!$D$22,Simulador!$O$24)*Simulador!$AA$44)),0) -> 0 | Y117: 0 | AD117: 8 | AE117: 7 | AF117: 0 | AG117: 0 | AH117: 0 | AI117: 0 | AJ117: 0 | AK117: 0 | AL117: 0 | AM117: 0 | AN117: 0 | AO117: 0 | AP117: =IFERROR(IF(Simulador!$U$30=1,0,IF($AK117<=0,0,$AK117*Simulador!$AA$43)),0)+IFERROR(IF(Simulador!$U$30=1,0,IF($AK117<=0,0,IF(Simulador!$D$22>0,Simulador!$D$22,Simulador!$O$24)*Simulador!$AA$44)),0) -> 0 | AQ117: 0 | AR117: 0 | AS117: 0 | AU117: 0 | AV117: 103
A118: 104 | B118: 0 | D118: =IF(B118+F118-D117<=0,B118+F118,IF(AND(OR(Simulador!$U$39=2,Simulador!$U$39=7),J117=0),IFERROR((((P118/360*AU118)/(1-(1+(P118/360*AU118))^-AS118))*B118)*(1+AA118),0),IF($AF$3=2,B118*AJ118,IFERROR((((P118/360*AU118)/(1-(1+(P118/360*AU118))^-AS118))*B118)*(1+AA118),0)))) -> 0 | F118: 0 | H118: 0 | L118: =IF(Simulador!$T$41=1,0,J118*Simulador!$W$39*1.16) -> 0 | N118: =IF(B118-H118=0,0,N116) -> 0 | P118: 0 | R118: 0 | T118: =IFERROR(IF(Simulador!$U$30=1,0,IF($B118<=0,0,$B118*Simulador!$AA$43)),0) -> 0 | V118: =IFERROR(IF(Simulador!$U$30=1,0,IF($B118<=0,0,IF(Simulador!$D$22>0,Simulador!$D$22,Simulador!$O$24)*Simulador!$AA$44)),0) -> 0 | Y118: 0 | AD118: 8 | AE118: 8 | AF118: 0 | AG118: 0 | AH118: 0 | AI118: 0 | AJ118: 0 | AK118: 0 | AL118: 0 | AM118: 0 | AN118: 0 | AO118: 0 | AP118: =IFERROR(IF(Simulador!$U$30=1,0,IF($AK118<=0,0,$AK118*Simulador!$AA$43)),0)+IFERROR(IF(Simulador!$U$30=1,0,IF($AK118<=0,0,IF(Simulador!$D$22>0,Simulador!$D$22,Simulador!$O$24)*Simulador!$AA$44)),0) -> 0 | AQ118: 0 | AR118: 0 | AS118: 0 | AU118: 0 | AV118: 104
A119: 105 | B119: 0 | D119: =IF(B119+F119-D118<=0,B119+F119,IF(AND(OR(Simulador!$U$39=2,Simulador!$U$39=7),J118=0),IFERROR((((P119/360*AU119)/(1-(1+(P119/360*AU119))^-AS119))*B119)*(1+AA119),0),IF($AF$3=2,B119*AJ119,IFERROR((((P119/360*AU119)/(1-(1+(P119/360*AU119))^-AS119))*B119)*(1+AA119),0)))) -> 0 | F119: 0 | H119: 0 | L119: =IF(Simulador!$T$41=1,0,J119*Simulador!$W$39*1.16) -> 0 | P119: 0 | R119: 0 | T119: =IFERROR(IF(Simulador!$U$30=1,0,IF($B119<=0,0,$B119*Simulador!$AA$43)),0) -> 0 | V119: =IFERROR(IF(Simulador!$U$30=1,0,IF($B119<=0,0,IF(Simulador!$D$22>0,Simulador!$D$22,Simulador!$O$24)*Simulador!$AA$44)),0) -> 0 | Y119: 0 | AD119: 8 | AE119: 9 | AF119: 0 | AG119: 0 | AH119: 0 | AI119: 0 | AJ119: 0 | AK119: 0 | AL119: 0 | AM119: 0 | AN119: 0 | AO119: 0 | AP119: =IFERROR(IF(Simulador!$U$30=1,0,IF($AK119<=0,0,$AK119*Simulador!$AA$43)),0)+IFERROR(IF(Simulador!$U$30=1,0,IF($AK119<=0,0,IF(Simulador!$D$22>0,Simulador!$D$22,Simulador!$O$24)*Simulador!$AA$44)),0) -> 0 | AQ119: 0 | AR119: 0 | AS119: 0 | AU119: 0 | AV119: 105
A120: 106 | B120: 0 | D120: =IF(B120+F120-D119<=0,B120+F120,IF(AND(OR(Simulador!$U$39=2,Simulador!$U$39=7),J119=0),IFERROR((((P120/360*AU120)/(1-(1+(P120/360*AU120))^-AS120))*B120)*(1+AA120),0),IF($AF$3=2,B120*AJ120,IFERROR((((P120/360*AU120)/(1-(1+(P120/360*AU120))^-AS120))*B120)*(1+AA120),0)))) -> 0 | F120: 0 | H120: 0 | L120: =IF(Simulador!$T$41=1,0,J120*Simulador!$W$39*1.16) -> 0 | N120: =IF(B120-H120=0,0,N118) -> 0 | P120: 0 | R120: 0 | T120: =IFERROR(IF(Simulador!$U$30=1,0,IF($B120<=0,0,$B120*Simulador!$AA$43)),0) -> 0 | V120: =IFERROR(IF(Simulador!$U$30=1,0,IF($B120<=0,0,IF(Simulador!$D$22>0,Simulador!$D$22,Simulador!$O$24)*Simulador!$AA$44)),0) -> 0 | Y120: 0 | AD120: 8 | AE120: 10 | AF120: 0 | AG120: 0 | AH120: 0 | AI120: 0 | AJ120: 0 | AK120: 0 | AL120: 0 | AM120: 0 | AN120: 0 | AO120: 0 | AP120: =IFERROR(IF(Simulador!$U$30=1,0,IF($AK120<=0,0,$AK120*Simulador!$AA$43)),0)+IFERROR(IF(Simulador!$U$30=1,0,IF($AK120<=0,0,IF(Simulador!$D$22>0,Simulador!$D$22,Simulador!$O$24)*Simulador!$AA$44)),0) -> 0 | AQ120: 0 | AR120: 0 | AS120: 0 | AU120: 0 | AV120: 106
A121: 107 | B121: 0 | D121: =IF(B121+F121-D120<=0,B121+F121,IF(AND(OR(Simulador!$U$39=2,Simulador!$U$39=7),J120=0),IFERROR((((P121/360*AU121)/(1-(1+(P121/360*AU121))^-AS121))*B121)*(1+AA121),0),IF($AF$3=2,B121*AJ121,IFERROR((((P121/360*AU121)/(1-(1+(P121/360*AU121))^-AS121))*B121)*(1+AA121),0)))) -> 0 | F121: 0 | H121: 0 | L121: =IF(Simulador!$T$41=1,0,J121*Simulador!$W$39*1.16) -> 0 | P121: 0 | R121: 0 | T121: =IFERROR(IF(Simulador!$U$30=1,0,IF($B121<=0,0,$B121*Simulador!$AA$43)),0) -> 0 | V121: =IFERROR(IF(Simulador!$U$30=1,0,IF($B121<=0,0,IF(Simulador!$D$22>0,Simulador!$D$22,Simulador!$O$24)*Simulador!$AA$44)),0) -> 0 | Y121: 0 | AD121: 8 | AE121: 11 | AF121: 0 | AG121: 0 | AH121: 0 | AI121: 0 | AJ121: 0 | AK121: 0 | AL121: 0 | AM121: 0 | AN121: 0 | AO121: 0 | AP121: =IFERROR(IF(Simulador!$U$30=1,0,IF($AK121<=0,0,$AK121*Simulador!$AA$43)),0)+IFERROR(IF(Simulador!$U$30=1,0,IF($AK121<=0,0,IF(Simulador!$D$22>0,Simulador!$D$22,Simulador!$O$24)*Simulador!$AA$44)),0) -> 0 | AQ121: 0 | AR121: 0 | AS121: 0 | AU121: 0 | AV121: 107
A122: 108 | B122: 0 | D122: =IF(B122+F122-D121<=0,B122+F122,IF(AND(OR(Simulador!$U$39=2,Simulador!$U$39=7),J121=0),IFERROR((((P122/360*AU122)/(1-(1+(P122/360*AU122))^-AS122))*B122)*(1+AA122),0),IF($AF$3=2,B122*AJ122,IFERROR((((P122/360*AU122)/(1-(1+(P122/360*AU122))^-AS122))*B122)*(1+AA122),0)))) -> 0 | F122: 0 | H122: 0 | L122: =IF(Simulador!$T$41=1,0,J122*Simulador!$W$39*1.16) -> 0 | N122: =IF(B122-H122=0,0,N120) -> 0 | P122: 0 | R122: 0 | T122: =IFERROR(IF(Simulador!$U$30=1,0,IF($B122<=0,0,$B122*Simulador!$AA$43)),0) -> 0 | V122: =IFERROR(IF(Simulador!$U$30=1,0,IF($B122<=0,0,IF(Simulador!$D$22>0,Simulador!$D$22,Simulador!$O$24)*Simulador!$AA$44)),0) -> 0 | Y122: 0 | AD122: 9 | AE122: 0 | AF122: 0 | AG122: 0 | AH122: 0 | AI122: 0 | AJ122: 0 | AK122: 0 | AL122: 0 | AM122: 0 | AN122: 0 | AO122: 0 | AP122: =IFERROR(IF(Simulador!$U$30=1,0,IF($AK122<=0,0,$AK122*Simulador!$AA$43)),0)+IFERROR(IF(Simulador!$U$30=1,0,IF($AK122<=0,0,IF(Simulador!$D$22>0,Simulador!$D$22,Simulador!$O$24)*Simulador!$AA$44)),0) -> 0 | AQ122: 0 | AR122: 0 | AS122: 0 | AU122: 0 | AV122: 108
A123: 109 | B123: 0 | D123: =IF(B123+F123-D122<=0,B123+F123,IF(AND(OR(Simulador!$U$39=2,Simulador!$U$39=7),J122=0),IFERROR((((P123/360*AU123)/(1-(1+(P123/360*AU123))^-AS123))*B123)*(1+AA123),0),IF($AF$3=2,B123*AJ123,IFERROR((((P123/360*AU123)/(1-(1+(P123/360*AU123))^-AS123))*B123)*(1+AA123),0)))) -> 0 | F123: 0 | H123: 0 | L123: =IF(Simulador!$T$41=1,0,J123*Simulador!$W$39*1.16) -> 0 | P123: 0 | R123: 0 | T123: =IFERROR(IF(Simulador!$U$30=1,0,IF($B123<=0,0,$B123*Simulador!$AA$43)),0) -> 0 | V123: =IFERROR(IF(Simulador!$U$30=1,0,IF($B123<=0,0,IF(Simulador!$D$22>0,Simulador!$D$22,Simulador!$O$24)*Simulador!$AA$44)),0) -> 0 | Y123: 0 | AA123: =IF(B123<=0,0,Simulador!$I$46) -> 0 | AD123: 9 | AE123: 1 | AF123: 0 | AG123: 0 | AH123: 0 | AI123: 0 | AJ123: 0 | AK123: 0 | AL123: 0 | AM123: 0 | AN123: 0 | AO123: 0 | AP123: =IFERROR(IF(Simulador!$U$30=1,0,IF($AK123<=0,0,$AK123*Simulador!$AA$43)),0)+IFERROR(IF(Simulador!$U$30=1,0,IF($AK123<=0,0,IF(Simulador!$D$22>0,Simulador!$D$22,Simulador!$O$24)*Simulador!$AA$44)),0) -> 0 | AQ123: 0 | AR123: 0 | AS123: 0 | AU123: 0 | AV123: 109
A124: 110 | B124: 0 | D124: =IF(B124+F124-D123<=0,B124+F124,IF(AND(OR(Simulador!$U$39=2,Simulador!$U$39=7),J123=0),IFERROR((((P124/360*AU124)/(1-(1+(P124/360*AU124))^-AS124))*B124)*(1+AA124),0),IF($AF$3=2,B124*AJ124,IFERROR((((P124/360*AU124)/(1-(1+(P124/360*AU124))^-AS124))*B124)*(1+AA124),0)))) -> 0 | F124: 0 | H124: 0 | L124: =IF(Simulador!$T$41=1,0,J124*Simulador!$W$39*1.16) -> 0 | N124: =IF(B124-H124=0,0,N122*(1+(Simulador!$AH$72))) -> 0 | P124: 0 | R124: 0 | T124: =IFERROR(IF(Simulador!$U$30=1,0,IF($B124<=0,0,$B124*Simulador!$AA$43)),0) -> 0 | V124: =IFERROR(IF(Simulador!$U$30=1,0,IF($B124<=0,0,IF(Simulador!$D$22>0,Simulador!$D$22,Simulador!$O$24)*Simulador!$AA$44)),0) -> 0 | Y124: 0 | AD124: 9 | AE124: 2 | AF124: 0 | AG124: 0 | AH124: 0 | AI124: 0 | AJ124: 0 | AK124: 0 | AL124: 0 | AM124: 0 | AN124: 0 | AO124: 0 | AP124: =IFERROR(IF(Simulador!$U$30=1,0,IF($AK124<=0,0,$AK124*Simulador!$AA$43)),0)+IFERROR(IF(Simulador!$U$30=1,0,IF($AK124<=0,0,IF(Simulador!$D$22>0,Simulador!$D$22,Simulador!$O$24)*Simulador!$AA$44)),0) -> 0 | AQ124: 0 | AR124: 0 | AS124: 0 | AU124: 0 | AV124: 110
A125: 111 | B125: 0 | D125: =IF(B125+F125-D124<=0,B125+F125,IF(AND(OR(Simulador!$U$39=2,Simulador!$U$39=7),J124=0),IFERROR((((P125/360*AU125)/(1-(1+(P125/360*AU125))^-AS125))*B125)*(1+AA125),0),IF($AF$3=2,B125*AJ125,IFERROR((((P125/360*AU125)/(1-(1+(P125/360*AU125))^-AS125))*B125)*(1+AA125),0)))) -> 0 | F125: 0 | H125: 0 | L125: =IF(Simulador!$T$41=1,0,J125*Simulador!$W$39*1.16) -> 0 | P125: 0 | R125: 0 | T125: =IFERROR(IF(Simulador!$U$30=1,0,IF($B125<=0,0,$B125*Simulador!$AA$43)),0) -> 0 | V125: =IFERROR(IF(Simulador!$U$30=1,0,IF($B125<=0,0,IF(Simulador!$D$22>0,Simulador!$D$22,Simulador!$O$24)*Simulador!$AA$44)),0) -> 0 | Y125: 0 | AD125: 9 | AE125: 3 | AF125: 0 | AG125: 0 | AH125: 0 | AI125: 0 | AJ125: 0 | AK125: 0 | AL125: 0 | AM125: 0 | AN125: 0 | AO125: 0 | AP125: =IFERROR(IF(Simulador!$U$30=1,0,IF($AK125<=0,0,$AK125*Simulador!$AA$43)),0)+IFERROR(IF(Simulador!$U$30=1,0,IF($AK125<=0,0,IF(Simulador!$D$22>0,Simulador!$D$22,Simulador!$O$24)*Simulador!$AA$44)),0) -> 0 | AQ125: 0 | AR125: 0 | AS125: 0 | AU125: 0 | AV125: 111
A126: 112 | B126: 0 | D126: =IF(B126+F126-D125<=0,B126+F126,IF(AND(OR(Simulador!$U$39=2,Simulador!$U$39=7),J125=0),IFERROR((((P126/360*AU126)/(1-(1+(P126/360*AU126))^-AS126))*B126)*(1+AA126),0),IF($AF$3=2,B126*AJ126,IFERROR((((P126/360*AU126)/(1-(1+(P126/360*AU126))^-AS126))*B126)*(1+AA126),0)))) -> 0 | F126: 0 | H126: 0 | L126: =IF(Simulador!$T$41=1,0,J126*Simulador!$W$39*1.16) -> 0 | N126: =IF(B126-H126=0,0,N124) -> 0 | P126: 0 | R126: 0 | T126: =IFERROR(IF(Simulador!$U$30=1,0,IF($B126<=0,0,$B126*Simulador!$AA$43)),0) -> 0 | V126: =IFERROR(IF(Simulador!$U$30=1,0,IF($B126<=0,0,IF(Simulador!$D$22>0,Simulador!$D$22,Simulador!$O$24)*Simulador!$AA$44)),0) -> 0 | Y126: 0 | AD126: 9 | AE126: 4 | AF126: 0 | AG126: 0 | AH126: 0 | AI126: 0 | AJ126: 0 | AK126: 0 | AL126: 0 | AM126: 0 | AN126: 0 | AO126: 0 | AP126: =IFERROR(IF(Simulador!$U$30=1,0,IF($AK126<=0,0,$AK126*Simulador!$AA$43)),0)+IFERROR(IF(Simulador!$U$30=1,0,IF($AK126<=0,0,IF(Simulador!$D$22>0,Simulador!$D$22,Simulador!$O$24)*Simulador!$AA$44)),0) -> 0 | AQ126: 0 | AR126: 0 | AS126: 0 | AU126: 0 | AV126: 112
A127: 113 | B127: 0 | D127: =IF(B127+F127-D126<=0,B127+F127,IF(AND(OR(Simulador!$U$39=2,Simulador!$U$39=7),J126=0),IFERROR((((P127/360*AU127)/(1-(1+(P127/360*AU127))^-AS127))*B127)*(1+AA127),0),IF($AF$3=2,B127*AJ127,IFERROR((((P127/360*AU127)/(1-(1+(P127/360*AU127))^-AS127))*B127)*(1+AA127),0)))) -> 0 | F127: 0 | H127: 0 | L127: =IF(Simulador!$T$41=1,0,J127*Simulador!$W$39*1.16) -> 0 | P127: 0 | R127: 0 | T127: =IFERROR(IF(Simulador!$U$30=1,0,IF($B127<=0,0,$B127*Simulador!$AA$43)),0) -> 0 | V127: =IFERROR(IF(Simulador!$U$30=1,0,IF($B127<=0,0,IF(Simulador!$D$22>0,Simulador!$D$22,Simulador!$O$24)*Simulador!$AA$44)),0) -> 0 | Y127: 0 | AD127: 9 | AE127: 5 | AF127: 0 | AG127: 0 | AH127: 0 | AI127: 0 | AJ127: 0 | AK127: 0 | AL127: 0 | AM127: 0 | AN127: 0 | AO127: 0 | AP127: =IFERROR(IF(Simulador!$U$30=1,0,IF($AK127<=0,0,$AK127*Simulador!$AA$43)),0)+IFERROR(IF(Simulador!$U$30=1,0,IF($AK127<=0,0,IF(Simulador!$D$22>0,Simulador!$D$22,Simulador!$O$24)*Simulador!$AA$44)),0) -> 0 | AQ127: 0 | AR127: 0 | AS127: 0 | AU127: 0 | AV127: 113
A128: 114 | B128: 0 | D128: =IF(B128+F128-D127<=0,B128+F128,IF(AND(OR(Simulador!$U$39=2,Simulador!$U$39=7),J127=0),IFERROR((((P128/360*AU128)/(1-(1+(P128/360*AU128))^-AS128))*B128)*(1+AA128),0),IF($AF$3=2,B128*AJ128,IFERROR((((P128/360*AU128)/(1-(1+(P128/360*AU128))^-AS128))*B128)*(1+AA128),0)))) -> 0 | F128: 0 | H128: 0 | L128: =IF(Simulador!$T$41=1,0,J128*Simulador!$W$39*1.16) -> 0 | N128: =IF(B128-H128=0,0,N126) -> 0 | P128: 0 | R128: 0 | T128: =IFERROR(IF(Simulador!$U$30=1,0,IF($B128<=0,0,$B128*Simulador!$AA$43)),0) -> 0 | V128: =IFERROR(IF(Simulador!$U$30=1,0,IF($B128<=0,0,IF(Simulador!$D$22>0,Simulador!$D$22,Simulador!$O$24)*Simulador!$AA$44)),0) -> 0 | Y128: 0 | AD128: 9 | AE128: 6 | AF128: 0 | AG128: 0 | AH128: 0 | AI128: 0 | AJ128: 0 | AK128: 0 | AL128: 0 | AM128: 0 | AN128: 0 | AO128: 0 | AP128: =IFERROR(IF(Simulador!$U$30=1,0,IF($AK128<=0,0,$AK128*Simulador!$AA$43)),0)+IFERROR(IF(Simulador!$U$30=1,0,IF($AK128<=0,0,IF(Simulador!$D$22>0,Simulador!$D$22,Simulador!$O$24)*Simulador!$AA$44)),0) -> 0 | AQ128: 0 | AR128: 0 | AS128: 0 | AU128: 0 | AV128: 114
A129: 115 | B129: 0 | D129: =IF(B129+F129-D128<=0,B129+F129,IF(AND(OR(Simulador!$U$39=2,Simulador!$U$39=7),J128=0),IFERROR((((P129/360*AU129)/(1-(1+(P129/360*AU129))^-AS129))*B129)*(1+AA129),0),IF($AF$3=2,B129*AJ129,IFERROR((((P129/360*AU129)/(1-(1+(P129/360*AU129))^-AS129))*B129)*(1+AA129),0)))) -> 0 | F129: 0 | H129: 0 | L129: =IF(Simulador!$T$41=1,0,J129*Simulador!$W$39*1.16) -> 0 | P129: 0 | R129: 0 | T129: =IFERROR(IF(Simulador!$U$30=1,0,IF($B129<=0,0,$B129*Simulador!$AA$43)),0) -> 0 | V129: =IFERROR(IF(Simulador!$U$30=1,0,IF($B129<=0,0,IF(Simulador!$D$22>0,Simulador!$D$22,Simulador!$O$24)*Simulador!$AA$44)),0) -> 0 | Y129: 0 | AD129: 9 | AE129: 7 | AF129: 0 | AG129: 0 | AH129: 0 | AI129: 0 | AJ129: 0 | AK129: 0 | AL129: 0 | AM129: 0 | AN129: 0 | AO129: 0 | AP129: =IFERROR(IF(Simulador!$U$30=1,0,IF($AK129<=0,0,$AK129*Simulador!$AA$43)),0)+IFERROR(IF(Simulador!$U$30=1,0,IF($AK129<=0,0,IF(Simulador!$D$22>0,Simulador!$D$22,Simulador!$O$24)*Simulador!$AA$44)),0) -> 0 | AQ129: 0 | AR129: 0 | AS129: 0 | AU129: 0 | AV129: 115
A130: 116 | B130: 0 | D130: =IF(B130+F130-D129<=0,B130+F130,IF(AND(OR(Simulador!$U$39=2,Simulador!$U$39=7),J129=0),IFERROR((((P130/360*AU130)/(1-(1+(P130/360*AU130))^-AS130))*B130)*(1+AA130),0),IF($AF$3=2,B130*AJ130,IFERROR((((P130/360*AU130)/(1-(1+(P130/360*AU130))^-AS130))*B130)*(1+AA130),0)))) -> 0 | F130: 0 | H130: 0 | L130: =IF(Simulador!$T$41=1,0,J130*Simulador!$W$39*1.16) -> 0 | N130: =IF(B130-H130=0,0,N128) -> 0 | P130: 0 | R130: 0 | T130: =IFERROR(IF(Simulador!$U$30=1,0,IF($B130<=0,0,$B130*Simulador!$AA$43)),0) -> 0 | V130: =IFERROR(IF(Simulador!$U$30=1,0,IF($B130<=0,0,IF(Simulador!$D$22>0,Simulador!$D$22,Simulador!$O$24)*Simulador!$AA$44)),0) -> 0 | Y130: 0 | AD130: 9 | AE130: 8 | AF130: 0 | AG130: 0 | AH130: 0 | AI130: 0 | AJ130: 0 | AK130: 0 | AL130: 0 | AM130: 0 | AN130: 0 | AO130: 0 | AP130: =IFERROR(IF(Simulador!$U$30=1,0,IF($AK130<=0,0,$AK130*Simulador!$AA$43)),0)+IFERROR(IF(Simulador!$U$30=1,0,IF($AK130<=0,0,IF(Simulador!$D$22>0,Simulador!$D$22,Simulador!$O$24)*Simulador!$AA$44)),0) -> 0 | AQ130: 0 | AR130: 0 | AS130: 0 | AU130: 0 | AV130: 116
A131: 117 | B131: 0 | D131: =IF(B131+F131-D130<=0,B131+F131,IF(AND(OR(Simulador!$U$39=2,Simulador!$U$39=7),J130=0),IFERROR((((P131/360*AU131)/(1-(1+(P131/360*AU131))^-AS131))*B131)*(1+AA131),0),IF($AF$3=2,B131*AJ131,IFERROR((((P131/360*AU131)/(1-(1+(P131/360*AU131))^-AS131))*B131)*(1+AA131),0)))) -> 0 | F131: 0 | H131: 0 | L131: =IF(Simulador!$T$41=1,0,J131*Simulador!$W$39*1.16) -> 0 | P131: 0 | R131: 0 | T131: =IFERROR(IF(Simulador!$U$30=1,0,IF($B131<=0,0,$B131*Simulador!$AA$43)),0) -> 0 | V131: =IFERROR(IF(Simulador!$U$30=1,0,IF($B131<=0,0,IF(Simulador!$D$22>0,Simulador!$D$22,Simulador!$O$24)*Simulador!$AA$44)),0) -> 0 | Y131: 0 | AD131: 9 | AE131: 9 | AF131: 0 | AG131: 0 | AH131: 0 | AI131: 0 | AJ131: 0 | AK131: 0 | AL131: 0 | AM131: 0 | AN131: 0 | AO131: 0 | AP131: =IFERROR(IF(Simulador!$U$30=1,0,IF($AK131<=0,0,$AK131*Simulador!$AA$43)),0)+IFERROR(IF(Simulador!$U$30=1,0,IF($AK131<=0,0,IF(Simulador!$D$22>0,Simulador!$D$22,Simulador!$O$24)*Simulador!$AA$44)),0) -> 0 | AQ131: 0 | AR131: 0 | AS131: 0 | AU131: 0 | AV131: 117
A132: 118 | B132: 0 | D132: =IF(B132+F132-D131<=0,B132+F132,IF(AND(OR(Simulador!$U$39=2,Simulador!$U$39=7),J131=0),IFERROR((((P132/360*AU132)/(1-(1+(P132/360*AU132))^-AS132))*B132)*(1+AA132),0),IF($AF$3=2,B132*AJ132,IFERROR((((P132/360*AU132)/(1-(1+(P132/360*AU132))^-AS132))*B132)*(1+AA132),0)))) -> 0 | F132: 0 | H132: 0 | L132: =IF(Simulador!$T$41=1,0,J132*Simulador!$W$39*1.16) -> 0 | N132: =IF(B132-H132=0,0,N130) -> 0 | P132: 0 | R132: 0 | T132: =IFERROR(IF(Simulador!$U$30=1,0,IF($B132<=0,0,$B132*Simulador!$AA$43)),0) -> 0 | V132: =IFERROR(IF(Simulador!$U$30=1,0,IF($B132<=0,0,IF(Simulador!$D$22>0,Simulador!$D$22,Simulador!$O$24)*Simulador!$AA$44)),0) -> 0 | Y132: 0 | AD132: 9 | AE132: 10 | AF132: 0 | AG132: 0 | AH132: 0 | AI132: 0 | AJ132: 0 | AK132: 0 | AL132: 0 | AM132: 0 | AN132: 0 | AO132: 0 | AP132: =IFERROR(IF(Simulador!$U$30=1,0,IF($AK132<=0,0,$AK132*Simulador!$AA$43)),0)+IFERROR(IF(Simulador!$U$30=1,0,IF($AK132<=0,0,IF(Simulador!$D$22>0,Simulador!$D$22,Simulador!$O$24)*Simulador!$AA$44)),0) -> 0 | AQ132: 0 | AR132: 0 | AS132: 0 | AU132: 0 | AV132: 118
A133: 119 | B133: 0 | D133: =IF(B133+F133-D132<=0,B133+F133,IF(AND(OR(Simulador!$U$39=2,Simulador!$U$39=7),J132=0),IFERROR((((P133/360*AU133)/(1-(1+(P133/360*AU133))^-AS133))*B133)*(1+AA133),0),IF($AF$3=2,B133*AJ133,IFERROR((((P133/360*AU133)/(1-(1+(P133/360*AU133))^-AS133))*B133)*(1+AA133),0)))) -> 0 | F133: 0 | H133: 0 | L133: =IF(Simulador!$T$41=1,0,J133*Simulador!$W$39*1.16) -> 0 | P133: 0 | R133: 0 | T133: =IFERROR(IF(Simulador!$U$30=1,0,IF($B133<=0,0,$B133*Simulador!$AA$43)),0) -> 0 | V133: =IFERROR(IF(Simulador!$U$30=1,0,IF($B133<=0,0,IF(Simulador!$D$22>0,Simulador!$D$22,Simulador!$O$24)*Simulador!$AA$44)),0) -> 0 | Y133: 0 | AD133: 9 | AE133: 11 | AF133: 0 | AG133: 0 | AH133: 0 | AI133: 0 | AJ133: 0 | AK133: 0 | AL133: 0 | AM133: 0 | AN133: 0 | AO133: 0 | AP133: =IFERROR(IF(Simulador!$U$30=1,0,IF($AK133<=0,0,$AK133*Simulador!$AA$43)),0)+IFERROR(IF(Simulador!$U$30=1,0,IF($AK133<=0,0,IF(Simulador!$D$22>0,Simulador!$D$22,Simulador!$O$24)*Simulador!$AA$44)),0) -> 0 | AQ133: 0 | AR133: 0 | AS133: 0 | AU133: 0 | AV133: 119
A134: 120 | B134: =IF(R133<=0.01,0,R133) -> 0 | D134: =IF(B134+F134-D133<=0,B134+F134,IF(AND(OR(Simulador!$U$39=2,Simulador!$U$39=7),J133=0),IFERROR((((P134/360*AU134)/(1-(1+(P134/360*AU134))^-AS134))*B134)*(1+AA134),0),IF($AF$3=2,B134*AJ134,IFERROR((((P134/360*AU134)/(1-(1+(P134/360*AU134))^-AS134))*B134)*(1+AA134),0)))) -> 0 | F134: 0 | H134: =D134-F134 -> 0 | L134: =IF(Simulador!$T$41=1,0,J134*Simulador!$W$39*1.16) -> 0 | N134: =IF(B134-H134=0,0,N132) -> 0 | P134: 0 | R134: 0 | T134: =IFERROR(IF(Simulador!$U$30=1,0,IF($B134<=0,0,$B134*Simulador!$AA$43)),0) -> 0 | V134: =IFERROR(IF(Simulador!$U$30=1,0,IF($B134<=0,0,IF(Simulador!$D$22>0,Simulador!$D$22,Simulador!$O$24)*Simulador!$AA$44)),0) -> 0 | Y134: 0 | AD134: 10 | AE134: 0 | AF134: 0 | AG134: 0 | AH134: 0 | AI134: 0 | AJ134: =IFERROR((AL134/AK134),0) -> 0 | AK134: 0 | AL134: 0 | AM134: 0 | AN134: 0 | AO134: 0 | AP134: =IFERROR(IF(Simulador!$U$30=1,0,IF($AK134<=0.01,0,$AK134*Simulador!$AA$43)),0)+IFERROR(IF(Simulador!$U$30=1,0,IF($AK134<=0.01,0,IF(Simulador!$D$22>0,Simulador!$D$22,Simulador!$O$24)*Simulador!$AA$44)),0) -> 0 | AQ134: 0 | AR134: 0 | AS134: 0 | AU134: 0 | AV134: 120
A135: =+A134+1 -> 121 | B135: =IF(R134<=0.01,0,R134) -> 0 | D135: =IF(B135+F135-D134<=0,B135+F135,IF(AND(OR(Simulador!$U$39=2,Simulador!$U$39=7),J134=0),IFERROR((((P135/360*AU135)/(1-(1+(P135/360*AU135))^-AS135))*B135)*(1+AA135),0),IF($AF$3=2,B135*AJ135,IFERROR((((P135/360*AU135)/(1-(1+(P135/360*AU135))^-AS135))*B135)*(1+AA135),0)))) -> 0 | F135: =IFERROR(IF(B135=0,0,P135/360*AU135*B135),0) -> 0 | H135: =D135-F135 -> 0 | L135: =IF(Simulador!$T$41=1,0,J135*Simulador!$W$39*1.16) -> 0 | P135: =IFERROR(IF(B135=0,0,IF(Simulador!$D$26<>0,MIN(Simulador!$D$26+Simulador!$U$75,$AG$12),P134)),0) -> 0 | R135: =B135-H135-J135+L135-N135 -> 0 | T135: =IFERROR(IF(Simulador!$U$30=1,0,IF($B135<=0,0,$B135*Simulador!$AA$43)),0) -> 0 | V135: =IFERROR(IF(Simulador!$U$30=1,0,IF($B135<=0,0,IF(Simulador!$D$22>0,Simulador!$D$22,Simulador!$O$24)*Simulador!$AA$44)),0) -> 0 | Y135: =IF(B135<=0,0,D135+J135+T135+V135) -> 0 | AD135: 10 | AE135: 1 | AF135: =IF(R135<=0.01,IF(R134>0.01,A135,0),0) -> 0 | AG135: =IF(AF135>0,AD135,0) -> 0 | AH135: =IF(AF135>0,AE135,0) -> 0 | AI135: =Y135 -> 0 | AJ135: =IFERROR((AL135/AK135),0) -> 0 | AK135: =+AO134 -> 0 | AL135: =IFERROR(((AR135/360*AU135)/(1-(1+(AR135/360*AU135))^-AS135))*AK135,0) -> 0 | AM135: =IFERROR(IF(AK135=0,0,AR135/360*AU135*AK135),0) -> 0 | AN135: =+AL135-AM135 -> 0 | AO135: =+AK135-AN135 -> 0 | AP135: =IFERROR(IF(Simulador!$U$30=1,0,IF($AK135<=0.01,0,$AK135*Simulador!$AA$43)),0)+IFERROR(IF(Simulador!$U$30=1,0,IF($AK135<=0.01,0,IF(Simulador!$D$22>0,Simulador!$D$22,Simulador!$O$24)*Simulador!$AA$44)),0) -> 0 | AQ135: =AL135+AP135 -> 0 | AR135: =IFERROR(IF(AK135=0,0,AR134),0) -> 0 | AS135: =IFERROR(IF(AK135<=0.01,0,AS134-1),0) -> 0 | AT135: =IF(AK135=0,"",DATE(YEAR(AT134),MONTH(AT134)+1,1)) ->  | AU135: =IFERROR(DAY(DATE(YEAR(AT135),MONTH(AT135)+1,0)),0) -> 0 | AV135: 120
A136: =+A135+1 -> 122 | B136: 0 | D136: =IF(B136+F136-D135<=0,B136+F136,IF(AND(OR(Simulador!$U$39=2,Simulador!$U$39=7),J135=0),IFERROR((((P136/360*AU136)/(1-(1+(P136/360*AU136))^-AS136))*B136)*(1+AA136),0),IF($AF$3=2,B136*AJ136,IFERROR((((P136/360*AU136)/(1-(1+(P136/360*AU136))^-AS136))*B136)*(1+AA136),0)))) -> 0 | F136: =IFERROR(IF(B136=0,0,P136/360*AU136*B136),0) -> 0 | H136: =D136-F136 -> 0 | L136: =IF(Simulador!$T$41=1,0,J136*Simulador!$W$39*1.16) -> 0 | N136: =IF(B136-H136=0,0,N134) -> 0 | P136: =IFERROR(IF(B136=0,0,P135),0) -> 0 | R136: =B136-H136-J136+L136-N136 -> 0 | T136: =IFERROR(IF(Simulador!$U$30=1,0,IF($B136<=0,0,$B136*Simulador!$AA$43)),0) -> 0 | V136: =IFERROR(IF(Simulador!$U$30=1,0,IF($B136<=0,0,IF(Simulador!$D$22>0,Simulador!$D$22,Simulador!$O$24)*Simulador!$AA$44)),0) -> 0 | Y136: 0 | AD136: 10 | AE136: 2 | AF136: 0 | AG136: 0 | AH136: 0 | AI136: 0 | AJ136: 0 | AK136: 0 | AL136: 0 | AM136: 0 | AN136: 0 | AO136: 0 | AP136: =IFERROR(IF(Simulador!$U$30=1,0,IF($AK136<=0.01,0,$AK136*Simulador!$AA$43)),0)+IFERROR(IF(Simulador!$U$30=1,0,IF($AK136<=0.01,0,IF(Simulador!$D$22>0,Simulador!$D$22,Simulador!$O$24)*Simulador!$AA$44)),0) -> 0 | AQ136: 0 | AR136: 0 | AS136: 0 | AU136: 0 | AV136: 120
A137: 123 | B137: 0 | D137: =IF(B137+F137-D136<=0,B137+F137,IF(AND(OR(Simulador!$U$39=2,Simulador!$U$39=7),J136=0),IFERROR((((P137/360*AU137)/(1-(1+(P137/360*AU137))^-AS137))*B137)*(1+AA137),0),IF($AF$3=2,B137*AJ137,IFERROR((((P137/360*AU137)/(1-(1+(P137/360*AU137))^-AS137))*B137)*(1+AA137),0)))) -> 0 | F137: 0 | H137: 0 | L137: =IF(Simulador!$T$41=1,0,J137*Simulador!$W$39*1.16) -> 0 | P137: 0 | R137: 0 | T137: =IFERROR(IF(Simulador!$U$30=1,0,IF($B137<=0,0,$B137*Simulador!$AA$43)),0) -> 0 | V137: =IFERROR(IF(Simulador!$U$30=1,0,IF($B137<=0,0,IF(Simulador!$D$22>0,Simulador!$D$22,Simulador!$O$24)*Simulador!$AA$44)),0) -> 0 | Y137: 0 | AD137: 10 | AE137: 3 | AF137: 0 | AG137: 0 | AH137: 0 | AI137: 0 | AJ137: 0 | AK137: 0 | AL137: 0 | AM137: 0 | AN137: 0 | AO137: 0 | AP137: =IFERROR(IF(Simulador!$U$30=1,0,IF($AK137<=0.01,0,$AK137*Simulador!$AA$43)),0)+IFERROR(IF(Simulador!$U$30=1,0,IF($AK137<=0.01,0,IF(Simulador!$D$22>0,Simulador!$D$22,Simulador!$O$24)*Simulador!$AA$44)),0) -> 0 | AQ137: 0 | AR137: 0 | AS137: 0 | AU137: 0 | AV137: 120
A138: 124 | B138: 0 | D138: =IF(B138+F138-D137<=0,B138+F138,IF(AND(OR(Simulador!$U$39=2,Simulador!$U$39=7),J137=0),IFERROR((((P138/360*AU138)/(1-(1+(P138/360*AU138))^-AS138))*B138)*(1+AA138),0),IF($AF$3=2,B138*AJ138,IFERROR((((P138/360*AU138)/(1-(1+(P138/360*AU138))^-AS138))*B138)*(1+AA138),0)))) -> 0 | F138: 0 | H138: 0 | L138: =IF(Simulador!$T$41=1,0,J138*Simulador!$W$39*1.16) -> 0 | N138: 0 | P138: 0 | R138: 0 | T138: =IFERROR(IF(Simulador!$U$30=1,0,IF($B138<=0,0,$B138*Simulador!$AA$43)),0) -> 0 | V138: =IFERROR(IF(Simulador!$U$30=1,0,IF($B138<=0,0,IF(Simulador!$D$22>0,Simulador!$D$22,Simulador!$O$24)*Simulador!$AA$44)),0) -> 0 | Y138: 0 | AD138: 10 | AE138: 4 | AF138: 0 | AG138: 0 | AH138: 0 | AI138: 0 | AJ138: 0 | AK138: 0 | AL138: 0 | AM138: 0 | AN138: 0 | AO138: 0 | AP138: =IFERROR(IF(Simulador!$U$30=1,0,IF($AK138<=0.01,0,$AK138*Simulador!$AA$43)),0)+IFERROR(IF(Simulador!$U$30=1,0,IF($AK138<=0.01,0,IF(Simulador!$D$22>0,Simulador!$D$22,Simulador!$O$24)*Simulador!$AA$44)),0) -> 0 | AQ138: 0 | AR138: 0 | AS138: 0 | AU138: 0 | AV138: 120
A139: 125 | B139: 0 | D139: =IF(B139+F139-D138<=0,B139+F139,IF(AND(OR(Simulador!$U$39=2,Simulador!$U$39=7),J138=0),IFERROR((((P139/360*AU139)/(1-(1+(P139/360*AU139))^-AS139))*B139)*(1+AA139),0),IF($AF$3=2,B139*AJ139,IFERROR((((P139/360*AU139)/(1-(1+(P139/360*AU139))^-AS139))*B139)*(1+AA139),0)))) -> 0 | F139: 0 | H139: 0 | L139: =IF(Simulador!$T$41=1,0,J139*Simulador!$W$39*1.16) -> 0 | P139: 0 | R139: 0 | T139: =IFERROR(IF(Simulador!$U$30=1,0,IF($B139<=0,0,$B139*Simulador!$AA$43)),0) -> 0 | V139: =IFERROR(IF(Simulador!$U$30=1,0,IF($B139<=0,0,IF(Simulador!$D$22>0,Simulador!$D$22,Simulador!$O$24)*Simulador!$AA$44)),0) -> 0 | Y139: 0 | AD139: 10 | AE139: 5 | AF139: 0 | AG139: 0 | AH139: 0 | AI139: 0 | AJ139: 0 | AK139: 0 | AL139: 0 | AM139: 0 | AN139: 0 | AO139: 0 | AP139: =IFERROR(IF(Simulador!$U$30=1,0,IF($AK139<=0.01,0,$AK139*Simulador!$AA$43)),0)+IFERROR(IF(Simulador!$U$30=1,0,IF($AK139<=0.01,0,IF(Simulador!$D$22>0,Simulador!$D$22,Simulador!$O$24)*Simulador!$AA$44)),0) -> 0 | AQ139: 0 | AR139: 0 | AS139: 0 | AU139: 0 | AV139: 120
A140: 126 | B140: 0 | D140: =IF(B140+F140-D139<=0,B140+F140,IF(AND(OR(Simulador!$U$39=2,Simulador!$U$39=7),J139=0),IFERROR((((P140/360*AU140)/(1-(1+(P140/360*AU140))^-AS140))*B140)*(1+AA140),0),IF($AF$3=2,B140*AJ140,IFERROR((((P140/360*AU140)/(1-(1+(P140/360*AU140))^-AS140))*B140)*(1+AA140),0)))) -> 0 | F140: 0 | H140: 0 | L140: =IF(Simulador!$T$41=1,0,J140*Simulador!$W$39*1.16) -> 0 | N140: 0 | P140: 0 | R140: 0 | T140: =IFERROR(IF(Simulador!$U$30=1,0,IF($B140<=0,0,$B140*Simulador!$AA$43)),0) -> 0 | V140: =IFERROR(IF(Simulador!$U$30=1,0,IF($B140<=0,0,IF(Simulador!$D$22>0,Simulador!$D$22,Simulador!$O$24)*Simulador!$AA$44)),0) -> 0 | Y140: 0 | AD140: 10 | AE140: 6 | AF140: 0 | AG140: 0 | AH140: 0 | AI140: 0 | AJ140: 0 | AK140: 0 | AL140: 0 | AM140: 0 | AN140: 0 | AO140: 0 | AP140: =IFERROR(IF(Simulador!$U$30=1,0,IF($AK140<=0.01,0,$AK140*Simulador!$AA$43)),0)+IFERROR(IF(Simulador!$U$30=1,0,IF($AK140<=0.01,0,IF(Simulador!$D$22>0,Simulador!$D$22,Simulador!$O$24)*Simulador!$AA$44)),0) -> 0 | AQ140: 0 | AR140: 0 | AS140: 0 | AU140: 0 | AV140: 120
A141: 127 | B141: 0 | D141: =IF(B141+F141-D140<=0,B141+F141,IF(AND(OR(Simulador!$U$39=2,Simulador!$U$39=7),J140=0),IFERROR((((P141/360*AU141)/(1-(1+(P141/360*AU141))^-AS141))*B141)*(1+AA141),0),IF($AF$3=2,B141*AJ141,IFERROR((((P141/360*AU141)/(1-(1+(P141/360*AU141))^-AS141))*B141)*(1+AA141),0)))) -> 0 | F141: 0 | H141: 0 | L141: =IF(Simulador!$T$41=1,0,J141*Simulador!$W$39*1.16) -> 0 | P141: 0 | R141: 0 | T141: =IFERROR(IF(Simulador!$U$30=1,0,IF($B141<=0,0,$B141*Simulador!$AA$43)),0) -> 0 | V141: =IFERROR(IF(Simulador!$U$30=1,0,IF($B141<=0,0,IF(Simulador!$D$22>0,Simulador!$D$22,Simulador!$O$24)*Simulador!$AA$44)),0) -> 0 | Y141: 0 | AD141: 10 | AE141: 7 | AF141: 0 | AG141: 0 | AH141: 0 | AI141: 0 | AJ141: 0 | AK141: 0 | AL141: 0 | AM141: 0 | AN141: 0 | AO141: 0 | AP141: =IFERROR(IF(Simulador!$U$30=1,0,IF($AK141<=0.01,0,$AK141*Simulador!$AA$43)),0)+IFERROR(IF(Simulador!$U$30=1,0,IF($AK141<=0.01,0,IF(Simulador!$D$22>0,Simulador!$D$22,Simulador!$O$24)*Simulador!$AA$44)),0) -> 0 | AQ141: 0 | AR141: 0 | AS141: 0 | AU141: 0 | AV141: 120
A142: 128 | B142: 0 | D142: =IF(B142+F142-D141<=0,B142+F142,IF(AND(OR(Simulador!$U$39=2,Simulador!$U$39=7),J141=0),IFERROR((((P142/360*AU142)/(1-(1+(P142/360*AU142))^-AS142))*B142)*(1+AA142),0),IF($AF$3=2,B142*AJ142,IFERROR((((P142/360*AU142)/(1-(1+(P142/360*AU142))^-AS142))*B142)*(1+AA142),0)))) -> 0 | F142: 0 | H142: 0 | L142: =IF(Simulador!$T$41=1,0,J142*Simulador!$W$39*1.16) -> 0 | N142: 0 | P142: 0 | R142: 0 | T142: =IFERROR(IF(Simulador!$U$30=1,0,IF($B142<=0,0,$B142*Simulador!$AA$43)),0) -> 0 | V142: =IFERROR(IF(Simulador!$U$30=1,0,IF($B142<=0,0,IF(Simulador!$D$22>0,Simulador!$D$22,Simulador!$O$24)*Simulador!$AA$44)),0) -> 0 | Y142: 0 | AD142: 10 | AE142: 8 | AF142: 0 | AG142: 0 | AH142: 0 | AI142: 0 | AJ142: 0 | AK142: 0 | AL142: 0 | AM142: 0 | AN142: 0 | AO142: 0 | AP142: =IFERROR(IF(Simulador!$U$30=1,0,IF($AK142<=0.01,0,$AK142*Simulador!$AA$43)),0)+IFERROR(IF(Simulador!$U$30=1,0,IF($AK142<=0.01,0,IF(Simulador!$D$22>0,Simulador!$D$22,Simulador!$O$24)*Simulador!$AA$44)),0) -> 0 | AQ142: 0 | AR142: 0 | AS142: 0 | AU142: 0 | AV142: 120
A143: 129 | B143: 0 | D143: =IF(B143+F143-D142<=0,B143+F143,IF(AND(OR(Simulador!$U$39=2,Simulador!$U$39=7),J142=0),IFERROR((((P143/360*AU143)/(1-(1+(P143/360*AU143))^-AS143))*B143)*(1+AA143),0),IF($AF$3=2,B143*AJ143,IFERROR((((P143/360*AU143)/(1-(1+(P143/360*AU143))^-AS143))*B143)*(1+AA143),0)))) -> 0 | F143: 0 | H143: 0 | L143: =IF(Simulador!$T$41=1,0,J143*Simulador!$W$39*1.16) -> 0 | P143: 0 | R143: 0 | T143: =IFERROR(IF(Simulador!$U$30=1,0,IF($B143<=0,0,$B143*Simulador!$AA$43)),0) -> 0 | V143: =IFERROR(IF(Simulador!$U$30=1,0,IF($B143<=0,0,IF(Simulador!$D$22>0,Simulador!$D$22,Simulador!$O$24)*Simulador!$AA$44)),0) -> 0 | Y143: 0 | AD143: 10 | AE143: 9 | AF143: 0 | AG143: 0 | AH143: 0 | AI143: 0 | AJ143: 0 | AK143: 0 | AL143: 0 | AM143: 0 | AN143: 0 | AO143: 0 | AP143: =IFERROR(IF(Simulador!$U$30=1,0,IF($AK143<=0.01,0,$AK143*Simulador!$AA$43)),0)+IFERROR(IF(Simulador!$U$30=1,0,IF($AK143<=0.01,0,IF(Simulador!$D$22>0,Simulador!$D$22,Simulador!$O$24)*Simulador!$AA$44)),0) -> 0 | AQ143: 0 | AR143: 0 | AS143: 0 | AU143: 0 | AV143: 120
A144: 130 | B144: 0 | D144: =IF(B144+F144-D143<=0,B144+F144,IF(AND(OR(Simulador!$U$39=2,Simulador!$U$39=7),J143=0),IFERROR((((P144/360*AU144)/(1-(1+(P144/360*AU144))^-AS144))*B144)*(1+AA144),0),IF($AF$3=2,B144*AJ144,IFERROR((((P144/360*AU144)/(1-(1+(P144/360*AU144))^-AS144))*B144)*(1+AA144),0)))) -> 0 | F144: 0 | H144: 0 | L144: =IF(Simulador!$T$41=1,0,J144*Simulador!$W$39*1.16) -> 0 | N144: 0 | P144: 0 | R144: 0 | T144: =IFERROR(IF(Simulador!$U$30=1,0,IF($B144<=0,0,$B144*Simulador!$AA$43)),0) -> 0 | V144: =IFERROR(IF(Simulador!$U$30=1,0,IF($B144<=0,0,IF(Simulador!$D$22>0,Simulador!$D$22,Simulador!$O$24)*Simulador!$AA$44)),0) -> 0 | Y144: 0 | AD144: 10 | AE144: 10 | AF144: 0 | AG144: 0 | AH144: 0 | AI144: 0 | AJ144: 0 | AK144: 0 | AL144: 0 | AM144: 0 | AN144: 0 | AO144: 0 | AP144: =IFERROR(IF(Simulador!$U$30=1,0,IF($AK144<=0.01,0,$AK144*Simulador!$AA$43)),0)+IFERROR(IF(Simulador!$U$30=1,0,IF($AK144<=0.01,0,IF(Simulador!$D$22>0,Simulador!$D$22,Simulador!$O$24)*Simulador!$AA$44)),0) -> 0 | AQ144: 0 | AR144: 0 | AS144: 0 | AU144: 0 | AV144: 120
A145: 131 | B145: 0 | D145: =IF(B145+F145-D144<=0,B145+F145,IF(AND(OR(Simulador!$U$39=2,Simulador!$U$39=7),J144=0),IFERROR((((P145/360*AU145)/(1-(1+(P145/360*AU145))^-AS145))*B145)*(1+AA145),0),IF($AF$3=2,B145*AJ145,IFERROR((((P145/360*AU145)/(1-(1+(P145/360*AU145))^-AS145))*B145)*(1+AA145),0)))) -> 0 | F145: 0 | H145: 0 | L145: =IF(Simulador!$T$41=1,0,J145*Simulador!$W$39*1.16) -> 0 | P145: 0 | R145: 0 | T145: =IFERROR(IF(Simulador!$U$30=1,0,IF($B145<=0,0,$B145*Simulador!$AA$43)),0) -> 0 | V145: =IFERROR(IF(Simulador!$U$30=1,0,IF($B145<=0,0,IF(Simulador!$D$22>0,Simulador!$D$22,Simulador!$O$24)*Simulador!$AA$44)),0) -> 0 | Y145: 0 | AD145: 10 | AE145: 11 | AF145: 0 | AG145: 0 | AH145: 0 | AI145: 0 | AJ145: 0 | AK145: 0 | AL145: 0 | AM145: 0 | AN145: 0 | AO145: 0 | AP145: =IFERROR(IF(Simulador!$U$30=1,0,IF($AK145<=0.01,0,$AK145*Simulador!$AA$43)),0)+IFERROR(IF(Simulador!$U$30=1,0,IF($AK145<=0.01,0,IF(Simulador!$D$22>0,Simulador!$D$22,Simulador!$O$24)*Simulador!$AA$44)),0) -> 0 | AQ145: 0 | AR145: 0 | AS145: 0 | AU145: 0 | AV145: 120
A146: 132 | B146: 0 | D146: =IF(B146+F146-D145<=0,B146+F146,IF(AND(OR(Simulador!$U$39=2,Simulador!$U$39=7),J145=0),IFERROR((((P146/360*AU146)/(1-(1+(P146/360*AU146))^-AS146))*B146)*(1+AA146),0),IF($AF$3=2,B146*AJ146,IFERROR((((P146/360*AU146)/(1-(1+(P146/360*AU146))^-AS146))*B146)*(1+AA146),0)))) -> 0 | F146: 0 | H146: 0 | L146: =IF(Simulador!$T$41=1,0,J146*Simulador!$W$39*1.16) -> 0 | N146: 0 | P146: 0 | R146: 0 | T146: =IFERROR(IF(Simulador!$U$30=1,0,IF($B146<=0,0,$B146*Simulador!$AA$43)),0) -> 0 | V146: =IFERROR(IF(Simulador!$U$30=1,0,IF($B146<=0,0,IF(Simulador!$D$22>0,Simulador!$D$22,Simulador!$O$24)*Simulador!$AA$44)),0) -> 0 | Y146: 0 | AD146: 11 | AE146: 0 | AF146: 0 | AG146: 0 | AH146: 0 | AI146: 0 | AJ146: 0 | AK146: 0 | AL146: 0 | AM146: 0 | AN146: 0 | AO146: 0 | AP146: =IFERROR(IF(Simulador!$U$30=1,0,IF($AK146<=0.01,0,$AK146*Simulador!$AA$43)),0)+IFERROR(IF(Simulador!$U$30=1,0,IF($AK146<=0.01,0,IF(Simulador!$D$22>0,Simulador!$D$22,Simulador!$O$24)*Simulador!$AA$44)),0) -> 0 | AQ146: 0 | AR146: 0 | AS146: 0 | AU146: 0 | AV146: 120
A147: 133 | B147: 0 | D147: =IF(B147+F147-D146<=0,B147+F147,IF(AND(OR(Simulador!$U$39=2,Simulador!$U$39=7),J146=0),IFERROR((((P147/360*AU147)/(1-(1+(P147/360*AU147))^-AS147))*B147)*(1+AA147),0),IF($AF$3=2,B147*AJ147,IFERROR((((P147/360*AU147)/(1-(1+(P147/360*AU147))^-AS147))*B147)*(1+AA147),0)))) -> 0 | F147: 0 | H147: 0 | L147: =IF(Simulador!$T$41=1,0,J147*Simulador!$W$39*1.16) -> 0 | P147: 0 | R147: 0 | T147: =IFERROR(IF(Simulador!$U$30=1,0,IF($B147<=0,0,$B147*Simulador!$AA$43)),0) -> 0 | V147: =IFERROR(IF(Simulador!$U$30=1,0,IF($B147<=0,0,IF(Simulador!$D$22>0,Simulador!$D$22,Simulador!$O$24)*Simulador!$AA$44)),0) -> 0 | Y147: 0 | AD147: 11 | AE147: 1 | AF147: 0 | AG147: 0 | AH147: 0 | AI147: 0 | AJ147: 0 | AK147: 0 | AL147: 0 | AM147: 0 | AN147: 0 | AO147: 0 | AP147: =IFERROR(IF(Simulador!$U$30=1,0,IF($AK147<=0.01,0,$AK147*Simulador!$AA$43)),0)+IFERROR(IF(Simulador!$U$30=1,0,IF($AK147<=0.01,0,IF(Simulador!$D$22>0,Simulador!$D$22,Simulador!$O$24)*Simulador!$AA$44)),0) -> 0 | AQ147: 0 | AR147: 0 | AS147: 0 | AU147: 0 | AV147: 120
A148: 134 | B148: 0 | D148: =IF(B148+F148-D147<=0,B148+F148,IF(AND(OR(Simulador!$U$39=2,Simulador!$U$39=7),J147=0),IFERROR((((P148/360*AU148)/(1-(1+(P148/360*AU148))^-AS148))*B148)*(1+AA148),0),IF($AF$3=2,B148*AJ148,IFERROR((((P148/360*AU148)/(1-(1+(P148/360*AU148))^-AS148))*B148)*(1+AA148),0)))) -> 0 | F148: 0 | H148: 0 | L148: =IF(Simulador!$T$41=1,0,J148*Simulador!$W$39*1.16) -> 0 | N148: 0 | P148: 0 | R148: 0 | T148: =IFERROR(IF(Simulador!$U$30=1,0,IF($B148<=0,0,$B148*Simulador!$AA$43)),0) -> 0 | V148: =IFERROR(IF(Simulador!$U$30=1,0,IF($B148<=0,0,IF(Simulador!$D$22>0,Simulador!$D$22,Simulador!$O$24)*Simulador!$AA$44)),0) -> 0 | Y148: 0 | AD148: 11 | AE148: 2 | AF148: 0 | AG148: 0 | AH148: 0 | AI148: 0 | AJ148: 0 | AK148: 0 | AL148: 0 | AM148: 0 | AN148: 0 | AO148: 0 | AP148: =IFERROR(IF(Simulador!$U$30=1,0,IF($AK148<=0.01,0,$AK148*Simulador!$AA$43)),0)+IFERROR(IF(Simulador!$U$30=1,0,IF($AK148<=0.01,0,IF(Simulador!$D$22>0,Simulador!$D$22,Simulador!$O$24)*Simulador!$AA$44)),0) -> 0 | AQ148: 0 | AR148: 0 | AS148: 0 | AU148: 0 | AV148: 120
A149: 135 | B149: 0 | D149: =IF(B149+F149-D148<=0,B149+F149,IF(AND(OR(Simulador!$U$39=2,Simulador!$U$39=7),J148=0),IFERROR((((P149/360*AU149)/(1-(1+(P149/360*AU149))^-AS149))*B149)*(1+AA149),0),IF($AF$3=2,B149*AJ149,IFERROR((((P149/360*AU149)/(1-(1+(P149/360*AU149))^-AS149))*B149)*(1+AA149),0)))) -> 0 | F149: 0 | H149: 0 | L149: =IF(Simulador!$T$41=1,0,J149*Simulador!$W$39*1.16) -> 0 | P149: 0 | R149: 0 | T149: =IFERROR(IF(Simulador!$U$30=1,0,IF($B149<=0,0,$B149*Simulador!$AA$43)),0) -> 0 | V149: =IFERROR(IF(Simulador!$U$30=1,0,IF($B149<=0,0,IF(Simulador!$D$22>0,Simulador!$D$22,Simulador!$O$24)*Simulador!$AA$44)),0) -> 0 | Y149: 0 | AD149: 11 | AE149: 3 | AF149: 0 | AG149: 0 | AH149: 0 | AI149: 0 | AJ149: 0 | AK149: 0 | AL149: 0 | AM149: 0 | AN149: 0 | AO149: 0 | AP149: =IFERROR(IF(Simulador!$U$30=1,0,IF($AK149<=0.01,0,$AK149*Simulador!$AA$43)),0)+IFERROR(IF(Simulador!$U$30=1,0,IF($AK149<=0.01,0,IF(Simulador!$D$22>0,Simulador!$D$22,Simulador!$O$24)*Simulador!$AA$44)),0) -> 0 | AQ149: 0 | AR149: 0 | AS149: 0 | AU149: 0 | AV149: 120
A150: 136 | B150: 0 | D150: =IF(B150+F150-D149<=0,B150+F150,IF(AND(OR(Simulador!$U$39=2,Simulador!$U$39=7),J149=0),IFERROR((((P150/360*AU150)/(1-(1+(P150/360*AU150))^-AS150))*B150)*(1+AA150),0),IF($AF$3=2,B150*AJ150,IFERROR((((P150/360*AU150)/(1-(1+(P150/360*AU150))^-AS150))*B150)*(1+AA150),0)))) -> 0 | F150: 0 | H150: 0 | L150: =IF(Simulador!$T$41=1,0,J150*Simulador!$W$39*1.16) -> 0 | N150: 0 | P150: 0 | R150: 0 | T150: =IFERROR(IF(Simulador!$U$30=1,0,IF($B150<=0,0,$B150*Simulador!$AA$43)),0) -> 0 | V150: =IFERROR(IF(Simulador!$U$30=1,0,IF($B150<=0,0,IF(Simulador!$D$22>0,Simulador!$D$22,Simulador!$O$24)*Simulador!$AA$44)),0) -> 0 | Y150: 0 | AD150: 11 | AE150: 4 | AF150: 0 | AG150: 0 | AH150: 0 | AI150: 0 | AJ150: 0 | AK150: 0 | AL150: 0 | AM150: 0 | AN150: 0 | AO150: 0 | AP150: =IFERROR(IF(Simulador!$U$30=1,0,IF($AK150<=0.01,0,$AK150*Simulador!$AA$43)),0)+IFERROR(IF(Simulador!$U$30=1,0,IF($AK150<=0.01,0,IF(Simulador!$D$22>0,Simulador!$D$22,Simulador!$O$24)*Simulador!$AA$44)),0) -> 0 | AQ150: 0 | AR150: 0 | AS150: 0 | AU150: 0 | AV150: 120
A151: 137 | B151: 0 | D151: =IF(B151+F151-D150<=0,B151+F151,IF(AND(OR(Simulador!$U$39=2,Simulador!$U$39=7),J150=0),IFERROR((((P151/360*AU151)/(1-(1+(P151/360*AU151))^-AS151))*B151)*(1+AA151),0),IF($AF$3=2,B151*AJ151,IFERROR((((P151/360*AU151)/(1-(1+(P151/360*AU151))^-AS151))*B151)*(1+AA151),0)))) -> 0 | F151: 0 | H151: 0 | L151: =IF(Simulador!$T$41=1,0,J151*Simulador!$W$39*1.16) -> 0 | P151: 0 | R151: 0 | T151: =IFERROR(IF(Simulador!$U$30=1,0,IF($B151<=0,0,$B151*Simulador!$AA$43)),0) -> 0 | V151: =IFERROR(IF(Simulador!$U$30=1,0,IF($B151<=0,0,IF(Simulador!$D$22>0,Simulador!$D$22,Simulador!$O$24)*Simulador!$AA$44)),0) -> 0 | Y151: 0 | AD151: 11 | AE151: 5 | AF151: 0 | AG151: 0 | AH151: 0 | AI151: 0 | AJ151: 0 | AK151: 0 | AL151: 0 | AM151: 0 | AN151: 0 | AO151: 0 | AP151: =IFERROR(IF(Simulador!$U$30=1,0,IF($AK151<=0.01,0,$AK151*Simulador!$AA$43)),0)+IFERROR(IF(Simulador!$U$30=1,0,IF($AK151<=0.01,0,IF(Simulador!$D$22>0,Simulador!$D$22,Simulador!$O$24)*Simulador!$AA$44)),0) -> 0 | AQ151: 0 | AR151: 0 | AS151: 0 | AU151: 0 | AV151: 120
A152: 138 | B152: 0 | D152: =IF(B152+F152-D151<=0,B152+F152,IF(AND(OR(Simulador!$U$39=2,Simulador!$U$39=7),J151=0),IFERROR((((P152/360*AU152)/(1-(1+(P152/360*AU152))^-AS152))*B152)*(1+AA152),0),IF($AF$3=2,B152*AJ152,IFERROR((((P152/360*AU152)/(1-(1+(P152/360*AU152))^-AS152))*B152)*(1+AA152),0)))) -> 0 | F152: 0 | H152: 0 | L152: =IF(Simulador!$T$41=1,0,J152*Simulador!$W$39*1.16) -> 0 | N152: 0 | P152: 0 | R152: 0 | T152: =IFERROR(IF(Simulador!$U$30=1,0,IF($B152<=0,0,$B152*Simulador!$AA$43)),0) -> 0 | V152: =IFERROR(IF(Simulador!$U$30=1,0,IF($B152<=0,0,IF(Simulador!$D$22>0,Simulador!$D$22,Simulador!$O$24)*Simulador!$AA$44)),0) -> 0 | Y152: 0 | AD152: 11 | AE152: 6 | AF152: 0 | AG152: 0 | AH152: 0 | AI152: 0 | AJ152: 0 | AK152: 0 | AL152: 0 | AM152: 0 | AN152: 0 | AO152: 0 | AP152: =IFERROR(IF(Simulador!$U$30=1,0,IF($AK152<=0.01,0,$AK152*Simulador!$AA$43)),0)+IFERROR(IF(Simulador!$U$30=1,0,IF($AK152<=0.01,0,IF(Simulador!$D$22>0,Simulador!$D$22,Simulador!$O$24)*Simulador!$AA$44)),0) -> 0 | AQ152: 0 | AR152: 0 | AS152: 0 | AU152: 0 | AV152: 120
A153: 139 | B153: 0 | D153: =IF(B153+F153-D152<=0,B153+F153,IF(AND(OR(Simulador!$U$39=2,Simulador!$U$39=7),J152=0),IFERROR((((P153/360*AU153)/(1-(1+(P153/360*AU153))^-AS153))*B153)*(1+AA153),0),IF($AF$3=2,B153*AJ153,IFERROR((((P153/360*AU153)/(1-(1+(P153/360*AU153))^-AS153))*B153)*(1+AA153),0)))) -> 0 | F153: 0 | H153: 0 | L153: =IF(Simulador!$T$41=1,0,J153*Simulador!$W$39*1.16) -> 0 | P153: 0 | R153: 0 | T153: =IFERROR(IF(Simulador!$U$30=1,0,IF($B153<=0,0,$B153*Simulador!$AA$43)),0) -> 0 | V153: =IFERROR(IF(Simulador!$U$30=1,0,IF($B153<=0,0,IF(Simulador!$D$22>0,Simulador!$D$22,Simulador!$O$24)*Simulador!$AA$44)),0) -> 0 | Y153: 0 | AD153: 11 | AE153: 7 | AF153: 0 | AG153: 0 | AH153: 0 | AI153: 0 | AJ153: 0 | AK153: 0 | AL153: 0 | AM153: 0 | AN153: 0 | AO153: 0 | AP153: =IFERROR(IF(Simulador!$U$30=1,0,IF($AK153<=0.01,0,$AK153*Simulador!$AA$43)),0)+IFERROR(IF(Simulador!$U$30=1,0,IF($AK153<=0.01,0,IF(Simulador!$D$22>0,Simulador!$D$22,Simulador!$O$24)*Simulador!$AA$44)),0) -> 0 | AQ153: 0 | AR153: 0 | AS153: 0 | AU153: 0 | AV153: 120
A154: 140 | B154: 0 | D154: =IF(B154+F154-D153<=0,B154+F154,IF(AND(OR(Simulador!$U$39=2,Simulador!$U$39=7),J153=0),IFERROR((((P154/360*AU154)/(1-(1+(P154/360*AU154))^-AS154))*B154)*(1+AA154),0),IF($AF$3=2,B154*AJ154,IFERROR((((P154/360*AU154)/(1-(1+(P154/360*AU154))^-AS154))*B154)*(1+AA154),0)))) -> 0 | F154: 0 | H154: 0 | L154: =IF(Simulador!$T$41=1,0,J154*Simulador!$W$39*1.16) -> 0 | N154: 0 | P154: 0 | R154: 0 | T154: =IFERROR(IF(Simulador!$U$30=1,0,IF($B154<=0,0,$B154*Simulador!$AA$43)),0) -> 0 | V154: =IFERROR(IF(Simulador!$U$30=1,0,IF($B154<=0,0,IF(Simulador!$D$22>0,Simulador!$D$22,Simulador!$O$24)*Simulador!$AA$44)),0) -> 0 | Y154: 0 | AD154: 11 | AE154: 8 | AF154: 0 | AG154: 0 | AH154: 0 | AI154: 0 | AJ154: 0 | AK154: 0 | AL154: 0 | AM154: 0 | AN154: 0 | AO154: 0 | AP154: =IFERROR(IF(Simulador!$U$30=1,0,IF($AK154<=0.01,0,$AK154*Simulador!$AA$43)),0)+IFERROR(IF(Simulador!$U$30=1,0,IF($AK154<=0.01,0,IF(Simulador!$D$22>0,Simulador!$D$22,Simulador!$O$24)*Simulador!$AA$44)),0) -> 0 | AQ154: 0 | AR154: 0 | AS154: 0 | AU154: 0 | AV154: 120
A155: 141 | B155: 0 | D155: =IF(B155+F155-D154<=0,B155+F155,IF(AND(OR(Simulador!$U$39=2,Simulador!$U$39=7),J154=0),IFERROR((((P155/360*AU155)/(1-(1+(P155/360*AU155))^-AS155))*B155)*(1+AA155),0),IF($AF$3=2,B155*AJ155,IFERROR((((P155/360*AU155)/(1-(1+(P155/360*AU155))^-AS155))*B155)*(1+AA155),0)))) -> 0 | F155: 0 | H155: 0 | L155: =IF(Simulador!$T$41=1,0,J155*Simulador!$W$39*1.16) -> 0 | P155: 0 | R155: 0 | T155: =IFERROR(IF(Simulador!$U$30=1,0,IF($B155<=0,0,$B155*Simulador!$AA$43)),0) -> 0 | V155: =IFERROR(IF(Simulador!$U$30=1,0,IF($B155<=0,0,IF(Simulador!$D$22>0,Simulador!$D$22,Simulador!$O$24)*Simulador!$AA$44)),0) -> 0 | Y155: 0 | AD155: 11 | AE155: 9 | AF155: 0 | AG155: 0 | AH155: 0 | AI155: 0 | AJ155: 0 | AK155: 0 | AL155: 0 | AM155: 0 | AN155: 0 | AO155: 0 | AP155: =IFERROR(IF(Simulador!$U$30=1,0,IF($AK155<=0.01,0,$AK155*Simulador!$AA$43)),0)+IFERROR(IF(Simulador!$U$30=1,0,IF($AK155<=0.01,0,IF(Simulador!$D$22>0,Simulador!$D$22,Simulador!$O$24)*Simulador!$AA$44)),0) -> 0 | AQ155: 0 | AR155: 0 | AS155: 0 | AU155: 0 | AV155: 120
A156: 142 | B156: 0 | D156: =IF(B156+F156-D155<=0,B156+F156,IF(AND(OR(Simulador!$U$39=2,Simulador!$U$39=7),J155=0),IFERROR((((P156/360*AU156)/(1-(1+(P156/360*AU156))^-AS156))*B156)*(1+AA156),0),IF($AF$3=2,B156*AJ156,IFERROR((((P156/360*AU156)/(1-(1+(P156/360*AU156))^-AS156))*B156)*(1+AA156),0)))) -> 0 | F156: 0 | H156: 0 | L156: =IF(Simulador!$T$41=1,0,J156*Simulador!$W$39*1.16) -> 0 | N156: 0 | P156: 0 | R156: 0 | T156: =IFERROR(IF(Simulador!$U$30=1,0,IF($B156<=0,0,$B156*Simulador!$AA$43)),0) -> 0 | V156: =IFERROR(IF(Simulador!$U$30=1,0,IF($B156<=0,0,IF(Simulador!$D$22>0,Simulador!$D$22,Simulador!$O$24)*Simulador!$AA$44)),0) -> 0 | Y156: 0 | AD156: 11 | AE156: 10 | AF156: 0 | AG156: 0 | AH156: 0 | AI156: 0 | AJ156: 0 | AK156: 0 | AL156: 0 | AM156: 0 | AN156: 0 | AO156: 0 | AP156: =IFERROR(IF(Simulador!$U$30=1,0,IF($AK156<=0.01,0,$AK156*Simulador!$AA$43)),0)+IFERROR(IF(Simulador!$U$30=1,0,IF($AK156<=0.01,0,IF(Simulador!$D$22>0,Simulador!$D$22,Simulador!$O$24)*Simulador!$AA$44)),0) -> 0 | AQ156: 0 | AR156: 0 | AS156: 0 | AU156: 0 | AV156: 120
A157: 143 | B157: 0 | D157: =IF(B157+F157-D156<=0,B157+F157,IF(AND(OR(Simulador!$U$39=2,Simulador!$U$39=7),J156=0),IFERROR((((P157/360*AU157)/(1-(1+(P157/360*AU157))^-AS157))*B157)*(1+AA157),0),IF($AF$3=2,B157*AJ157,IFERROR((((P157/360*AU157)/(1-(1+(P157/360*AU157))^-AS157))*B157)*(1+AA157),0)))) -> 0 | F157: 0 | H157: 0 | L157: =IF(Simulador!$T$41=1,0,J157*Simulador!$W$39*1.16) -> 0 | P157: 0 | R157: 0 | T157: =IFERROR(IF(Simulador!$U$30=1,0,IF($B157<=0,0,$B157*Simulador!$AA$43)),0) -> 0 | V157: =IFERROR(IF(Simulador!$U$30=1,0,IF($B157<=0,0,IF(Simulador!$D$22>0,Simulador!$D$22,Simulador!$O$24)*Simulador!$AA$44)),0) -> 0 | Y157: 0 | AD157: 11 | AE157: 11 | AF157: 0 | AG157: 0 | AH157: 0 | AI157: 0 | AJ157: 0 | AK157: 0 | AL157: 0 | AM157: 0 | AN157: 0 | AO157: 0 | AP157: =IFERROR(IF(Simulador!$U$30=1,0,IF($AK157<=0.01,0,$AK157*Simulador!$AA$43)),0)+IFERROR(IF(Simulador!$U$30=1,0,IF($AK157<=0.01,0,IF(Simulador!$D$22>0,Simulador!$D$22,Simulador!$O$24)*Simulador!$AA$44)),0) -> 0 | AQ157: 0 | AR157: 0 | AS157: 0 | AU157: 0 | AV157: 120
A158: 144 | B158: 0 | D158: =IF(B158+F158-D157<=0,B158+F158,IF(AND(OR(Simulador!$U$39=2,Simulador!$U$39=7),J157=0),IFERROR((((P158/360*AU158)/(1-(1+(P158/360*AU158))^-AS158))*B158)*(1+AA158),0),IF($AF$3=2,B158*AJ158,IFERROR((((P158/360*AU158)/(1-(1+(P158/360*AU158))^-AS158))*B158)*(1+AA158),0)))) -> 0 | F158: 0 | H158: 0 | L158: =IF(Simulador!$T$41=1,0,J158*Simulador!$W$39*1.16) -> 0 | N158: 0 | P158: 0 | R158: 0 | T158: =IFERROR(IF(Simulador!$U$30=1,0,IF($B158<=0,0,$B158*Simulador!$AA$43)),0) -> 0 | V158: =IFERROR(IF(Simulador!$U$30=1,0,IF($B158<=0,0,IF(Simulador!$D$22>0,Simulador!$D$22,Simulador!$O$24)*Simulador!$AA$44)),0) -> 0 | Y158: 0 | AD158: 12 | AE158: 0 | AF158: 0 | AG158: 0 | AH158: 0 | AI158: 0 | AJ158: 0 | AK158: 0 | AL158: 0 | AM158: 0 | AN158: 0 | AO158: 0 | AP158: =IFERROR(IF(Simulador!$U$30=1,0,IF($AK158<=0.01,0,$AK158*Simulador!$AA$43)),0)+IFERROR(IF(Simulador!$U$30=1,0,IF($AK158<=0.01,0,IF(Simulador!$D$22>0,Simulador!$D$22,Simulador!$O$24)*Simulador!$AA$44)),0) -> 0 | AQ158: 0 | AR158: 0 | AS158: 0 | AU158: 0 | AV158: 120
A159: 145 | B159: 0 | D159: =IF(B159+F159-D158<=0,B159+F159,IF(AND(OR(Simulador!$U$39=2,Simulador!$U$39=7),J158=0),IFERROR((((P159/360*AU159)/(1-(1+(P159/360*AU159))^-AS159))*B159)*(1+AA159),0),IF($AF$3=2,B159*AJ159,IFERROR((((P159/360*AU159)/(1-(1+(P159/360*AU159))^-AS159))*B159)*(1+AA159),0)))) -> 0 | F159: 0 | H159: 0 | L159: =IF(Simulador!$T$41=1,0,J159*Simulador!$W$39*1.16) -> 0 | P159: 0 | R159: 0 | T159: =IFERROR(IF(Simulador!$U$30=1,0,IF($B159<=0,0,$B159*Simulador!$AA$43)),0) -> 0 | V159: =IFERROR(IF(Simulador!$U$30=1,0,IF($B159<=0,0,IF(Simulador!$D$22>0,Simulador!$D$22,Simulador!$O$24)*Simulador!$AA$44)),0) -> 0 | Y159: 0 | AD159: 12 | AE159: 1 | AF159: 0 | AG159: 0 | AH159: 0 | AI159: 0 | AJ159: 0 | AK159: 0 | AL159: 0 | AM159: 0 | AN159: 0 | AO159: 0 | AP159: =IFERROR(IF(Simulador!$U$30=1,0,IF($AK159<=0.01,0,$AK159*Simulador!$AA$43)),0)+IFERROR(IF(Simulador!$U$30=1,0,IF($AK159<=0.01,0,IF(Simulador!$D$22>0,Simulador!$D$22,Simulador!$O$24)*Simulador!$AA$44)),0) -> 0 | AQ159: 0 | AR159: 0 | AS159: 0 | AU159: 0 | AV159: 120
A160: 146 | B160: 0 | D160: =IF(B160+F160-D159<=0,B160+F160,IF(AND(OR(Simulador!$U$39=2,Simulador!$U$39=7),J159=0),IFERROR((((P160/360*AU160)/(1-(1+(P160/360*AU160))^-AS160))*B160)*(1+AA160),0),IF($AF$3=2,B160*AJ160,IFERROR((((P160/360*AU160)/(1-(1+(P160/360*AU160))^-AS160))*B160)*(1+AA160),0)))) -> 0 | F160: 0 | H160: 0 | L160: =IF(Simulador!$T$41=1,0,J160*Simulador!$W$39*1.16) -> 0 | N160: 0 | P160: 0 | R160: 0 | T160: =IFERROR(IF(Simulador!$U$30=1,0,IF($B160<=0,0,$B160*Simulador!$AA$43)),0) -> 0 | V160: =IFERROR(IF(Simulador!$U$30=1,0,IF($B160<=0,0,IF(Simulador!$D$22>0,Simulador!$D$22,Simulador!$O$24)*Simulador!$AA$44)),0) -> 0 | Y160: 0 | AD160: 12 | AE160: 2 | AF160: 0 | AG160: 0 | AH160: 0 | AI160: 0 | AJ160: 0 | AK160: 0 | AL160: 0 | AM160: 0 | AN160: 0 | AO160: 0 | AP160: =IFERROR(IF(Simulador!$U$30=1,0,IF($AK160<=0.01,0,$AK160*Simulador!$AA$43)),0)+IFERROR(IF(Simulador!$U$30=1,0,IF($AK160<=0.01,0,IF(Simulador!$D$22>0,Simulador!$D$22,Simulador!$O$24)*Simulador!$AA$44)),0) -> 0 | AQ160: 0 | AR160: 0 | AS160: 0 | AU160: 0 | AV160: 120
A161: 147 | B161: 0 | D161: =IF(B161+F161-D160<=0,B161+F161,IF(AND(OR(Simulador!$U$39=2,Simulador!$U$39=7),J160=0),IFERROR((((P161/360*AU161)/(1-(1+(P161/360*AU161))^-AS161))*B161)*(1+AA161),0),IF($AF$3=2,B161*AJ161,IFERROR((((P161/360*AU161)/(1-(1+(P161/360*AU161))^-AS161))*B161)*(1+AA161),0)))) -> 0 | F161: 0 | H161: 0 | L161: =IF(Simulador!$T$41=1,0,J161*Simulador!$W$39*1.16) -> 0 | P161: 0 | R161: 0 | T161: =IFERROR(IF(Simulador!$U$30=1,0,IF($B161<=0,0,$B161*Simulador!$AA$43)),0) -> 0 | V161: =IFERROR(IF(Simulador!$U$30=1,0,IF($B161<=0,0,IF(Simulador!$D$22>0,Simulador!$D$22,Simulador!$O$24)*Simulador!$AA$44)),0) -> 0 | Y161: 0 | AD161: 12 | AE161: 3 | AF161: 0 | AG161: 0 | AH161: 0 | AI161: 0 | AJ161: 0 | AK161: 0 | AL161: 0 | AM161: 0 | AN161: 0 | AO161: 0 | AP161: =IFERROR(IF(Simulador!$U$30=1,0,IF($AK161<=0.01,0,$AK161*Simulador!$AA$43)),0)+IFERROR(IF(Simulador!$U$30=1,0,IF($AK161<=0.01,0,IF(Simulador!$D$22>0,Simulador!$D$22,Simulador!$O$24)*Simulador!$AA$44)),0) -> 0 | AQ161: 0 | AR161: 0 | AS161: 0 | AU161: 0 | AV161: 120
A162: 148 | B162: 0 | D162: =IF(B162+F162-D161<=0,B162+F162,IF(AND(OR(Simulador!$U$39=2,Simulador!$U$39=7),J161=0),IFERROR((((P162/360*AU162)/(1-(1+(P162/360*AU162))^-AS162))*B162)*(1+AA162),0),IF($AF$3=2,B162*AJ162,IFERROR((((P162/360*AU162)/(1-(1+(P162/360*AU162))^-AS162))*B162)*(1+AA162),0)))) -> 0 | F162: 0 | H162: 0 | L162: =IF(Simulador!$T$41=1,0,J162*Simulador!$W$39*1.16) -> 0 | N162: 0 | P162: 0 | R162: 0 | T162: =IFERROR(IF(Simulador!$U$30=1,0,IF($B162<=0,0,$B162*Simulador!$AA$43)),0) -> 0 | V162: =IFERROR(IF(Simulador!$U$30=1,0,IF($B162<=0,0,IF(Simulador!$D$22>0,Simulador!$D$22,Simulador!$O$24)*Simulador!$AA$44)),0) -> 0 | Y162: 0 | AD162: 12 | AE162: 4 | AF162: 0 | AG162: 0 | AH162: 0 | AI162: 0 | AJ162: 0 | AK162: 0 | AL162: 0 | AM162: 0 | AN162: 0 | AO162: 0 | AP162: =IFERROR(IF(Simulador!$U$30=1,0,IF($AK162<=0.01,0,$AK162*Simulador!$AA$43)),0)+IFERROR(IF(Simulador!$U$30=1,0,IF($AK162<=0.01,0,IF(Simulador!$D$22>0,Simulador!$D$22,Simulador!$O$24)*Simulador!$AA$44)),0) -> 0 | AQ162: 0 | AR162: 0 | AS162: 0 | AU162: 0 | AV162: 120
A163: 149 | B163: 0 | D163: =IF(B163+F163-D162<=0,B163+F163,IF(AND(OR(Simulador!$U$39=2,Simulador!$U$39=7),J162=0),IFERROR((((P163/360*AU163)/(1-(1+(P163/360*AU163))^-AS163))*B163)*(1+AA163),0),IF($AF$3=2,B163*AJ163,IFERROR((((P163/360*AU163)/(1-(1+(P163/360*AU163))^-AS163))*B163)*(1+AA163),0)))) -> 0 | F163: 0 | H163: 0 | L163: =IF(Simulador!$T$41=1,0,J163*Simulador!$W$39*1.16) -> 0 | P163: 0 | R163: 0 | T163: =IFERROR(IF(Simulador!$U$30=1,0,IF($B163<=0,0,$B163*Simulador!$AA$43)),0) -> 0 | V163: =IFERROR(IF(Simulador!$U$30=1,0,IF($B163<=0,0,IF(Simulador!$D$22>0,Simulador!$D$22,Simulador!$O$24)*Simulador!$AA$44)),0) -> 0 | Y163: 0 | AD163: 12 | AE163: 5 | AF163: 0 | AG163: 0 | AH163: 0 | AI163: 0 | AJ163: 0 | AK163: 0 | AL163: 0 | AM163: 0 | AN163: 0 | AO163: 0 | AP163: =IFERROR(IF(Simulador!$U$30=1,0,IF($AK163<=0.01,0,$AK163*Simulador!$AA$43)),0)+IFERROR(IF(Simulador!$U$30=1,0,IF($AK163<=0.01,0,IF(Simulador!$D$22>0,Simulador!$D$22,Simulador!$O$24)*Simulador!$AA$44)),0) -> 0 | AQ163: 0 | AR163: 0 | AS163: 0 | AU163: 0 | AV163: 120
A164: 150 | B164: 0 | D164: =IF(B164+F164-D163<=0,B164+F164,IF(AND(OR(Simulador!$U$39=2,Simulador!$U$39=7),J163=0),IFERROR((((P164/360*AU164)/(1-(1+(P164/360*AU164))^-AS164))*B164)*(1+AA164),0),IF($AF$3=2,B164*AJ164,IFERROR((((P164/360*AU164)/(1-(1+(P164/360*AU164))^-AS164))*B164)*(1+AA164),0)))) -> 0 | F164: 0 | H164: 0 | L164: =IF(Simulador!$T$41=1,0,J164*Simulador!$W$39*1.16) -> 0 | N164: 0 | P164: 0 | R164: 0 | T164: =IFERROR(IF(Simulador!$U$30=1,0,IF($B164<=0,0,$B164*Simulador!$AA$43)),0) -> 0 | V164: =IFERROR(IF(Simulador!$U$30=1,0,IF($B164<=0,0,IF(Simulador!$D$22>0,Simulador!$D$22,Simulador!$O$24)*Simulador!$AA$44)),0) -> 0 | Y164: 0 | AD164: 12 | AE164: 6 | AF164: 0 | AG164: 0 | AH164: 0 | AI164: 0 | AJ164: 0 | AK164: 0 | AL164: 0 | AM164: 0 | AN164: 0 | AO164: 0 | AP164: =IFERROR(IF(Simulador!$U$30=1,0,IF($AK164<=0.01,0,$AK164*Simulador!$AA$43)),0)+IFERROR(IF(Simulador!$U$30=1,0,IF($AK164<=0.01,0,IF(Simulador!$D$22>0,Simulador!$D$22,Simulador!$O$24)*Simulador!$AA$44)),0) -> 0 | AQ164: 0 | AR164: 0 | AS164: 0 | AU164: 0 | AV164: 120
A165: 151 | B165: 0 | D165: =IF(B165+F165-D164<=0,B165+F165,IF(AND(OR(Simulador!$U$39=2,Simulador!$U$39=7),J164=0),IFERROR((((P165/360*AU165)/(1-(1+(P165/360*AU165))^-AS165))*B165)*(1+AA165),0),IF($AF$3=2,B165*AJ165,IFERROR((((P165/360*AU165)/(1-(1+(P165/360*AU165))^-AS165))*B165)*(1+AA165),0)))) -> 0 | F165: 0 | H165: 0 | L165: =IF(Simulador!$T$41=1,0,J165*Simulador!$W$39*1.16) -> 0 | P165: 0 | R165: 0 | T165: =IFERROR(IF(Simulador!$U$30=1,0,IF($B165<=0,0,$B165*Simulador!$AA$43)),0) -> 0 | V165: =IFERROR(IF(Simulador!$U$30=1,0,IF($B165<=0,0,IF(Simulador!$D$22>0,Simulador!$D$22,Simulador!$O$24)*Simulador!$AA$44)),0) -> 0 | Y165: 0 | AD165: 12 | AE165: 7 | AF165: 0 | AG165: 0 | AH165: 0 | AI165: 0 | AJ165: 0 | AK165: 0 | AL165: 0 | AM165: 0 | AN165: 0 | AO165: 0 | AP165: =IFERROR(IF(Simulador!$U$30=1,0,IF($AK165<=0.01,0,$AK165*Simulador!$AA$43)),0)+IFERROR(IF(Simulador!$U$30=1,0,IF($AK165<=0.01,0,IF(Simulador!$D$22>0,Simulador!$D$22,Simulador!$O$24)*Simulador!$AA$44)),0) -> 0 | AQ165: 0 | AR165: 0 | AS165: 0 | AU165: 0 | AV165: 120
A166: 152 | B166: 0 | D166: =IF(B166+F166-D165<=0,B166+F166,IF(AND(OR(Simulador!$U$39=2,Simulador!$U$39=7),J165=0),IFERROR((((P166/360*AU166)/(1-(1+(P166/360*AU166))^-AS166))*B166)*(1+AA166),0),IF($AF$3=2,B166*AJ166,IFERROR((((P166/360*AU166)/(1-(1+(P166/360*AU166))^-AS166))*B166)*(1+AA166),0)))) -> 0 | F166: 0 | H166: 0 | L166: =IF(Simulador!$T$41=1,0,J166*Simulador!$W$39*1.16) -> 0 | N166: 0 | P166: 0 | R166: 0 | T166: =IFERROR(IF(Simulador!$U$30=1,0,IF($B166<=0,0,$B166*Simulador!$AA$43)),0) -> 0 | V166: =IFERROR(IF(Simulador!$U$30=1,0,IF($B166<=0,0,IF(Simulador!$D$22>0,Simulador!$D$22,Simulador!$O$24)*Simulador!$AA$44)),0) -> 0 | Y166: 0 | AD166: 12 | AE166: 8 | AF166: 0 | AG166: 0 | AH166: 0 | AI166: 0 | AJ166: 0 | AK166: 0 | AL166: 0 | AM166: 0 | AN166: 0 | AO166: 0 | AP166: =IFERROR(IF(Simulador!$U$30=1,0,IF($AK166<=0.01,0,$AK166*Simulador!$AA$43)),0)+IFERROR(IF(Simulador!$U$30=1,0,IF($AK166<=0.01,0,IF(Simulador!$D$22>0,Simulador!$D$22,Simulador!$O$24)*Simulador!$AA$44)),0) -> 0 | AQ166: 0 | AR166: 0 | AS166: 0 | AU166: 0 | AV166: 120
A167: 153 | B167: 0 | D167: =IF(B167+F167-D166<=0,B167+F167,IF(AND(OR(Simulador!$U$39=2,Simulador!$U$39=7),J166=0),IFERROR((((P167/360*AU167)/(1-(1+(P167/360*AU167))^-AS167))*B167)*(1+AA167),0),IF($AF$3=2,B167*AJ167,IFERROR((((P167/360*AU167)/(1-(1+(P167/360*AU167))^-AS167))*B167)*(1+AA167),0)))) -> 0 | F167: 0 | H167: 0 | L167: =IF(Simulador!$T$41=1,0,J167*Simulador!$W$39*1.16) -> 0 | P167: 0 | R167: 0 | T167: =IFERROR(IF(Simulador!$U$30=1,0,IF($B167<=0,0,$B167*Simulador!$AA$43)),0) -> 0 | V167: =IFERROR(IF(Simulador!$U$30=1,0,IF($B167<=0,0,IF(Simulador!$D$22>0,Simulador!$D$22,Simulador!$O$24)*Simulador!$AA$44)),0) -> 0 | Y167: 0 | AD167: 12 | AE167: 9 | AF167: 0 | AG167: 0 | AH167: 0 | AI167: 0 | AJ167: 0 | AK167: 0 | AL167: 0 | AM167: 0 | AN167: 0 | AO167: 0 | AP167: =IFERROR(IF(Simulador!$U$30=1,0,IF($AK167<=0.01,0,$AK167*Simulador!$AA$43)),0)+IFERROR(IF(Simulador!$U$30=1,0,IF($AK167<=0.01,0,IF(Simulador!$D$22>0,Simulador!$D$22,Simulador!$O$24)*Simulador!$AA$44)),0) -> 0 | AQ167: 0 | AR167: 0 | AS167: 0 | AU167: 0 | AV167: 120
A168: 154 | B168: 0 | D168: =IF(B168+F168-D167<=0,B168+F168,IF(AND(OR(Simulador!$U$39=2,Simulador!$U$39=7),J167=0),IFERROR((((P168/360*AU168)/(1-(1+(P168/360*AU168))^-AS168))*B168)*(1+AA168),0),IF($AF$3=2,B168*AJ168,IFERROR((((P168/360*AU168)/(1-(1+(P168/360*AU168))^-AS168))*B168)*(1+AA168),0)))) -> 0 | F168: 0 | H168: 0 | L168: =IF(Simulador!$T$41=1,0,J168*Simulador!$W$39*1.16) -> 0 | N168: 0 | P168: 0 | R168: 0 | T168: =IFERROR(IF(Simulador!$U$30=1,0,IF($B168<=0,0,$B168*Simulador!$AA$43)),0) -> 0 | V168: =IFERROR(IF(Simulador!$U$30=1,0,IF($B168<=0,0,IF(Simulador!$D$22>0,Simulador!$D$22,Simulador!$O$24)*Simulador!$AA$44)),0) -> 0 | Y168: 0 | AD168: 12 | AE168: 10 | AF168: 0 | AG168: 0 | AH168: 0 | AI168: 0 | AJ168: 0 | AK168: 0 | AL168: 0 | AM168: 0 | AN168: 0 | AO168: 0 | AP168: =IFERROR(IF(Simulador!$U$30=1,0,IF($AK168<=0.01,0,$AK168*Simulador!$AA$43)),0)+IFERROR(IF(Simulador!$U$30=1,0,IF($AK168<=0.01,0,IF(Simulador!$D$22>0,Simulador!$D$22,Simulador!$O$24)*Simulador!$AA$44)),0) -> 0 | AQ168: 0 | AR168: 0 | AS168: 0 | AU168: 0 | AV168: 120
A169: 155 | B169: 0 | D169: =IF(B169+F169-D168<=0,B169+F169,IF(AND(OR(Simulador!$U$39=2,Simulador!$U$39=7),J168=0),IFERROR((((P169/360*AU169)/(1-(1+(P169/360*AU169))^-AS169))*B169)*(1+AA169),0),IF($AF$3=2,B169*AJ169,IFERROR((((P169/360*AU169)/(1-(1+(P169/360*AU169))^-AS169))*B169)*(1+AA169),0)))) -> 0 | F169: 0 | H169: 0 | L169: =IF(Simulador!$T$41=1,0,J169*Simulador!$W$39*1.16) -> 0 | P169: 0 | R169: 0 | T169: =IFERROR(IF(Simulador!$U$30=1,0,IF($B169<=0,0,$B169*Simulador!$AA$43)),0) -> 0 | V169: =IFERROR(IF(Simulador!$U$30=1,0,IF($B169<=0,0,IF(Simulador!$D$22>0,Simulador!$D$22,Simulador!$O$24)*Simulador!$AA$44)),0) -> 0 | Y169: 0 | AD169: 12 | AE169: 11 | AF169: 0 | AG169: 0 | AH169: 0 | AI169: 0 | AJ169: 0 | AK169: 0 | AL169: 0 | AM169: 0 | AN169: 0 | AO169: 0 | AP169: =IFERROR(IF(Simulador!$U$30=1,0,IF($AK169<=0.01,0,$AK169*Simulador!$AA$43)),0)+IFERROR(IF(Simulador!$U$30=1,0,IF($AK169<=0.01,0,IF(Simulador!$D$22>0,Simulador!$D$22,Simulador!$O$24)*Simulador!$AA$44)),0) -> 0 | AQ169: 0 | AR169: 0 | AS169: 0 | AU169: 0 | AV169: 120
A170: 156 | B170: 0 | D170: =IF(B170+F170-D169<=0,B170+F170,IF(AND(OR(Simulador!$U$39=2,Simulador!$U$39=7),J169=0),IFERROR((((P170/360*AU170)/(1-(1+(P170/360*AU170))^-AS170))*B170)*(1+AA170),0),IF($AF$3=2,B170*AJ170,IFERROR((((P170/360*AU170)/(1-(1+(P170/360*AU170))^-AS170))*B170)*(1+AA170),0)))) -> 0 | F170: 0 | H170: 0 | L170: =IF(Simulador!$T$41=1,0,J170*Simulador!$W$39*1.16) -> 0 | N170: 0 | P170: 0 | R170: 0 | T170: =IFERROR(IF(Simulador!$U$30=1,0,IF($B170<=0,0,$B170*Simulador!$AA$43)),0) -> 0 | V170: =IFERROR(IF(Simulador!$U$30=1,0,IF($B170<=0,0,IF(Simulador!$D$22>0,Simulador!$D$22,Simulador!$O$24)*Simulador!$AA$44)),0) -> 0 | Y170: 0 | AD170: 13 | AE170: 0 | AF170: 0 | AG170: 0 | AH170: 0 | AI170: 0 | AJ170: 0 | AK170: 0 | AL170: 0 | AM170: 0 | AN170: 0 | AO170: 0 | AP170: =IFERROR(IF(Simulador!$U$30=1,0,IF($AK170<=0.01,0,$AK170*Simulador!$AA$43)),0)+IFERROR(IF(Simulador!$U$30=1,0,IF($AK170<=0.01,0,IF(Simulador!$D$22>0,Simulador!$D$22,Simulador!$O$24)*Simulador!$AA$44)),0) -> 0 | AQ170: 0 | AR170: 0 | AS170: 0 | AU170: 0 | AV170: 120
A171: 157 | B171: 0 | D171: =IF(B171+F171-D170<=0,B171+F171,IF(AND(OR(Simulador!$U$39=2,Simulador!$U$39=7),J170=0),IFERROR((((P171/360*AU171)/(1-(1+(P171/360*AU171))^-AS171))*B171)*(1+AA171),0),IF($AF$3=2,B171*AJ171,IFERROR((((P171/360*AU171)/(1-(1+(P171/360*AU171))^-AS171))*B171)*(1+AA171),0)))) -> 0 | F171: 0 | H171: 0 | L171: =IF(Simulador!$T$41=1,0,J171*Simulador!$W$39*1.16) -> 0 | P171: 0 | R171: 0 | T171: =IFERROR(IF(Simulador!$U$30=1,0,IF($B171<=0,0,$B171*Simulador!$AA$43)),0) -> 0 | V171: =IFERROR(IF(Simulador!$U$30=1,0,IF($B171<=0,0,IF(Simulador!$D$22>0,Simulador!$D$22,Simulador!$O$24)*Simulador!$AA$44)),0) -> 0 | Y171: 0 | AD171: 13 | AE171: 1 | AF171: 0 | AG171: 0 | AH171: 0 | AI171: 0 | AJ171: 0 | AK171: 0 | AL171: 0 | AM171: 0 | AN171: 0 | AO171: 0 | AP171: =IFERROR(IF(Simulador!$U$30=1,0,IF($AK171<=0.01,0,$AK171*Simulador!$AA$43)),0)+IFERROR(IF(Simulador!$U$30=1,0,IF($AK171<=0.01,0,IF(Simulador!$D$22>0,Simulador!$D$22,Simulador!$O$24)*Simulador!$AA$44)),0) -> 0 | AQ171: 0 | AR171: 0 | AS171: 0 | AU171: 0 | AV171: 120
A172: 158 | B172: 0 | D172: =IF(B172+F172-D171<=0,B172+F172,IF(AND(OR(Simulador!$U$39=2,Simulador!$U$39=7),J171=0),IFERROR((((P172/360*AU172)/(1-(1+(P172/360*AU172))^-AS172))*B172)*(1+AA172),0),IF($AF$3=2,B172*AJ172,IFERROR((((P172/360*AU172)/(1-(1+(P172/360*AU172))^-AS172))*B172)*(1+AA172),0)))) -> 0 | F172: 0 | H172: 0 | L172: =IF(Simulador!$T$41=1,0,J172*Simulador!$W$39*1.16) -> 0 | N172: 0 | P172: 0 | R172: 0 | T172: =IFERROR(IF(Simulador!$U$30=1,0,IF($B172<=0,0,$B172*Simulador!$AA$43)),0) -> 0 | V172: =IFERROR(IF(Simulador!$U$30=1,0,IF($B172<=0,0,IF(Simulador!$D$22>0,Simulador!$D$22,Simulador!$O$24)*Simulador!$AA$44)),0) -> 0 | Y172: 0 | AD172: 13 | AE172: 2 | AF172: 0 | AG172: 0 | AH172: 0 | AI172: 0 | AJ172: 0 | AK172: 0 | AL172: 0 | AM172: 0 | AN172: 0 | AO172: 0 | AP172: =IFERROR(IF(Simulador!$U$30=1,0,IF($AK172<=0.01,0,$AK172*Simulador!$AA$43)),0)+IFERROR(IF(Simulador!$U$30=1,0,IF($AK172<=0.01,0,IF(Simulador!$D$22>0,Simulador!$D$22,Simulador!$O$24)*Simulador!$AA$44)),0) -> 0 | AQ172: 0 | AR172: 0 | AS172: 0 | AU172: 0 | AV172: 120
A173: 159 | B173: 0 | D173: =IF(B173+F173-D172<=0,B173+F173,IF(AND(OR(Simulador!$U$39=2,Simulador!$U$39=7),J172=0),IFERROR((((P173/360*AU173)/(1-(1+(P173/360*AU173))^-AS173))*B173)*(1+AA173),0),IF($AF$3=2,B173*AJ173,IFERROR((((P173/360*AU173)/(1-(1+(P173/360*AU173))^-AS173))*B173)*(1+AA173),0)))) -> 0 | F173: 0 | H173: 0 | L173: =IF(Simulador!$T$41=1,0,J173*Simulador!$W$39*1.16) -> 0 | P173: 0 | R173: 0 | T173: =IFERROR(IF(Simulador!$U$30=1,0,IF($B173<=0,0,$B173*Simulador!$AA$43)),0) -> 0 | V173: =IFERROR(IF(Simulador!$U$30=1,0,IF($B173<=0,0,IF(Simulador!$D$22>0,Simulador!$D$22,Simulador!$O$24)*Simulador!$AA$44)),0) -> 0 | Y173: 0 | AD173: 13 | AE173: 3 | AF173: 0 | AG173: 0 | AH173: 0 | AI173: 0 | AJ173: 0 | AK173: 0 | AL173: 0 | AM173: 0 | AN173: 0 | AO173: 0 | AP173: =IFERROR(IF(Simulador!$U$30=1,0,IF($AK173<=0.01,0,$AK173*Simulador!$AA$43)),0)+IFERROR(IF(Simulador!$U$30=1,0,IF($AK173<=0.01,0,IF(Simulador!$D$22>0,Simulador!$D$22,Simulador!$O$24)*Simulador!$AA$44)),0) -> 0 | AQ173: 0 | AR173: 0 | AS173: 0 | AU173: 0 | AV173: 120
A174: 160 | B174: 0 | D174: =IF(B174+F174-D173<=0,B174+F174,IF(AND(OR(Simulador!$U$39=2,Simulador!$U$39=7),J173=0),IFERROR((((P174/360*AU174)/(1-(1+(P174/360*AU174))^-AS174))*B174)*(1+AA174),0),IF($AF$3=2,B174*AJ174,IFERROR((((P174/360*AU174)/(1-(1+(P174/360*AU174))^-AS174))*B174)*(1+AA174),0)))) -> 0 | F174: 0 | H174: 0 | L174: =IF(Simulador!$T$41=1,0,J174*Simulador!$W$39*1.16) -> 0 | N174: 0 | P174: 0 | R174: 0 | T174: =IFERROR(IF(Simulador!$U$30=1,0,IF($B174<=0,0,$B174*Simulador!$AA$43)),0) -> 0 | V174: =IFERROR(IF(Simulador!$U$30=1,0,IF($B174<=0,0,IF(Simulador!$D$22>0,Simulador!$D$22,Simulador!$O$24)*Simulador!$AA$44)),0) -> 0 | Y174: 0 | AD174: 13 | AE174: 4 | AF174: 0 | AG174: 0 | AH174: 0 | AI174: 0 | AJ174: 0 | AK174: 0 | AL174: 0 | AM174: 0 | AN174: 0 | AO174: 0 | AP174: =IFERROR(IF(Simulador!$U$30=1,0,IF($AK174<=0.01,0,$AK174*Simulador!$AA$43)),0)+IFERROR(IF(Simulador!$U$30=1,0,IF($AK174<=0.01,0,IF(Simulador!$D$22>0,Simulador!$D$22,Simulador!$O$24)*Simulador!$AA$44)),0) -> 0 | AQ174: 0 | AR174: 0 | AS174: 0 | AU174: 0 | AV174: 120
A175: 161 | B175: 0 | D175: =IF(B175+F175-D174<=0,B175+F175,IF(AND(OR(Simulador!$U$39=2,Simulador!$U$39=7),J174=0),IFERROR((((P175/360*AU175)/(1-(1+(P175/360*AU175))^-AS175))*B175)*(1+AA175),0),IF($AF$3=2,B175*AJ175,IFERROR((((P175/360*AU175)/(1-(1+(P175/360*AU175))^-AS175))*B175)*(1+AA175),0)))) -> 0 | F175: 0 | H175: 0 | L175: =IF(Simulador!$T$41=1,0,J175*Simulador!$W$39*1.16) -> 0 | P175: 0 | R175: 0 | T175: =IFERROR(IF(Simulador!$U$30=1,0,IF($B175<=0,0,$B175*Simulador!$AA$43)),0) -> 0 | V175: =IFERROR(IF(Simulador!$U$30=1,0,IF($B175<=0,0,IF(Simulador!$D$22>0,Simulador!$D$22,Simulador!$O$24)*Simulador!$AA$44)),0) -> 0 | Y175: 0 | AD175: 13 | AE175: 5 | AF175: 0 | AG175: 0 | AH175: 0 | AI175: 0 | AJ175: 0 | AK175: 0 | AL175: 0 | AM175: 0 | AN175: 0 | AO175: 0 | AP175: =IFERROR(IF(Simulador!$U$30=1,0,IF($AK175<=0.01,0,$AK175*Simulador!$AA$43)),0)+IFERROR(IF(Simulador!$U$30=1,0,IF($AK175<=0.01,0,IF(Simulador!$D$22>0,Simulador!$D$22,Simulador!$O$24)*Simulador!$AA$44)),0) -> 0 | AQ175: 0 | AR175: 0 | AS175: 0 | AU175: 0 | AV175: 120
A176: 162 | B176: 0 | D176: =IF(B176+F176-D175<=0,B176+F176,IF(AND(OR(Simulador!$U$39=2,Simulador!$U$39=7),J175=0),IFERROR((((P176/360*AU176)/(1-(1+(P176/360*AU176))^-AS176))*B176)*(1+AA176),0),IF($AF$3=2,B176*AJ176,IFERROR((((P176/360*AU176)/(1-(1+(P176/360*AU176))^-AS176))*B176)*(1+AA176),0)))) -> 0 | F176: 0 | H176: 0 | L176: =IF(Simulador!$T$41=1,0,J176*Simulador!$W$39*1.16) -> 0 | N176: 0 | P176: 0 | R176: 0 | T176: =IFERROR(IF(Simulador!$U$30=1,0,IF($B176<=0,0,$B176*Simulador!$AA$43)),0) -> 0 | V176: =IFERROR(IF(Simulador!$U$30=1,0,IF($B176<=0,0,IF(Simulador!$D$22>0,Simulador!$D$22,Simulador!$O$24)*Simulador!$AA$44)),0) -> 0 | Y176: 0 | AD176: 13 | AE176: 6 | AF176: 0 | AG176: 0 | AH176: 0 | AI176: 0 | AJ176: 0 | AK176: 0 | AL176: 0 | AM176: 0 | AN176: 0 | AO176: 0 | AP176: =IFERROR(IF(Simulador!$U$30=1,0,IF($AK176<=0.01,0,$AK176*Simulador!$AA$43)),0)+IFERROR(IF(Simulador!$U$30=1,0,IF($AK176<=0.01,0,IF(Simulador!$D$22>0,Simulador!$D$22,Simulador!$O$24)*Simulador!$AA$44)),0) -> 0 | AQ176: 0 | AR176: 0 | AS176: 0 | AU176: 0 | AV176: 120
A177: 163 | B177: 0 | D177: =IF(B177+F177-D176<=0,B177+F177,IF(AND(OR(Simulador!$U$39=2,Simulador!$U$39=7),J176=0),IFERROR((((P177/360*AU177)/(1-(1+(P177/360*AU177))^-AS177))*B177)*(1+AA177),0),IF($AF$3=2,B177*AJ177,IFERROR((((P177/360*AU177)/(1-(1+(P177/360*AU177))^-AS177))*B177)*(1+AA177),0)))) -> 0 | F177: 0 | H177: 0 | L177: =IF(Simulador!$T$41=1,0,J177*Simulador!$W$39*1.16) -> 0 | P177: 0 | R177: 0 | T177: =IFERROR(IF(Simulador!$U$30=1,0,IF($B177<=0,0,$B177*Simulador!$AA$43)),0) -> 0 | V177: =IFERROR(IF(Simulador!$U$30=1,0,IF($B177<=0,0,IF(Simulador!$D$22>0,Simulador!$D$22,Simulador!$O$24)*Simulador!$AA$44)),0) -> 0 | Y177: 0 | AD177: 13 | AE177: 7 | AF177: 0 | AG177: 0 | AH177: 0 | AI177: 0 | AJ177: 0 | AK177: 0 | AL177: 0 | AM177: 0 | AN177: 0 | AO177: 0 | AP177: =IFERROR(IF(Simulador!$U$30=1,0,IF($AK177<=0.01,0,$AK177*Simulador!$AA$43)),0)+IFERROR(IF(Simulador!$U$30=1,0,IF($AK177<=0.01,0,IF(Simulador!$D$22>0,Simulador!$D$22,Simulador!$O$24)*Simulador!$AA$44)),0) -> 0 | AQ177: 0 | AR177: 0 | AS177: 0 | AU177: 0 | AV177: 120
A178: 164 | B178: 0 | D178: =IF(B178+F178-D177<=0,B178+F178,IF(AND(OR(Simulador!$U$39=2,Simulador!$U$39=7),J177=0),IFERROR((((P178/360*AU178)/(1-(1+(P178/360*AU178))^-AS178))*B178)*(1+AA178),0),IF($AF$3=2,B178*AJ178,IFERROR((((P178/360*AU178)/(1-(1+(P178/360*AU178))^-AS178))*B178)*(1+AA178),0)))) -> 0 | F178: 0 | H178: 0 | L178: =IF(Simulador!$T$41=1,0,J178*Simulador!$W$39*1.16) -> 0 | N178: 0 | P178: 0 | R178: 0 | T178: =IFERROR(IF(Simulador!$U$30=1,0,IF($B178<=0,0,$B178*Simulador!$AA$43)),0) -> 0 | V178: =IFERROR(IF(Simulador!$U$30=1,0,IF($B178<=0,0,IF(Simulador!$D$22>0,Simulador!$D$22,Simulador!$O$24)*Simulador!$AA$44)),0) -> 0 | Y178: 0 | AD178: 13 | AE178: 8 | AF178: 0 | AG178: 0 | AH178: 0 | AI178: 0 | AJ178: 0 | AK178: 0 | AL178: 0 | AM178: 0 | AN178: 0 | AO178: 0 | AP178: =IFERROR(IF(Simulador!$U$30=1,0,IF($AK178<=0.01,0,$AK178*Simulador!$AA$43)),0)+IFERROR(IF(Simulador!$U$30=1,0,IF($AK178<=0.01,0,IF(Simulador!$D$22>0,Simulador!$D$22,Simulador!$O$24)*Simulador!$AA$44)),0) -> 0 | AQ178: 0 | AR178: 0 | AS178: 0 | AU178: 0 | AV178: 120
A179: 165 | B179: 0 | D179: =IF(B179+F179-D178<=0,B179+F179,IF(AND(OR(Simulador!$U$39=2,Simulador!$U$39=7),J178=0),IFERROR((((P179/360*AU179)/(1-(1+(P179/360*AU179))^-AS179))*B179)*(1+AA179),0),IF($AF$3=2,B179*AJ179,IFERROR((((P179/360*AU179)/(1-(1+(P179/360*AU179))^-AS179))*B179)*(1+AA179),0)))) -> 0 | F179: 0 | H179: 0 | L179: =IF(Simulador!$T$41=1,0,J179*Simulador!$W$39*1.16) -> 0 | P179: 0 | R179: 0 | T179: =IFERROR(IF(Simulador!$U$30=1,0,IF($B179<=0,0,$B179*Simulador!$AA$43)),0) -> 0 | V179: =IFERROR(IF(Simulador!$U$30=1,0,IF($B179<=0,0,IF(Simulador!$D$22>0,Simulador!$D$22,Simulador!$O$24)*Simulador!$AA$44)),0) -> 0 | Y179: 0 | AD179: 13 | AE179: 9 | AF179: 0 | AG179: 0 | AH179: 0 | AI179: 0 | AJ179: 0 | AK179: 0 | AL179: 0 | AM179: 0 | AN179: 0 | AO179: 0 | AP179: =IFERROR(IF(Simulador!$U$30=1,0,IF($AK179<=0.01,0,$AK179*Simulador!$AA$43)),0)+IFERROR(IF(Simulador!$U$30=1,0,IF($AK179<=0.01,0,IF(Simulador!$D$22>0,Simulador!$D$22,Simulador!$O$24)*Simulador!$AA$44)),0) -> 0 | AQ179: 0 | AR179: 0 | AS179: 0 | AU179: 0 | AV179: 120
A180: 166 | B180: 0 | D180: =IF(B180+F180-D179<=0,B180+F180,IF(AND(OR(Simulador!$U$39=2,Simulador!$U$39=7),J179=0),IFERROR((((P180/360*AU180)/(1-(1+(P180/360*AU180))^-AS180))*B180)*(1+AA180),0),IF($AF$3=2,B180*AJ180,IFERROR((((P180/360*AU180)/(1-(1+(P180/360*AU180))^-AS180))*B180)*(1+AA180),0)))) -> 0 | F180: 0 | H180: 0 | L180: =IF(Simulador!$T$41=1,0,J180*Simulador!$W$39*1.16) -> 0 | N180: 0 | P180: 0 | R180: 0 | T180: =IFERROR(IF(Simulador!$U$30=1,0,IF($B180<=0,0,$B180*Simulador!$AA$43)),0) -> 0 | V180: =IFERROR(IF(Simulador!$U$30=1,0,IF($B180<=0,0,IF(Simulador!$D$22>0,Simulador!$D$22,Simulador!$O$24)*Simulador!$AA$44)),0) -> 0 | Y180: 0 | AD180: 13 | AE180: 10 | AF180: 0 | AG180: 0 | AH180: 0 | AI180: 0 | AJ180: 0 | AK180: 0 | AL180: 0 | AM180: 0 | AN180: 0 | AO180: 0 | AP180: =IFERROR(IF(Simulador!$U$30=1,0,IF($AK180<=0.01,0,$AK180*Simulador!$AA$43)),0)+IFERROR(IF(Simulador!$U$30=1,0,IF($AK180<=0.01,0,IF(Simulador!$D$22>0,Simulador!$D$22,Simulador!$O$24)*Simulador!$AA$44)),0) -> 0 | AQ180: 0 | AR180: 0 | AS180: 0 | AU180: 0 | AV180: 120
A181: 167 | B181: 0 | D181: =IF(B181+F181-D180<=0,B181+F181,IF(AND(OR(Simulador!$U$39=2,Simulador!$U$39=7),J180=0),IFERROR((((P181/360*AU181)/(1-(1+(P181/360*AU181))^-AS181))*B181)*(1+AA181),0),IF($AF$3=2,B181*AJ181,IFERROR((((P181/360*AU181)/(1-(1+(P181/360*AU181))^-AS181))*B181)*(1+AA181),0)))) -> 0 | F181: 0 | H181: 0 | L181: =IF(Simulador!$T$41=1,0,J181*Simulador!$W$39*1.16) -> 0 | P181: 0 | R181: 0 | T181: =IFERROR(IF(Simulador!$U$30=1,0,IF($B181<=0,0,$B181*Simulador!$AA$43)),0) -> 0 | V181: =IFERROR(IF(Simulador!$U$30=1,0,IF($B181<=0,0,IF(Simulador!$D$22>0,Simulador!$D$22,Simulador!$O$24)*Simulador!$AA$44)),0) -> 0 | Y181: 0 | AD181: 13 | AE181: 11 | AF181: 0 | AG181: 0 | AH181: 0 | AI181: 0 | AJ181: 0 | AK181: 0 | AL181: 0 | AM181: 0 | AN181: 0 | AO181: 0 | AP181: =IFERROR(IF(Simulador!$U$30=1,0,IF($AK181<=0.01,0,$AK181*Simulador!$AA$43)),0)+IFERROR(IF(Simulador!$U$30=1,0,IF($AK181<=0.01,0,IF(Simulador!$D$22>0,Simulador!$D$22,Simulador!$O$24)*Simulador!$AA$44)),0) -> 0 | AQ181: 0 | AR181: 0 | AS181: 0 | AU181: 0 | AV181: 120
A182: 168 | B182: 0 | D182: =IF(B182+F182-D181<=0,B182+F182,IF(AND(OR(Simulador!$U$39=2,Simulador!$U$39=7),J181=0),IFERROR((((P182/360*AU182)/(1-(1+(P182/360*AU182))^-AS182))*B182)*(1+AA182),0),IF($AF$3=2,B182*AJ182,IFERROR((((P182/360*AU182)/(1-(1+(P182/360*AU182))^-AS182))*B182)*(1+AA182),0)))) -> 0 | F182: 0 | H182: 0 | L182: =IF(Simulador!$T$41=1,0,J182*Simulador!$W$39*1.16) -> 0 | N182: 0 | P182: 0 | R182: 0 | T182: =IFERROR(IF(Simulador!$U$30=1,0,IF($B182<=0,0,$B182*Simulador!$AA$43)),0) -> 0 | V182: =IFERROR(IF(Simulador!$U$30=1,0,IF($B182<=0,0,IF(Simulador!$D$22>0,Simulador!$D$22,Simulador!$O$24)*Simulador!$AA$44)),0) -> 0 | Y182: 0 | AD182: 14 | AE182: 0 | AF182: 0 | AG182: 0 | AH182: 0 | AI182: 0 | AJ182: 0 | AK182: 0 | AL182: 0 | AM182: 0 | AN182: 0 | AO182: 0 | AP182: =IFERROR(IF(Simulador!$U$30=1,0,IF($AK182<=0.01,0,$AK182*Simulador!$AA$43)),0)+IFERROR(IF(Simulador!$U$30=1,0,IF($AK182<=0.01,0,IF(Simulador!$D$22>0,Simulador!$D$22,Simulador!$O$24)*Simulador!$AA$44)),0) -> 0 | AQ182: 0 | AR182: 0 | AS182: 0 | AU182: 0 | AV182: 120
A183: 169 | B183: 0 | D183: =IF(B183+F183-D182<=0,B183+F183,IF(AND(OR(Simulador!$U$39=2,Simulador!$U$39=7),J182=0),IFERROR((((P183/360*AU183)/(1-(1+(P183/360*AU183))^-AS183))*B183)*(1+AA183),0),IF($AF$3=2,B183*AJ183,IFERROR((((P183/360*AU183)/(1-(1+(P183/360*AU183))^-AS183))*B183)*(1+AA183),0)))) -> 0 | F183: 0 | H183: 0 | L183: =IF(Simulador!$T$41=1,0,J183*Simulador!$W$39*1.16) -> 0 | P183: 0 | R183: 0 | T183: =IFERROR(IF(Simulador!$U$30=1,0,IF($B183<=0,0,$B183*Simulador!$AA$43)),0) -> 0 | V183: =IFERROR(IF(Simulador!$U$30=1,0,IF($B183<=0,0,IF(Simulador!$D$22>0,Simulador!$D$22,Simulador!$O$24)*Simulador!$AA$44)),0) -> 0 | Y183: 0 | AD183: 14 | AE183: 1 | AF183: 0 | AG183: 0 | AH183: 0 | AI183: 0 | AJ183: 0 | AK183: 0 | AL183: 0 | AM183: 0 | AN183: 0 | AO183: 0 | AP183: =IFERROR(IF(Simulador!$U$30=1,0,IF($AK183<=0.01,0,$AK183*Simulador!$AA$43)),0)+IFERROR(IF(Simulador!$U$30=1,0,IF($AK183<=0.01,0,IF(Simulador!$D$22>0,Simulador!$D$22,Simulador!$O$24)*Simulador!$AA$44)),0) -> 0 | AQ183: 0 | AR183: 0 | AS183: 0 | AU183: 0 | AV183: 120
A184: 170 | B184: 0 | D184: =IF(B184+F184-D183<=0,B184+F184,IF(AND(OR(Simulador!$U$39=2,Simulador!$U$39=7),J183=0),IFERROR((((P184/360*AU184)/(1-(1+(P184/360*AU184))^-AS184))*B184)*(1+AA184),0),IF($AF$3=2,B184*AJ184,IFERROR((((P184/360*AU184)/(1-(1+(P184/360*AU184))^-AS184))*B184)*(1+AA184),0)))) -> 0 | F184: 0 | H184: 0 | L184: =IF(Simulador!$T$41=1,0,J184*Simulador!$W$39*1.16) -> 0 | N184: 0 | P184: 0 | R184: 0 | T184: =IFERROR(IF(Simulador!$U$30=1,0,IF($B184<=0,0,$B184*Simulador!$AA$43)),0) -> 0 | V184: =IFERROR(IF(Simulador!$U$30=1,0,IF($B184<=0,0,IF(Simulador!$D$22>0,Simulador!$D$22,Simulador!$O$24)*Simulador!$AA$44)),0) -> 0 | Y184: 0 | AD184: 14 | AE184: 2 | AF184: 0 | AG184: 0 | AH184: 0 | AI184: 0 | AJ184: 0 | AK184: 0 | AL184: 0 | AM184: 0 | AN184: 0 | AO184: 0 | AP184: =IFERROR(IF(Simulador!$U$30=1,0,IF($AK184<=0.01,0,$AK184*Simulador!$AA$43)),0)+IFERROR(IF(Simulador!$U$30=1,0,IF($AK184<=0.01,0,IF(Simulador!$D$22>0,Simulador!$D$22,Simulador!$O$24)*Simulador!$AA$44)),0) -> 0 | AQ184: 0 | AR184: 0 | AS184: 0 | AU184: 0 | AV184: 120
A185: 171 | B185: 0 | D185: =IF(B185+F185-D184<=0,B185+F185,IF(AND(OR(Simulador!$U$39=2,Simulador!$U$39=7),J184=0),IFERROR((((P185/360*AU185)/(1-(1+(P185/360*AU185))^-AS185))*B185)*(1+AA185),0),IF($AF$3=2,B185*AJ185,IFERROR((((P185/360*AU185)/(1-(1+(P185/360*AU185))^-AS185))*B185)*(1+AA185),0)))) -> 0 | F185: 0 | H185: 0 | L185: =IF(Simulador!$T$41=1,0,J185*Simulador!$W$39*1.16) -> 0 | P185: 0 | R185: 0 | T185: =IFERROR(IF(Simulador!$U$30=1,0,IF($B185<=0,0,$B185*Simulador!$AA$43)),0) -> 0 | V185: =IFERROR(IF(Simulador!$U$30=1,0,IF($B185<=0,0,IF(Simulador!$D$22>0,Simulador!$D$22,Simulador!$O$24)*Simulador!$AA$44)),0) -> 0 | Y185: 0 | AD185: 14 | AE185: 3 | AF185: 0 | AG185: 0 | AH185: 0 | AI185: 0 | AJ185: 0 | AK185: 0 | AL185: 0 | AM185: 0 | AN185: 0 | AO185: 0 | AP185: =IFERROR(IF(Simulador!$U$30=1,0,IF($AK185<=0.01,0,$AK185*Simulador!$AA$43)),0)+IFERROR(IF(Simulador!$U$30=1,0,IF($AK185<=0.01,0,IF(Simulador!$D$22>0,Simulador!$D$22,Simulador!$O$24)*Simulador!$AA$44)),0) -> 0 | AQ185: 0 | AR185: 0 | AS185: 0 | AU185: 0 | AV185: 120
A186: 172 | B186: 0 | D186: =IF(B186+F186-D185<=0,B186+F186,IF(AND(OR(Simulador!$U$39=2,Simulador!$U$39=7),J185=0),IFERROR((((P186/360*AU186)/(1-(1+(P186/360*AU186))^-AS186))*B186)*(1+AA186),0),IF($AF$3=2,B186*AJ186,IFERROR((((P186/360*AU186)/(1-(1+(P186/360*AU186))^-AS186))*B186)*(1+AA186),0)))) -> 0 | F186: 0 | H186: 0 | L186: =IF(Simulador!$T$41=1,0,J186*Simulador!$W$39*1.16) -> 0 | N186: 0 | P186: 0 | R186: 0 | T186: =IFERROR(IF(Simulador!$U$30=1,0,IF($B186<=0,0,$B186*Simulador!$AA$43)),0) -> 0 | V186: =IFERROR(IF(Simulador!$U$30=1,0,IF($B186<=0,0,IF(Simulador!$D$22>0,Simulador!$D$22,Simulador!$O$24)*Simulador!$AA$44)),0) -> 0 | Y186: 0 | AD186: 14 | AE186: 4 | AF186: 0 | AG186: 0 | AH186: 0 | AI186: 0 | AJ186: 0 | AK186: 0 | AL186: 0 | AM186: 0 | AN186: 0 | AO186: 0 | AP186: =IFERROR(IF(Simulador!$U$30=1,0,IF($AK186<=0.01,0,$AK186*Simulador!$AA$43)),0)+IFERROR(IF(Simulador!$U$30=1,0,IF($AK186<=0.01,0,IF(Simulador!$D$22>0,Simulador!$D$22,Simulador!$O$24)*Simulador!$AA$44)),0) -> 0 | AQ186: 0 | AR186: 0 | AS186: 0 | AU186: 0 | AV186: 120
A187: 173 | B187: 0 | D187: =IF(B187+F187-D186<=0,B187+F187,IF(AND(OR(Simulador!$U$39=2,Simulador!$U$39=7),J186=0),IFERROR((((P187/360*AU187)/(1-(1+(P187/360*AU187))^-AS187))*B187)*(1+AA187),0),IF($AF$3=2,B187*AJ187,IFERROR((((P187/360*AU187)/(1-(1+(P187/360*AU187))^-AS187))*B187)*(1+AA187),0)))) -> 0 | F187: 0 | H187: 0 | L187: =IF(Simulador!$T$41=1,0,J187*Simulador!$W$39*1.16) -> 0 | P187: 0 | R187: 0 | T187: =IFERROR(IF(Simulador!$U$30=1,0,IF($B187<=0,0,$B187*Simulador!$AA$43)),0) -> 0 | V187: =IFERROR(IF(Simulador!$U$30=1,0,IF($B187<=0,0,IF(Simulador!$D$22>0,Simulador!$D$22,Simulador!$O$24)*Simulador!$AA$44)),0) -> 0 | Y187: 0 | AD187: 14 | AE187: 5 | AF187: 0 | AG187: 0 | AH187: 0 | AI187: 0 | AJ187: 0 | AK187: 0 | AL187: 0 | AM187: 0 | AN187: 0 | AO187: 0 | AP187: =IFERROR(IF(Simulador!$U$30=1,0,IF($AK187<=0.01,0,$AK187*Simulador!$AA$43)),0)+IFERROR(IF(Simulador!$U$30=1,0,IF($AK187<=0.01,0,IF(Simulador!$D$22>0,Simulador!$D$22,Simulador!$O$24)*Simulador!$AA$44)),0) -> 0 | AQ187: 0 | AR187: 0 | AS187: 0 | AU187: 0 | AV187: 120
A188: 174 | B188: 0 | D188: =IF(B188+F188-D187<=0,B188+F188,IF(AND(OR(Simulador!$U$39=2,Simulador!$U$39=7),J187=0),IFERROR((((P188/360*AU188)/(1-(1+(P188/360*AU188))^-AS188))*B188)*(1+AA188),0),IF($AF$3=2,B188*AJ188,IFERROR((((P188/360*AU188)/(1-(1+(P188/360*AU188))^-AS188))*B188)*(1+AA188),0)))) -> 0 | F188: 0 | H188: 0 | L188: =IF(Simulador!$T$41=1,0,J188*Simulador!$W$39*1.16) -> 0 | N188: 0 | P188: 0 | R188: 0 | T188: =IFERROR(IF(Simulador!$U$30=1,0,IF($B188<=0,0,$B188*Simulador!$AA$43)),0) -> 0 | V188: =IFERROR(IF(Simulador!$U$30=1,0,IF($B188<=0,0,IF(Simulador!$D$22>0,Simulador!$D$22,Simulador!$O$24)*Simulador!$AA$44)),0) -> 0 | Y188: 0 | AD188: 14 | AE188: 6 | AF188: 0 | AG188: 0 | AH188: 0 | AI188: 0 | AJ188: 0 | AK188: 0 | AL188: 0 | AM188: 0 | AN188: 0 | AO188: 0 | AP188: =IFERROR(IF(Simulador!$U$30=1,0,IF($AK188<=0.01,0,$AK188*Simulador!$AA$43)),0)+IFERROR(IF(Simulador!$U$30=1,0,IF($AK188<=0.01,0,IF(Simulador!$D$22>0,Simulador!$D$22,Simulador!$O$24)*Simulador!$AA$44)),0) -> 0 | AQ188: 0 | AR188: 0 | AS188: 0 | AU188: 0 | AV188: 120
A189: 175 | B189: 0 | D189: =IF(B189+F189-D188<=0,B189+F189,IF(AND(OR(Simulador!$U$39=2,Simulador!$U$39=7),J188=0),IFERROR((((P189/360*AU189)/(1-(1+(P189/360*AU189))^-AS189))*B189)*(1+AA189),0),IF($AF$3=2,B189*AJ189,IFERROR((((P189/360*AU189)/(1-(1+(P189/360*AU189))^-AS189))*B189)*(1+AA189),0)))) -> 0 | F189: 0 | H189: 0 | L189: =IF(Simulador!$T$41=1,0,J189*Simulador!$W$39*1.16) -> 0 | P189: 0 | R189: 0 | T189: =IFERROR(IF(Simulador!$U$30=1,0,IF($B189<=0,0,$B189*Simulador!$AA$43)),0) -> 0 | V189: =IFERROR(IF(Simulador!$U$30=1,0,IF($B189<=0,0,IF(Simulador!$D$22>0,Simulador!$D$22,Simulador!$O$24)*Simulador!$AA$44)),0) -> 0 | Y189: 0 | AD189: 14 | AE189: 7 | AF189: 0 | AG189: 0 | AH189: 0 | AI189: 0 | AJ189: 0 | AK189: 0 | AL189: 0 | AM189: 0 | AN189: 0 | AO189: 0 | AP189: =IFERROR(IF(Simulador!$U$30=1,0,IF($AK189<=0.01,0,$AK189*Simulador!$AA$43)),0)+IFERROR(IF(Simulador!$U$30=1,0,IF($AK189<=0.01,0,IF(Simulador!$D$22>0,Simulador!$D$22,Simulador!$O$24)*Simulador!$AA$44)),0) -> 0 | AQ189: 0 | AR189: 0 | AS189: 0 | AU189: 0 | AV189: 120
A190: 176 | B190: 0 | D190: =IF(B190+F190-D189<=0,B190+F190,IF(AND(OR(Simulador!$U$39=2,Simulador!$U$39=7),J189=0),IFERROR((((P190/360*AU190)/(1-(1+(P190/360*AU190))^-AS190))*B190)*(1+AA190),0),IF($AF$3=2,B190*AJ190,IFERROR((((P190/360*AU190)/(1-(1+(P190/360*AU190))^-AS190))*B190)*(1+AA190),0)))) -> 0 | F190: 0 | H190: 0 | L190: =IF(Simulador!$T$41=1,0,J190*Simulador!$W$39*1.16) -> 0 | N190: 0 | P190: 0 | R190: 0 | T190: =IFERROR(IF(Simulador!$U$30=1,0,IF($B190<=0,0,$B190*Simulador!$AA$43)),0) -> 0 | V190: =IFERROR(IF(Simulador!$U$30=1,0,IF($B190<=0,0,IF(Simulador!$D$22>0,Simulador!$D$22,Simulador!$O$24)*Simulador!$AA$44)),0) -> 0 | Y190: 0 | AD190: 14 | AE190: 8 | AF190: 0 | AG190: 0 | AH190: 0 | AI190: 0 | AJ190: 0 | AK190: 0 | AL190: 0 | AM190: 0 | AN190: 0 | AO190: 0 | AP190: =IFERROR(IF(Simulador!$U$30=1,0,IF($AK190<=0.01,0,$AK190*Simulador!$AA$43)),0)+IFERROR(IF(Simulador!$U$30=1,0,IF($AK190<=0.01,0,IF(Simulador!$D$22>0,Simulador!$D$22,Simulador!$O$24)*Simulador!$AA$44)),0) -> 0 | AQ190: 0 | AR190: 0 | AS190: 0 | AU190: 0 | AV190: 120
A191: 177 | B191: 0 | D191: =IF(B191+F191-D190<=0,B191+F191,IF(AND(OR(Simulador!$U$39=2,Simulador!$U$39=7),J190=0),IFERROR((((P191/360*AU191)/(1-(1+(P191/360*AU191))^-AS191))*B191)*(1+AA191),0),IF($AF$3=2,B191*AJ191,IFERROR((((P191/360*AU191)/(1-(1+(P191/360*AU191))^-AS191))*B191)*(1+AA191),0)))) -> 0 | F191: 0 | H191: 0 | L191: =IF(Simulador!$T$41=1,0,J191*Simulador!$W$39*1.16) -> 0 | P191: 0 | R191: 0 | T191: =IFERROR(IF(Simulador!$U$30=1,0,IF($B191<=0,0,$B191*Simulador!$AA$43)),0) -> 0 | V191: =IFERROR(IF(Simulador!$U$30=1,0,IF($B191<=0,0,IF(Simulador!$D$22>0,Simulador!$D$22,Simulador!$O$24)*Simulador!$AA$44)),0) -> 0 | Y191: 0 | AD191: 14 | AE191: 9 | AF191: 0 | AG191: 0 | AH191: 0 | AI191: 0 | AJ191: 0 | AK191: 0 | AL191: 0 | AM191: 0 | AN191: 0 | AO191: 0 | AP191: =IFERROR(IF(Simulador!$U$30=1,0,IF($AK191<=0.01,0,$AK191*Simulador!$AA$43)),0)+IFERROR(IF(Simulador!$U$30=1,0,IF($AK191<=0.01,0,IF(Simulador!$D$22>0,Simulador!$D$22,Simulador!$O$24)*Simulador!$AA$44)),0) -> 0 | AQ191: 0 | AR191: 0 | AS191: 0 | AU191: 0 | AV191: 120
A192: 178 | B192: 0 | D192: =IF(B192+F192-D191<=0,B192+F192,IF(AND(OR(Simulador!$U$39=2,Simulador!$U$39=7),J191=0),IFERROR((((P192/360*AU192)/(1-(1+(P192/360*AU192))^-AS192))*B192)*(1+AA192),0),IF($AF$3=2,B192*AJ192,IFERROR((((P192/360*AU192)/(1-(1+(P192/360*AU192))^-AS192))*B192)*(1+AA192),0)))) -> 0 | F192: 0 | H192: 0 | L192: =IF(Simulador!$T$41=1,0,J192*Simulador!$W$39*1.16) -> 0 | N192: 0 | P192: 0 | R192: 0 | T192: =IFERROR(IF(Simulador!$U$30=1,0,IF($B192<=0,0,$B192*Simulador!$AA$43)),0) -> 0 | V192: =IFERROR(IF(Simulador!$U$30=1,0,IF($B192<=0,0,IF(Simulador!$D$22>0,Simulador!$D$22,Simulador!$O$24)*Simulador!$AA$44)),0) -> 0 | Y192: 0 | AD192: 14 | AE192: 10 | AF192: 0 | AG192: 0 | AH192: 0 | AI192: 0 | AJ192: 0 | AK192: 0 | AL192: 0 | AM192: 0 | AN192: 0 | AO192: 0 | AP192: =IFERROR(IF(Simulador!$U$30=1,0,IF($AK192<=0.01,0,$AK192*Simulador!$AA$43)),0)+IFERROR(IF(Simulador!$U$30=1,0,IF($AK192<=0.01,0,IF(Simulador!$D$22>0,Simulador!$D$22,Simulador!$O$24)*Simulador!$AA$44)),0) -> 0 | AQ192: 0 | AR192: 0 | AS192: 0 | AU192: 0 | AV192: 120
A193: 179 | B193: 0 | D193: =IF(B193+F193-D192<=0,B193+F193,IF(AND(OR(Simulador!$U$39=2,Simulador!$U$39=7),J192=0),IFERROR((((P193/360*AU193)/(1-(1+(P193/360*AU193))^-AS193))*B193)*(1+AA193),0),IF($AF$3=2,B193*AJ193,IFERROR((((P193/360*AU193)/(1-(1+(P193/360*AU193))^-AS193))*B193)*(1+AA193),0)))) -> 0 | F193: 0 | H193: 0 | L193: =IF(Simulador!$T$41=1,0,J193*Simulador!$W$39*1.16) -> 0 | P193: 0 | R193: 0 | T193: =IFERROR(IF(Simulador!$U$30=1,0,IF($B193<=0,0,$B193*Simulador!$AA$43)),0) -> 0 | V193: =IFERROR(IF(Simulador!$U$30=1,0,IF($B193<=0,0,IF(Simulador!$D$22>0,Simulador!$D$22,Simulador!$O$24)*Simulador!$AA$44)),0) -> 0 | Y193: 0 | AD193: 14 | AE193: 11 | AF193: 0 | AG193: 0 | AH193: 0 | AI193: 0 | AJ193: 0 | AK193: 0 | AL193: 0 | AM193: 0 | AN193: 0 | AO193: 0 | AP193: =IFERROR(IF(Simulador!$U$30=1,0,IF($AK193<=0.01,0,$AK193*Simulador!$AA$43)),0)+IFERROR(IF(Simulador!$U$30=1,0,IF($AK193<=0.01,0,IF(Simulador!$D$22>0,Simulador!$D$22,Simulador!$O$24)*Simulador!$AA$44)),0) -> 0 | AQ193: 0 | AR193: 0 | AS193: 0 | AU193: 0 | AV193: 120
A194: 180 | B194: 0 | D194: =IF(B194+F194-D193<=0,B194+F194,IF(AND(OR(Simulador!$U$39=2,Simulador!$U$39=7),J193=0),IFERROR((((P194/360*AU194)/(1-(1+(P194/360*AU194))^-AS194))*B194)*(1+AA194),0),IF($AF$3=2,B194*AJ194,IFERROR((((P194/360*AU194)/(1-(1+(P194/360*AU194))^-AS194))*B194)*(1+AA194),0)))) -> 0 | F194: 0 | H194: 0 | L194: =IF(Simulador!$T$41=1,0,J194*Simulador!$W$39*1.16) -> 0 | N194: 0 | P194: 0 | R194: 0 | T194: =IFERROR(IF(Simulador!$U$30=1,0,IF($B194<=0,0,$B194*Simulador!$AA$43)),0) -> 0 | V194: =IFERROR(IF(Simulador!$U$30=1,0,IF($B194<=0,0,IF(Simulador!$D$22>0,Simulador!$D$22,Simulador!$O$24)*Simulador!$AA$44)),0) -> 0 | Y194: 0 | AD194: 15 | AE194: 0 | AF194: 0 | AG194: 0 | AH194: 0 | AI194: 0 | AJ194: 0 | AK194: 0 | AL194: 0 | AM194: 0 | AN194: 0 | AO194: 0 | AP194: =IFERROR(IF(Simulador!$U$30=1,0,IF($AK194<=0.01,0,$AK194*Simulador!$AA$43)),0)+IFERROR(IF(Simulador!$U$30=1,0,IF($AK194<=0.01,0,IF(Simulador!$D$22>0,Simulador!$D$22,Simulador!$O$24)*Simulador!$AA$44)),0) -> 0 | AQ194: 0 | AR194: 0 | AS194: 0 | AU194: 0 | AV194: 120
A195: 181 | B195: 0 | D195: =IF(B195+F195-D194<=0,B195+F195,IF(AND(OR(Simulador!$U$39=2,Simulador!$U$39=7),J194=0),IFERROR((((P195/360*AU195)/(1-(1+(P195/360*AU195))^-AS195))*B195)*(1+AA195),0),IF($AF$3=2,B195*AJ195,IFERROR((((P195/360*AU195)/(1-(1+(P195/360*AU195))^-AS195))*B195)*(1+AA195),0)))) -> 0 | F195: 0 | H195: 0 | L195: =IF(Simulador!$T$41=1,0,J195*Simulador!$W$39*1.16) -> 0 | P195: =IFERROR(IF(B195=0,0,IF(Simulador!$D$26<>0,MIN(Simulador!$D$26+Simulador!$U$75,$AG$12),P194)),0) -> 0 | R195: 0 | T195: =IFERROR(IF(Simulador!$U$30=1,0,IF($B195<=0,0,$B195*Simulador!$AA$43)),0) -> 0 | V195: =IFERROR(IF(Simulador!$U$30=1,0,IF($B195<=0,0,IF(Simulador!$D$22>0,Simulador!$D$22,Simulador!$O$24)*Simulador!$AA$44)),0) -> 0 | Y195: 0 | AD195: 15 | AE195: 1 | AF195: 0 | AG195: 0 | AH195: 0 | AI195: 0 | AJ195: 0 | AK195: 0 | AL195: 0 | AM195: 0 | AN195: 0 | AO195: 0 | AP195: =IFERROR(IF(Simulador!$U$30=1,0,IF($AK195<=0.01,0,$AK195*Simulador!$AA$43)),0)+IFERROR(IF(Simulador!$U$30=1,0,IF($AK195<=0.01,0,IF(Simulador!$D$22>0,Simulador!$D$22,Simulador!$O$24)*Simulador!$AA$44)),0) -> 0 | AQ195: 0 | AR195: 0 | AS195: 0 | AU195: 0 | AV195: 120
A196: 182 | B196: 0 | D196: =IF(B196+F196-D195<=0,B196+F196,IF(AND(OR(Simulador!$U$39=2,Simulador!$U$39=7),J195=0),IFERROR((((P196/360*AU196)/(1-(1+(P196/360*AU196))^-AS196))*B196)*(1+AA196),0),IF($AF$3=2,B196*AJ196,IFERROR((((P196/360*AU196)/(1-(1+(P196/360*AU196))^-AS196))*B196)*(1+AA196),0)))) -> 0 | F196: 0 | H196: 0 | L196: =IF(Simulador!$T$41=1,0,J196*Simulador!$W$39*1.16) -> 0 | N196: 0 | P196: 0 | R196: 0 | T196: =IFERROR(IF(Simulador!$U$30=1,0,IF($B196<=0,0,$B196*Simulador!$AA$43)),0) -> 0 | V196: =IFERROR(IF(Simulador!$U$30=1,0,IF($B196<=0,0,IF(Simulador!$D$22>0,Simulador!$D$22,Simulador!$O$24)*Simulador!$AA$44)),0) -> 0 | Y196: 0 | AD196: 15 | AE196: 2 | AF196: 0 | AG196: 0 | AH196: 0 | AI196: 0 | AJ196: 0 | AK196: 0 | AL196: 0 | AM196: 0 | AN196: 0 | AO196: 0 | AP196: =IFERROR(IF(Simulador!$U$30=1,0,IF($AK196<=0.01,0,$AK196*Simulador!$AA$43)),0)+IFERROR(IF(Simulador!$U$30=1,0,IF($AK196<=0.01,0,IF(Simulador!$D$22>0,Simulador!$D$22,Simulador!$O$24)*Simulador!$AA$44)),0) -> 0 | AQ196: 0 | AR196: 0 | AS196: 0 | AU196: 0 | AV196: 120
A197: 183 | B197: 0 | D197: =IF(B197+F197-D196<=0,B197+F197,IF(AND(OR(Simulador!$U$39=2,Simulador!$U$39=7),J196=0),IFERROR((((P197/360*AU197)/(1-(1+(P197/360*AU197))^-AS197))*B197)*(1+AA197),0),IF($AF$3=2,B197*AJ197,IFERROR((((P197/360*AU197)/(1-(1+(P197/360*AU197))^-AS197))*B197)*(1+AA197),0)))) -> 0 | F197: 0 | H197: 0 | L197: =IF(Simulador!$T$41=1,0,J197*Simulador!$W$39*1.16) -> 0 | P197: 0 | R197: 0 | T197: =IFERROR(IF(Simulador!$U$30=1,0,IF($B197<=0,0,$B197*Simulador!$AA$43)),0) -> 0 | V197: =IFERROR(IF(Simulador!$U$30=1,0,IF($B197<=0,0,IF(Simulador!$D$22>0,Simulador!$D$22,Simulador!$O$24)*Simulador!$AA$44)),0) -> 0 | Y197: 0 | AD197: 15 | AE197: 3 | AF197: 0 | AG197: 0 | AH197: 0 | AI197: 0 | AJ197: 0 | AK197: 0 | AL197: 0 | AM197: 0 | AN197: 0 | AO197: 0 | AP197: =IFERROR(IF(Simulador!$U$30=1,0,IF($AK197<=0.01,0,$AK197*Simulador!$AA$43)),0)+IFERROR(IF(Simulador!$U$30=1,0,IF($AK197<=0.01,0,IF(Simulador!$D$22>0,Simulador!$D$22,Simulador!$O$24)*Simulador!$AA$44)),0) -> 0 | AQ197: 0 | AR197: 0 | AS197: 0 | AU197: 0 | AV197: 120
A198: 184 | B198: 0 | D198: =IF(B198+F198-D197<=0,B198+F198,IF(AND(OR(Simulador!$U$39=2,Simulador!$U$39=7),J197=0),IFERROR((((P198/360*AU198)/(1-(1+(P198/360*AU198))^-AS198))*B198)*(1+AA198),0),IF($AF$3=2,B198*AJ198,IFERROR((((P198/360*AU198)/(1-(1+(P198/360*AU198))^-AS198))*B198)*(1+AA198),0)))) -> 0 | F198: 0 | H198: 0 | L198: =IF(Simulador!$T$41=1,0,J198*Simulador!$W$39*1.16) -> 0 | N198: 0 | P198: 0 | R198: 0 | T198: =IFERROR(IF(Simulador!$U$30=1,0,IF($B198<=0,0,$B198*Simulador!$AA$43)),0) -> 0 | V198: =IFERROR(IF(Simulador!$U$30=1,0,IF($B198<=0,0,IF(Simulador!$D$22>0,Simulador!$D$22,Simulador!$O$24)*Simulador!$AA$44)),0) -> 0 | Y198: 0 | AD198: 15 | AE198: 4 | AF198: 0 | AG198: 0 | AH198: 0 | AI198: 0 | AJ198: 0 | AK198: 0 | AL198: 0 | AM198: 0 | AN198: 0 | AO198: 0 | AP198: =IFERROR(IF(Simulador!$U$30=1,0,IF($AK198<=0.01,0,$AK198*Simulador!$AA$43)),0)+IFERROR(IF(Simulador!$U$30=1,0,IF($AK198<=0.01,0,IF(Simulador!$D$22>0,Simulador!$D$22,Simulador!$O$24)*Simulador!$AA$44)),0) -> 0 | AQ198: 0 | AR198: 0 | AS198: 0 | AU198: 0 | AV198: 120
A199: 185 | B199: =IF(R198<=0.01,0,R198) -> 0 | D199: =IF(B199+F199-D198<=0,B199+F199,IF(AND(OR(Simulador!$U$39=2,Simulador!$U$39=7),J198=0),IFERROR((((P199/360*AU199)/(1-(1+(P199/360*AU199))^-AS199))*B199)*(1+AA199),0),IF($AF$3=2,B199*AJ199,IFERROR((((P199/360*AU199)/(1-(1+(P199/360*AU199))^-AS199))*B199)*(1+AA199),0)))) -> 0 | F199: =IFERROR(IF(B199=0,0,P199/360*AU199*B199),0) -> 0 | H199: =D199-F199 -> 0 | L199: =IF(Simulador!$T$41=1,0,J199*Simulador!$W$39*1.16) -> 0 | P199: =IFERROR(IF(B199=0,0,P198),0) -> 0 | R199: =B199-H199-J199+L199-N199 -> 0 | T199: =IFERROR(IF(Simulador!$U$30=1,0,IF($B199<=0,0,$B199*Simulador!$AA$43)),0) -> 0 | V199: =IFERROR(IF(Simulador!$U$30=1,0,IF($B199<=0,0,IF(Simulador!$D$22>0,Simulador!$D$22,Simulador!$O$24)*Simulador!$AA$44)),0) -> 0 | Y199: =IF(B199<=0,0,D199+J199+T199+V199) -> 0 | AD199: 15 | AE199: 5 | AF199: =IF(R199<=0.01,IF(R198>0.01,A199,0),0) -> 0 | AG199: =IF(AF199>0,AD199,0) -> 0 | AH199: =IF(AF199>0,AE199,0) -> 0 | AI199: =Y199 -> 0 | AJ199: =IFERROR((AL199/AK199),0) -> 0 | AK199: =+AO198 -> 0 | AL199: =IFERROR(((AR199/360*AU199)/(1-(1+(AR199/360*AU199))^-AS199))*AK199,0) -> 0 | AM199: =IFERROR(IF(AK199=0,0,AR199/360*AU199*AK199),0) -> 0 | AN199: =+AL199-AM199 -> 0 | AO199: =+AK199-AN199 -> 0 | AP199: =IFERROR(IF(Simulador!$U$30=1,0,IF($AK199<=0.01,0,$AK199*Simulador!$AA$43)),0)+IFERROR(IF(Simulador!$U$30=1,0,IF($AK199<=0.01,0,IF(Simulador!$D$22>0,Simulador!$D$22,Simulador!$O$24)*Simulador!$AA$44)),0) -> 0 | AQ199: =AL199+AP199 -> 0 | AR199: =IFERROR(IF(AK199=0,0,AR198),0) -> 0 | AS199: =IFERROR(IF(AK199<=0.01,0,AS198-1),0) -> 0 | AT199: =IF(AK199=0,"",DATE(YEAR(AT198),MONTH(AT198)+1,1)) ->  | AU199: =IFERROR(DAY(DATE(YEAR(AT199),MONTH(AT199)+1,0)),0) -> 0 | AV199: 120
A200: =+A199+1 -> 186 | B200: 0 | D200: =IF(B200+F200-D199<=0,B200+F200,IF(AND(OR(Simulador!$U$39=2,Simulador!$U$39=7),J199=0),IFERROR((((P200/360*AU200)/(1-(1+(P200/360*AU200))^-AS200))*B200)*(1+AA200),0),IF($AF$3=2,B200*AJ200,IFERROR((((P200/360*AU200)/(1-(1+(P200/360*AU200))^-AS200))*B200)*(1+AA200),0)))) -> 0 | F200: 0 | H200: 0 | L200: =IF(Simulador!$T$41=1,0,J200*Simulador!$W$39*1.16) -> 0 | N200: =IF(B200-H200=0,0,N198) -> 0 | P200: 0 | R200: 0 | T200: =IFERROR(IF(Simulador!$U$30=1,0,IF($B200<=0,0,$B200*Simulador!$AA$43)),0) -> 0 | V200: =IFERROR(IF(Simulador!$U$30=1,0,IF($B200<=0,0,IF(Simulador!$D$22>0,Simulador!$D$22,Simulador!$O$24)*Simulador!$AA$44)),0) -> 0 | Y200: 0 | AD200: 15 | AE200: 6 | AF200: 0 | AG200: 0 | AH200: 0 | AI200: 0 | AJ200: 0 | AK200: 0 | AL200: 0 | AM200: 0 | AN200: 0 | AO200: 0 | AP200: =IFERROR(IF(Simulador!$U$30=1,0,IF($AK200<=0.01,0,$AK200*Simulador!$AA$43)),0)+IFERROR(IF(Simulador!$U$30=1,0,IF($AK200<=0.01,0,IF(Simulador!$D$22>0,Simulador!$D$22,Simulador!$O$24)*Simulador!$AA$44)),0) -> 0 | AQ200: 0 | AR200: 0 | AS200: 0 | AU200: 0 | AV200: 120
... 56 more rows

Sheet Carat_cont
A2: Carátula de Crédito
D3: Nombre del Acreditado y/o Coacreditado:
D4: =IF(Simulador!M11="","",Simulador!M11) -> 
D5: Número de Crédito:
A7: Nombre comercial del producto: | B7: =INDEX(Simulador!AE33:AE38,Simulador!U39)&" 7x5 "&" "&A18 -> CREDIRESIDENCIAL 7x5 20 años
A9: Tipo de Crédito: Crédito Hipotecario
A10: CAT | B10: TASA DE INTERES | C10: MONTO O LINEA DE | D10: MONTO TOTAL A PAGAR O
A11: (Costo Anual Total) | B11: ANUAL ORDINARIA | C11: CRÉDITO | D11: MINIMO A PAGAR
A12: =Simulador!I41 -> 0 | B12: =VLOOKUP(Simulador!U62,Simulador!$S$63:$V$66,4,0) -> 0.1075 | C12: =IFERROR(IF(Simulador!O25="",Simulador!I25,Simulador!O25),0) -> 0 | D12: =IFERROR(SUM('Tabla de amortizacion'!Y15:Y254),0) -> 0
A13: Sin IVA | B13: Tasa Fija | D13: Moneda en
A14: Para fines | D14: Pesos
A15: informativos y de | B15: =IF(Simulador!$U$62=1,"",IF(Simulador!$D$26=0,0,MIN(Simulador!$D$26+Simulador!U75,'Tabla de amortizacion'!AG12))) -> 0 | D15: Mexicanos
A16: comparación | B16: =IF(Simulador!$U$62=1,"","TIIE + 4.5% (Tasa Variable)") -> TIIE + 4.5% (Tasa Variable)
A17: PLAZO DEL CRÉDITO: | B17: Fecha Límite de pago: Si tu fecha de corte es el día 3, tu fecha de pago es el día 3 de cada mes. Si tu fecha de corte es el día 17, tu fecha de pago es el día 17 de cada mes.
A18: =INDEX(Simulador!U63:U66,Simulador!U62) -> 20 años | B18: Fecha de corte: Si tu fecha de disposición es entre el dia 3 y 16, tu fecha de corte será el día 3 de cada mes. Si tu fecha de disposición es entre el día 17 y 2, tu fecha de corte será el día 17 de cada mes.
A19: COMISIONES RELEVANTES
A20: ="Apertura: "&TEXT(Simulador!O32,"$###,###.00") -> Apertura: $.00 | C20: =IF(RECAS!A1="6-3-2","Cobranza: $350.00 más IVA por pago tardío ","Cobranza: $500.00 más IVA por pago tardío ") -> Cobranza: $500.00 más IVA por pago tardío
A21: ="Prepago: "&IF(Simulador!T41=1,"0% ","3% ")&"más IVA sobre el monto anticipado" -> Prepago: 0% más IVA sobre el monto anticipado | C21: Para otras comisiones consulte la cláusula décimo tercera
A22: ADVERTENCIAS
A24: Incumplir tus obligaciones te puede generar comisiones e intereses moratorios.
A25: Contratar créditos que excedan tu capacidad de pago afecta tu historial crediticio.
A26: El avalista, obligado solidario o coacreditado responderá como obligado principal por el total del pago frente a la Institución Financiera.
A27: Al ser tu crédito de tasa variable, los intereses pueden aumentar.
A28: SEGUROS
A29: Seguros Obligatorios: | B29: Aseguradora: | C29: Cláusulas:
A31: Vida y Desempleo | B31: Cardif México Seguros de Vida, S.A. de C.V. | C31: Vigésima Cuarta
C32: Scotiabank Inverlat le ofrece al acreditado y/o coacreditado, la posibilidad de contratar a nombre de este (os) último(s) los seguros establecidos en la cláusula vigésima cuarta. Lo anterior sin perjuicio del derecho innegable que el cliente tiene de contratarlos a través de terceros.
A33: Daños y Responsabilidad Civil | B33: Cardif México Seguros Generales, S.A. de C.V.
A35: ESTADO DE CUENTA
A36: Envío a Domicilio ü Consulta vía Internet ___ Envío por Correo Electrónico ___
A37: Aclaraciones y reclamaciones:
A38: Unidad Especializada de Aclaraciones:
A39: Domicilio: Río Usumacinta S/N, esq. con Fernando Montes de Oca, Col. La Presita, Municipio de Cuautitlán Izcalli, Estado de México, C.P. 54763
A40: Teléfono: (55) 5123 0990
A41: Correo electrónico: une@scotiabank.com.mx
A42: Página de Internet: www.scotiabank.com.mx
A43: ="Registro de Contratos de Adhesión Núm: "&IFERROR(IF(Simulador!D21="","",VLOOKUP(RECAS!$A$1,RECAS!$A$3:$D$12,4,0)),"Revisa los datos ingresados") -> Registro de Contratos de Adhesión Núm:
A44: Comisión Nacional para la Protección y Defensa de los Usuarios de Servicios Financieros (CONDUSEF):
A45: Teléfono: 800 999 8080 y (55) 5340 0999. Página de Internet. www.condusef.gob.mx

Sheet RECAS
A1: =Simulador!$U$39&"-3-"&IF(OR(Simulador!$D$43>0,Simulador!$D$45>0),2,IF(AND(Simulador!U39=6,Simulador!D39>0),2,1)) -> 1-3-1 | B1: RELACIÓN RECAS
A2: Clave | B2: No. | C2: Nombre | D2: RECA | E2: Fecha de expedición | F2: Tipo Crédito | G2: Esquema | H2: Mancomunado
A3: =F3&"-"&G3&"-"&H3 -> 5-3-1 | B3: 31 | C3: Pago de Pasivos Hipoteca 7x5 con Apoyo Infonavit | D3: 0319-138-024406/15-00083-0124 | E3: 2024-01-15 | F3: 5 | G3: 3 | H3: 1
A4: 2-3-1 | B4: 32 | C4: Adquisición Con Apoyo Hipoteca 7 x 5 | D4: 0319-138-038241/02-00084-0124 | E4: 2024-01-15 | F4: 2 | G4: 3 | H4: 1
A5: 1-3-1 | B5: 33 | C5: Adquisición Hipoteca 7 x 5 | D5: 0319-138-020519/15-00085-0124 | E5: 2024-01-15 | F5: 1 | G5: 3 | H5: 1
A6: 3-3-2 | B6: 34 | C6: Cofinavit Conyugales Hipoteca 7 x 5 | D6: 0319-138-020524/16-00086-0124 | E6: 2024-01-15 | F6: 3 | G6: 3 | H6: 2
A7: 3-3-1 | B7: 35 | C7: Cofinavit Hipoteca 7 x 5 | D7: 0319-138-020525/16-00087-0124 | E7: 2024-01-15 | F7: 3 | G7: 3 | H7: 1
A8: 4-3-1 | B8: 36 | C8: Pago de Pasivo Hipoteca 7 x 5 | D8: 0319-138-038243/02-00088-0124 | E8: 2024-01-15 | F8: 4 | G8: 3 | H8: 1
A9: 6-3-1 | B9: 48 | C9: Cofinavit CI+CB 7x5 | D9: 0319-138-035433/06-00100-0124 | E9: 2024-01-15 | F9: 6 | G9: 3 | H9: 1
A10: 6-3-2 | B10: 49 | C10: Cofinavit CI+CB Cofinavit Conyugal 7x5 | D10: 0319-138-035434/06-00101-0124 | E10: 2024-01-15 | F10: 6 | G10: 3 | H10: 2

Sheet Pol (hidden)
C1: El Aforo estará alineado al producto que se desee adquirir vs Índice de Riesgo, acorde a lo siguiente: | M1: C) AFORO PARA CRÉDITOS QUE EXCEDAN EL MONTO A FINANCIAR POR POLÍTICA (APARTADO A.7): | S1: Plazo del crédito (años) | T1: 5 | U1: 10 | V1: 15 | W1: 20
S2: Tasa de interés inicial fija (*) | T2: 0.073 | U2: 0.0775 | V2: 0.078 | W2: 0.0785
C3: IR | D3: AFORO | M3: Para créditos que superen el límite máximo establecido en el apartado A.7 de la presente política, el Aforo máximo está en función del importe del crédito, como se indica a continuación: | S3: Pago por mil inicial | T3: 20.23 | U3: 8.3 | V3: 8.3 | W3: 8.3
D4: Adquisición (1) | H4: Liquidez Vivienda Terrenos | I4: Construcción / Renovación II, III y IV | J4: Renovación I | N4: Monto del crédito | S4: CAT | T4: 0.0964626341 | U4: 0.1055509266 | V4: 0.1100667975 | W4: 0.1126258651
D5: Empleados | E5: Empleados | F5: Independientes | G5: Vivienda | N5: Mayor a $5 MDP Menor a $6.5 MDP | P5: Mayor a $ 6.5 MDP | S5: Pagos | T5: Iguales | U5: Iguales | V5: Iguales | W5: Iguales
D6: con apoyo | E6: sin apoyo | G6: Descanso | M6: IR / Subproducto | N6: Adquisición | O6: Liquidez/Construcción/ Credirenovación | P6: Adquisición | Q6: Liquidez/Construcción/ Credirenovación | S6: Revisiones cada 5 años | T6: No aplica | U6: Si | V6: Si | W6: Si
C7: 1 | D7: 0.95 | E7: 0.9 | F7: 0.85 | G7: 0.65 | H7: Hasta el 50% de acuerdo al valor del avalúo de la garantía. | I7: Hasta el 70% del valor proyectado de la vivienda o el 100% del valor de construcción, el menor | J7: Hasta el 70% de acuerdo al valor del avalúo de la garantía. | M7: 1 | N7: 0.65 | O7: 0.65 | P7: 0.55 | Q7: 0.5 | S7: % saldo remanente
C8: 2 | D8: 0.95 | E8: 0.9 | F8: 0.85 | G8: 0.65 | M8: 2 | S8: Periodo 1 | T8: -1.637090463e-16 | U8: 0.5953806161 | V8: 0.7849966811 | W8: 0.8734084215
C9: 3 | D9: 0.95 | E9: 0.85 | F9: 0.8 | G9: 0.5 | M9: 3 | S9: Periodo 2 | T9: NA | U9: -4.347384674e-16 | V9: 0.4999510718 | W9: 0.7236012239
C10: 4 | D10: 0.8 | E10: 0.8 | F10: 0.75 | G10: 0.5 | M10: 4 | S10: Periodo 3 | T10: NA | U10: NA | V10: -4.838511813e-16 | W10: 0.4608493464
C11: 5 | D11: 0.8 | E11: 0.7 | F11: 0.5 | G11: 0.5 | M11: 5 | N11: 0.5 | P11: 0.5 | S11: Periodo 4 | T11: NA | U11: NA | V11: NA | W11: 7.275957614e-18
C19: B.8 Ingresos Mínimos
D21: APOYO GUBERNAMENTAL | H21: Residencial | I21: Liquidez
H22: Preventa | I22: Construcción
D23: Apoyo INFONAVIT | I23: CrediRenovación
D24: COFINAVIT | I24: I, II, III, IV
D25: FOVISSSTE
D26: (ALIA2 y RESPAL2)
C27: Ingreso | D27: 7500 | H27: 10000 | I27: 20000
C28: Mínimo
A32: D) REGLAS PARA OBTENER EL % DE AFORO A FINANCIAR
A33: Producto | B33: Regla
A34: Adquisición de vivienda | B34: Monto menor resultante entre el Avalúo del inmueble vs. el importe de la compra - venta.
A35: Switch Hipotecario (Pago de Pasivos ) | B35: Monto menor resultante entre el Avalúo del inmueble vs. el importe vigente del crédito con la otra institución (Pasivo) más la comisión por apertura fianciable.
A36: Preventa | B36: Se obtiene del valor proyectado del inmueble de acuerdo al dictamen técnico. | G36: A apartir del 05 de abril del 2017
A37: Liquidez | B37: De acuerdo al valor del avalúo de la garantía (casa actual no grabada)
A38: Construcción | B38: Hasta el 70% del valor proyectado de la vivienda o el 100% del valor de construcción, el menor.
A39: CrediRenovación | B39: I: Hasta el 70% de acuerdo al valor del Avalúo de la garantía.
B41: II, III y IV: Hasta el 70% del valor proyectado de la vivienda (valor del avalúo más presupuesto de renovación según dictamen técnico) ó el 100% del valor de construcción, el menor.
C46: TDSR
C47: Valora & Pagos Oportunos
C48: IR | D48: Adquisición | F48: Liquidez Vivienda, Construcción & Renovación I, II, III & IV
D49: (Cualquier tipo de empleo)
D50: Actual | E50: Nueva | F50: Actual | G50: Nueva
C51: 1 | D51: 0.5 | E51: 0.55 | F51: 0.35 | G51: 0.35
C52: 2 | D52: 0.45 | E52: 0.5 | F52: 0.32
C53: 3 | G53: 0.32
C54: 4 | D54: 0.38 | E54: 0.4 | G54: 0.3
C55: 5 | F55: 0.3
C59: PTI
C60: IR | D60: Valora & pagos Oportunos | L60: Hipoteca 7x5
D61: Adquisición | F61: Switch | H61: Liquidez Vivienda | J61: Construcción & Renovación I, II, III & IV | L61: Adquisición/Switch
D62: (Cualquier tipo de empleo) | L62: (Cualquier tipo de empleo)
D63: Actual | E63: Nueva | F63: Empleados | G63: Independientes | H63: Actual | I63: Nueva | J63: Actual | K63: Nueva | L63: Actual | M63: Nueva
C64: 1 | D64: 0.4 | E64: 0.55 | F64: 0.65 | G64: 0.6 | H64: 0.2 | I64: 0.35 | J64: 0.25 | K64: 0.35 | L64: 0.4 | M64: 0.45
C65: 2 | D65: 0.35 | E65: 0.5 | G65: 0.55 | I65: 0.32
C66: 3 | K66: 0.32
C67: 4 | D67: 0.3 | E67: 0.4 | F67: 0.38 | G67: 0.38 | I67: 0.3 | K67: 0.3 | L67: NA | M67: NA
C68: 5
